Workbook

Sheet logo (hidden)

Sheet Sheet1 (hidden)

Sheet Serviceability Calculator
C2: Servicing Calculator V2.43 | G2: For 5 to 10 loans | V2: Date:
C3: =TODAY() -> 2025-12-04
C4: New Loan Commitment(s) | D4: Loan 1 | E4: Loan 2 | F4: Loan 3 | G4: Loan 4 | H4: Loan 5 | I4: Loan 6 | J4: Loan 7 | K4: Loan 8 | L4: Loan 9 | M4: Loan 10
C5: Application No
C6: Repayment Type | D6: =IF(D8=0,"",IF(D8>D9,"Principal & Interest","Interest Only")) -> 
C7: New Loan Amount
C8: New Loan Term (Years)
C9: Interest Only Term (Years)
C10: Interest Rate of New Loan
C11: New Monthly Interest Amount | D11: =D7*D10/12 -> 0 | E11: 0 | F11: 0 | G11: 0 | H11: 0 | I11: 0 | J11: 0 | K11: 0 | L11: 0 | M11: 0
C12: New Monthly Loan Repayment/s | D12: =IFERROR(IF(D$6="",0,(IF(D$6="Principal & Interest",-PMT(D$10/12,(D$8-D$9)*12,D$7,0,0),((D$7*D$10)/12)))),0) -> 0 | E12: 0 | F12: 0 | G12: 0 | H12: 0 | I12: 0 | J12: =IFERROR(IF(J$6="",0,(IF(J$6="Principal & Interest",-PMT(J$10/12,(J$8-J$9)*12,J$7,0,0),((J$7*J$10)/12)))),0) -> 0 | K12: =IFERROR(IF(K$6="",0,(IF(K$6="Principal & Interest",-PMT(K$10/12,(K$8-K$9)*12,K$7,0,0),((K$7*K$10)/12)))),0) -> 0 | L12: 0 | M12: =IFERROR(IF(M$6="",0,(IF(M$6="Principal & Interest",-PMT(M$10/12,(M$8-M$9)*12,M$7,0,0),((M$7*M$10)/12)))),0) -> 0 | N12: =SUM(D12:M12) -> 0
C13: Loan Assessment Rate | D13: =IF(D10+RepayCalculator!$B$5>RepayCalculator!$B$8,D10+RepayCalculator!$B$5,RepayCalculator!$B$8) -> 0.0529 | E13: =IF(E10+RepayCalculator!$B$5>RepayCalculator!$B$8,E10+RepayCalculator!$B$5,RepayCalculator!$B$8) -> 0.0529 | F13: =IF(F10+RepayCalculator!$B$5>RepayCalculator!$B$8,F10+RepayCalculator!$B$5,RepayCalculator!$B$8) -> 0.0529 | G13: =IF(G10+RepayCalculator!$B$5>RepayCalculator!$B$8,G10+RepayCalculator!$B$5,RepayCalculator!$B$8) -> 0.0529 | H13: =IF(H10+RepayCalculator!$B$5>RepayCalculator!$B$8,H10+RepayCalculator!$B$5,RepayCalculator!$B$8) -> 0.0529 | I13: =IF(I10+RepayCalculator!$B$5>RepayCalculator!$B$8,I10+RepayCalculator!$B$5,RepayCalculator!$B$8) -> 0.0529 | J13: =IF(J10+RepayCalculator!$B$5>RepayCalculator!$B$8,J10+RepayCalculator!$B$5,RepayCalculator!$B$8) -> 0.0529 | K13: =IF(K10+RepayCalculator!$B$5>RepayCalculator!$B$8,K10+RepayCalculator!$B$5,RepayCalculator!$B$8) -> 0.0529 | L13: =IF(L10+RepayCalculator!$B$5>RepayCalculator!$B$8,L10+RepayCalculator!$B$5,RepayCalculator!$B$8) -> 0.0529 | M13: =IF(M10+RepayCalculator!$B$5>RepayCalculator!$B$8,M10+RepayCalculator!$B$5,RepayCalculator!$B$8) -> 0.0529 | N13: =N14-N12 -> 0
C14: Stressed Loan Payments | D14: =IFERROR(IF(D$6="",0,(IF(D$6="Principal & Interest",-PMT(D$13/12,(D$8-D$9)*12,D$7,0,0),((D$7*D$13)/12)))),0) -> 0 | E14: 0 | F14: 0 | G14: 0 | H14: 0 | I14: 0 | J14: =IFERROR(IF(J$6="",0,(IF(J$6="Principal & Interest",-PMT(J$13/12,(J$8-J$9)*12,J$7,0,0),((J$7*J$13)/12)))),0) -> 0 | K14: =IFERROR(IF(K$6="",0,(IF(K$6="Principal & Interest",-PMT(K$13/12,(K$8-K$9)*12,K$7,0,0),((K$7*K$13)/12)))),0) -> 0 | L14: =IFERROR(IF(L$6="",0,(IF(L$6="Principal & Interest",-PMT(L$13/12,(L$8-L$9)*12,L$7,0,0),((L$7*L$13)/12)))),0) -> 0 | M14: 0 | N14: =SUM(D14:M14) -> 0
C15: Stress Rate for ICR | D15: =IF(D10+RepayCalculator!$B$5>RepayCalculator!$B$8,D10+RepayCalculator!$B$5,RepayCalculator!$B$8) -> 0.0529 | E15: =IF(E10+RepayCalculator!$B$5>RepayCalculator!$B$8,E10+RepayCalculator!$B$5,RepayCalculator!$B$8) -> 0.0529 | F15: =IF(F10+RepayCalculator!$B$5>RepayCalculator!$B$8,F10+RepayCalculator!$B$5,RepayCalculator!$B$8) -> 0.0529 | G15: =IF(G10+RepayCalculator!$B$5>RepayCalculator!$B$8,G10+RepayCalculator!$B$5,RepayCalculator!$B$8) -> 0.0529 | H15: =IF(H10+RepayCalculator!$B$5>RepayCalculator!$B$8,H10+RepayCalculator!$B$5,RepayCalculator!$B$8) -> 0.0529 | I15: =IF(I10+RepayCalculator!$B$5>RepayCalculator!$B$8,I10+RepayCalculator!$B$5,RepayCalculator!$B$8) -> 0.0529 | J15: =IF(J10+RepayCalculator!$B$5>RepayCalculator!$B$8,J10+RepayCalculator!$B$5,RepayCalculator!$B$8) -> 0.0529 | K15: =IF(K10+RepayCalculator!$B$5>RepayCalculator!$B$8,K10+RepayCalculator!$B$5,RepayCalculator!$B$8) -> 0.0529 | L15: =IF(L10+RepayCalculator!$B$5>RepayCalculator!$B$8,L10+RepayCalculator!$B$5,RepayCalculator!$B$8) -> 0.0529 | M15: =IF(M10+RepayCalculator!$B$5>RepayCalculator!$B$8,M10+RepayCalculator!$B$5,RepayCalculator!$B$8) -> 0.0529
C16: Stressed monthly Amount for ICR | D16: =D7*D15/12 -> 0 | E16: =E7*E15/12 -> 0 | F16: 0 | G16: 0 | H16: 0 | I16: 0 | J16: 0 | K16: 0 | L16: 0 | M16: 0
C19: Household Status | D19: Applicant Name | E19: Household Number | F19: Status | G19: Dependents
C20: Applicant 1
C21: Applicant 2
C22: Applicant 3
C23: Applicant 4
C25: HEM Status | E25: Status | F25: Dependents | P25: Household HEM | V25: Long Description | W25: Income for HEM
C26: Household 1 | E26: =_xlfn.IFNA(VLOOKUP(C26,$E$20:$F$23,2,FALSE),"N/A") -> N/A | F26: =SUMIF($E$20:$E$23,C26,$G$20:$G$23) -> 0 | O26: =LOOKUP(W26,HEM!$C$9:$P$9,HEM!$C$7:$P$7) -> 2 | P26: =_xlfn.IFNA(VLOOKUP(V26,HEM!$B$12:$P$34,O26,FALSE),0)*52/12 -> 0 | V26: =E26&" with "&F26&" children" -> N/A with 0 children | W26: =SUMIF($U$33:$U$36,C26,$D$33:$D$36)+SUMIF($U$40:$U$43,C26,$W$40:$W$43)+SUMIF($U$33:$U$36,C26,$E$34:$E$36) -> 0
C27: Household 2 | E27: =_xlfn.IFNA(VLOOKUP(C27,$E$20:$F$23,2,FALSE),"N/A") -> N/A | F27: =SUMIF($E$20:$E$23,C27,$G$20:$G$23) -> 0 | O27: =LOOKUP(W27,HEM!$C$9:$P$9,HEM!$C$7:$P$7) -> 2 | P27: =_xlfn.IFNA(VLOOKUP(V27,HEM!$B$12:$P$34,O27,FALSE),0)*52/12 -> 0 | V27: =E27&" with "&F27&" children" -> N/A with 0 children | W27: =SUMIF($U$33:$U$36,C27,$D$33:$D$36)+SUMIF($U$40:$U$43,C27,$W$40:$W$43)+SUMIF($U$33:$U$36,C27,$E$34:$E$36) -> 0
C28: Household 3 | E28: =_xlfn.IFNA(VLOOKUP(C28,$E$20:$F$23,2,FALSE),"N/A") -> N/A | F28: =SUMIF($E$20:$E$23,C28,$G$20:$G$23) -> 0 | O28: =LOOKUP(W28,HEM!$C$9:$P$9,HEM!$C$7:$P$7) -> 2 | P28: =_xlfn.IFNA(VLOOKUP(V28,HEM!$B$12:$P$34,O28,FALSE),0)*52/12 -> 0 | V28: =E28&" with "&F28&" children" -> N/A with 0 children | W28: =SUMIF($U$33:$U$36,C28,$D$33:$D$36)+SUMIF($U$40:$U$43,C28,$W$40:$W$43)+SUMIF($U$33:$U$36,C28,$E$34:$E$36) -> 0
C29: Household 4 | E29: =_xlfn.IFNA(VLOOKUP(C29,$E$20:$F$23,2,FALSE),"N/A") -> N/A | F29: =SUMIF($E$20:$E$23,C29,$G$20:$G$23) -> 0 | O29: =LOOKUP(W29,HEM!$C$9:$P$9,HEM!$C$7:$P$7) -> 2 | P29: =_xlfn.IFNA(VLOOKUP(V29,HEM!$B$12:$P$34,O29,FALSE),0)*52/12 -> 0 | V29: =E29&" with "&F29&" children" -> N/A with 0 children | W29: =SUMIF($U$33:$U$36,C29,$D$33:$D$36)+SUMIF($U$40:$U$43,C29,$W$40:$W$43)+SUMIF($U$33:$U$36,C29,$E$34:$E$36) -> 0
C30: Total | P30: =SUM(P26:P29) -> 0
C32: Income - Personal | D32: Gross Taxable Income | E32: Gross Non Taxable Income | F32: Gross Rental Income | G32: Net Monthly Income | V32: Gross Income - Taxable | W32: Gross Income - Non-taxable
C33: Applicant 1 - Personal Income | F33: ='Rental & Gearing'!I31 -> 0 | G33: ='Tax Scales'!$J$14+(W33/12) -> 0 | U33: =E20 -> 0 | V33: =D33+W40 -> 0 | W33: =(D40*12)+E33 -> 0
C34: Applicant 2 - Personal Income | F34: ='Rental & Gearing'!I32 -> 0 | G34: ='Tax Scales'!$J$27+(W34/12) -> 0 | U34: =E21 -> 0 | V34: =D34+W41 -> 0 | W34: =(D41*12)+E34 -> 0
C35: Applicant 3 - Personal Income | F35: ='Rental & Gearing'!I33 -> 0 | G35: ='Tax Scales'!$J$40+(W35/12) -> 0 | U35: =E22 -> 0 | V35: =D35+W42 -> 0 | W35: =(D42*12)+E35 -> 0
C36: Applicant 4 - Personal Income | F36: ='Rental & Gearing'!I34 -> 0 | G36: ='Tax Scales'!$J$53+(W36/12) -> 0 | U36: =E23 -> 0 | V36: =D36+W43 -> 0 | W36: =(D43*12)+E36 -> 0
G37: =SUM(G33:G36) -> 0 | U37: =E24 -> 0
C39: Interest on Rental Properties | D39: Monthly Interest Expense (for gearing purposes only) | V39: Gross Annual Income - less haircut | W39: Net Rental Income
C40: Applicant 1 - Interest expense on rental properties | D40: ='Rental & Gearing'!J31/12 -> 0 | U40: =E20 -> 0 | V40: ='Rental & Gearing'!AC31 -> 0 | W40: =V40-(D40*12) -> 0
C41: Applicant 2 - Interest expense on rental properties | D41: ='Rental & Gearing'!J32/12 -> 0 | U41: =E21 -> 0 | V41: ='Rental & Gearing'!AC32 -> 0 | W41: =V41-(D41*12) -> 0
C42: Applicant 3 - Interest expense on rental properties | D42: ='Rental & Gearing'!J33/12 -> 0 | U42: =E22 -> 0 | V42: ='Rental & Gearing'!AC33 -> 0 | W42: =V42-(D42*12) -> 0
C43: Applicant 4 - Interest expense on rental properties | D43: ='Rental & Gearing'!J34/12 -> 0 | U43: =E23 -> 0 | V43: ='Rental & Gearing'!AC34 -> 0 | W43: =V43-(D43*12) -> 0
V44: ='Rental & Gearing'!AC35 -> 0
P45: Total Income | Q45: Company 1 Income | R45: Company 2 income
C46: Business Income | D46: Company Income | E46: Depreciation Add-back | Q46: ='Self Employed Calculator'!D34 -> 0 | R46: ='Self Employed Calculator'!D66 -> 0 | S46: Applicant 1
C47: Company 1 | D47: 0 | E47: 0 | G47: =IF(_GTI_ST="Sole Trade Income","",'Tax Scales'!$J$83+(W47/12)) -> 0 | Q47: ='Self Employed Calculator'!F34 -> 0 | R47: ='Self Employed Calculator'!F66 -> 0 | S47: Applicant 2 | V47: =D47 -> 0 | W47: =E47 -> 0
C48: Company 2 | D48: 0 | E48: 0 | G48: =IF(_GTI_ST="Sole Trade Income","",'Tax Scales'!$J$90+(W48/12)) -> 0 | Q48: ='Self Employed Calculator'!H34 -> 0 | R48: ='Self Employed Calculator'!H66 -> 0 | S48: Applicant 3 | V48: =D48 -> 0 | W48: =E48 -> 0
Q49: ='Self Employed Calculator'!J34 -> 0 | R49: ='Self Employed Calculator'!J66 -> 0 | S49: Applicant 4
C51: Total Gross Income | G51: =SUM(D33:D36)+SUM(E33:E36)+SUM(D47:D48)+SUM(E47:E48)+SUM(F33:F36) -> 0
C52: Total Monthly Income | G52: =+G37+SUM(G47:G48) -> 0 | Q52: Company Income | R52: Depreciation Add-back
Q53: =SUM(Q46:Q49) -> 0 | R53: ='Self Employed Calculator'!D36+'Self Employed Calculator'!F36+'Self Employed Calculator'!H36+'Self Employed Calculator'!J36 -> 0 | S53: =IFERROR(IF(SE1Test=1,_SE1dep,IF(SE1Test=2,_SE1depadj,0)),"") -> 
C54: Less Living Allowance | D54: Household 1 | E54: Household 2 | F54: Household 3 | G54: Household 4 | Q54: =SUM(R46:R49) -> 0 | R54: ='Self Employed Calculator'!D68+'Self Employed Calculator'!F68+'Self Employed Calculator'!H68+'Self Employed Calculator'!J68 -> 0
C55: Basic Housing & Property Expense
C56: Investment Property Costs
C57: Communication & Media
C58: Food & Groceries
C59: Recreation & Entertainment
C60: Clothing & Personal Care
C61: Medical & Health
C62: Transport
C63: Health & Personal Insurances
C64: Other Expenses
C65: Monthly Living Expenses | D65: =SUM(D55:D64) -> 0 | E65: =SUM(E55:E64) -> 0 | F65: =SUM(F55:F64) -> 0 | G65: =SUM(G55:G64) -> 0
C66: Benchmark Living Expenses | D66: =_xlfn.IFNA(VLOOKUP($V$26,HEM!$B$12:$P$34,$O$26,FALSE),0)*52/12 -> 0 | E66: =_xlfn.IFNA(VLOOKUP($V$27,HEM!$B$12:$P$34,$O$27,FALSE),0)*52/12 -> 0 | F66: =_xlfn.IFNA(VLOOKUP($V$28,HEM!$B$12:$P$34,$O$28,FALSE),0)*52/12 -> 0 | G66: =_xlfn.IFNA(VLOOKUP($V$29,HEM!$B$12:$P$34,$O$29,FALSE),0)*52/12 -> 0
C67: Living Expense Used (> of HEM or Actual) | D67: =IF(D66>D65,D66,D65) -> 0 | E67: =IF(E66>E65,E66,E65) -> 0 | F67: =IF(F66>F65,F66,F65) -> 0 | G67: =IF(G66>G65,G66,G65) -> 0
C68: Private Schooling
C69: Child Support / Spousal maintenance
C70: Rent / Board
C71: ="WARNING - "&IF(D65<D66,"Household 1 ","")&IF(E65<E66,"Household 2 ","")&IF(F65<F66,"Household 3 ","")&IF(G65<G66,"Household 4 ","")&"declared living expenses are below benchmark. Detailed review of living expenses required" -> WARNING - declared living expenses are below benchmark. Detailed review of living expenses required
C72: Total Living Expenses | G72: =SUM(D67:G67) -> 0
C73: Rent, Board & Child Support | G73: =SUM(D68:G70) -> 0
C74: Total Expenses | G74: =G72+G73 -> 0
C76: Total Income Available | G76: =G52-G74 -> 0
C79: Less Existing Commitments | D79: Debt / Limit | E79: Monthly Pmt
C80: Credit Card (Limit not debt) | E80: =D80*0.0383 -> 0
C93: Total Existing Commitments | G93: =SUM(E80:E91) -> 0
C94: Existing Commitments Sensitivity | G94: =SUM(D81:D91)/12*2.25% -> 0
F95: Total Stressed Commitments | G95: =SUM(G93:G94) -> 0
F96: Existing Commitments Sensitivity(Non-Coded) | G96: =SUM(D82:D91)/12*RepayCalculator!B6 -> 0
C97: Total Stressed Commitments(Non-Coded) | G97: =SUM(G95:G96) -> 0
G99: Summary | P99: =G37+G47+G48-G74 -> 0
C100: Result - Must Be Positive | G100: =G76-G95-N14 -> 0 | P100: =G16+G97 -> 0
C101: For Coded loan | G101: =IF(AND(G100>0),"PASS","FAIL") -> FAIL | P101: =P99/P100 -> 
C103: Interest Coverage Ratio | G103: =+S103/S104 ->  | P103: EBIAT (earnings before interest after taxes) | S103: =G51 -> 0
F104: For Non-Coded loan | G104: =IF(AND(G103>1.75),"PASS","FAIL") ->  | P104: Annual Interest Expense (unstressed) | S104: =(SUM(D16:F16)+SUM(D82:D91)*RepayCalculator!B6/12+E80)*12 -> 0
F105: Stressed Interest Coverage Ratio | G105: =+S103/S105 ->  | P105: Annual Interest Expense (stressed) | S105: =(SUM(D16:F16)+SUM(D82:D91)*RepayCalculator!B8/12+E80)*12 -> 0
C107: DTI | G107: =(SUM(D80:D91)+SUM(D7:I7))/G51 ->  | P107: =((G76-G93-G94)/(D10+1.7%)*12) -> 0
F108: NDI Ratio (NDI Ratio must be at least 1.001:1) | G108: =G52/(G95+N14+G74) -> 
C109: =IFERROR(IF(OR(G107>6,G100<500),"Supplementary supporting documents are required: "&" "& "- 3 months bank account statements showing regular salary credits OR - Income statement from ATO (via MyGov) confirming Previous FY and Current YTD income. Screenshot acceptable to support current income figure.",""),"") -> 
C111: Serviceability | G111: =IF(AND(G100>0,G108>1.001),"Pass","Fail") -> 
C112: Maximum Loan Available - Principal & Interest loans only | G112: =IF(OR(E7>0,F7>0),"N/A - Multiple loans",IF(D6="Principal & Interest",FLOOR(-PV((D13)/12,(D8-D9)*12,(G76-G95),0,0),100),"N/A")) -> N/A

Sheet HEM (hidden)
D4: "HEM Table 1" equivalent: by Income Level and Residency
F5: BASED ON PREDICTED VALUES FROM THE QUANTILE REGRESSIONS | P5: 2025Q3
H6: Smoothed HEM
B7: Column for lookup | C7: 2 | D7: 3 | E7: 4 | F7: 5 | G7: 6 | H7: 7 | I7: 8 | J7: 9 | K7: 10 | L7: 11 | M7: 12 | N7: 13 | O7: 14 | P7: 15
F8: Total current gross HH income from all sources (measured in current dollars)
C9: -9999999999 | D9: 27000 | E9: 40000 | F9: 53000 | G9: 66000 | H9: 80000 | I9: 106000 | J9: 133000 | K9: 160000 | L9: 186000 | M9: 213000 | N9: 266000 | O9: 332000 | P9: 399000
C10: or less | D10: to | E10: to | F10: to | G10: to | H10: to | I10: to | J10: to | K10: to | L10: to | M10: to | N10: to | O10: to | P10: to
D11: 40000 | E11: 53000 | F11: 66000 | G11: 80000 | H11: 106000 | I11: 133000 | J11: 160000 | K11: 186000 | L11: 213000 | M11: 266000 | N11: 332000 | O11: 399000 | P11: 665000
B12: Australia
B13: Couple with 0 children | C13: 607.032201 | D13: 607.032201 | E13: 621.2558709 | F13: 644.6483946 | G13: 688.9552094 | H13: 748.2747349 | I13: 836.188492 | J13: 912.0616145 | K13: 992.8160417 | L13: 1045.904396 | M13: 1106.954555 | N13: 1230.684373 | O13: 1397.045429 | P13: 1418.565649
B14: Couple with 1 children | C14: 711.6057496 | D14: 711.6057496 | E14: 711.6057496 | F14: 734.9426398 | G14: 779.1440827 | H14: 838.3225297 | I14: 926.0272056 | J14: 1001.719884 | K14: 1082.282259 | L14: 1135.244356 | M14: 1196.149323 | N14: 1319.58488 | O14: 1485.550288 | P14: 1507.019328
B15: Couple with 2 children | C15: 784.6985268 | D15: 784.6985268 | E15: 784.6985268 | F15: 808.0527174 | G15: 852.2869263 | H15: 911.5092434 | I15: 999.278935 | J15: 1075.027724 | K15: 1155.64982 | L15: 1208.651177 | M15: 1269.601294 | N15: 1393.128353 | O15: 1559.216794 | P15: 1580.701749
B16: Couple with 3 children | C16: 861.8989344 | D16: 861.8989344 | E16: 861.8989344 | F16: 861.8989344 | G16: 905.8447956 | H16: 964.6810637 | I16: 1051.878613 | J16: 1127.133621 | K16: 1207.230168 | L16: 1259.886025 | M16: 1320.43883 | N16: 1443.160657 | O16: 1608.166422 | P16: 1629.511323
B17: Couple with 4 children | C17: =D17 -> 915.7451513 | D17: =E17 -> 915.7451513 | E17: =F17 -> 915.7451513 | F17: =F16+(F16-F15) -> 915.7451513 | G17: =G16+(G16-G15) -> 959.4026649 | H17: 1017.852884 | I17: 1104.478292 | J17: 1179.239518 | K17: 1258.810516 | L17: 1311.120872 | M17: 1371.276366 | N17: 1493.192961 | O17: 1657.116051 | P17: 1678.320897
B18: Couple with 5 children | C18: =C17+(C17-C16) -> 969.5913682 | D18: 969.5913682 | E18: 969.5913682 | F18: 969.5913682 | G18: =G17+(G17-G16) -> 1012.960534 | H18: 1071.024704 | I18: 1157.07797 | J18: 1231.345414 | K18: 1310.390864 | L18: =L17+(L17-L16) -> 1362.35572 | M18: 1422.113902 | N18: 1543.225265 | O18: 1706.065679 | P18: 1727.130471
B19: Couple with 6 children | C19: 1023.437585 | D19: 1023.437585 | E19: 1023.437585 | F19: 1023.437585 | G19: 1066.518403 | H19: 1124.196525 | I19: 1209.677648 | J19: 1283.451311 | K19: 1361.971212 | L19: 1413.590568 | M19: 1472.951438 | N19: 1593.257569 | O19: 1755.015307 | P19: =P18+(P18-P17) -> 1775.940045
B20: Couple with 7 children | C20: 1077.283802 | D20: 1077.283802 | E20: 1077.283802 | F20: 1077.283802 | G20: 1120.076273 | H20: 1177.368345 | I20: 1262.277326 | J20: 1335.557207 | K20: 1413.55156 | L20: 1464.825415 | M20: 1523.788974 | N20: 1643.289873 | O20: 1803.964936 | P20: 1824.749619
B21: Couple with 8 children | C21: 1131.130019 | D21: 1131.130019 | E21: 1131.130019 | F21: 1131.130019 | G21: 1173.634142 | H21: 1230.540165 | I21: 1314.877005 | J21: 1387.663104 | K21: 1465.131908 | L21: 1516.060263 | M21: 1574.62651 | N21: 1693.322177 | O21: 1852.914564 | P21: 1873.559193
B22: Couple with 9 children | C22: 1184.976236 | D22: 1184.976236 | E22: 1184.976236 | F22: 1184.976236 | G22: 1227.192011 | H22: 1283.711985 | I22: 1367.476683 | J22: 1439.769 | K22: 1516.712256 | L22: 1567.29511 | M22: 1625.464046 | N22: 1743.354481 | O22: 1901.864193 | P22: =P21+(P21-P20) -> 1922.368767
B23: Couple with 10 children | C23: 1238.822453 | D23: 1238.822453 | E23: 1238.822453 | F23: 1238.822453 | G23: 1280.749881 | H23: 1336.883806 | I23: 1420.076361 | J23: 1491.874897 | K23: 1568.292604 | L23: 1618.529958 | M23: 1676.301582 | N23: 1793.386785 | O23: 1950.813821 | P23: 1971.17834
B24: Single with 0 children | C24: 315.1476633 | D24: 331.8969906 | E24: 346.1173941 | F24: 369.5045454 | G24: 413.8011837 | H24: 473.107086 | I24: 561.0006517 | J24: 636.8563492 | K24: 717.5922303 | L24: 770.6683923 | M24: 831.70453 | N24: 955.4059311 | O24: 1121.728781 | P24: 1143.244058
B25: Single with 1 children | C25: 434.5845759 | D25: 434.5845759 | E25: 448.7683425 | F25: 472.0952355 | G25: 516.2777474 | H25: 575.4308489 | I25: 663.0979598 | J25: 738.7582174 | K25: 819.2860884 | L25: 872.2254998 | M25: 933.1043801 | N25: 1056.487068 | O25: 1222.381393 | P25: 1243.841235
B26: Single with 2 children | C26: 550.4643669 | D26: 550.4643669 | E26: 564.6882632 | F26: 588.0811544 | G26: 632.3886696 | H26: 691.7091351 | I26: 779.6242798 | J26: 855.4986008 | K26: 936.2543045 | L26: 989.3435015 | M26: 1050.394622 | N26: 1174.126398 | O26: 1340.490085 | P26: 1362.010643
B27: Single with 3 children | C27: 680.608184 | D27: 680.608184 | E27: 680.608184 | F27: 704.0670733 | G27: 748.4995918 | H27: 807.9874213 | I27: 896.1505998 | J27: 972.2389843 | K27: 1053.222521 | L27: 1106.461503 | M27: 1167.684864 | N27: 1291.765728 | O27: 1458.598778 | P27: 1480.18005
B28: Single with 4 children | C28: =D28 -> 796.5281047 | D28: =E28 -> 796.5281047 | E28: =E27+(E27-E26) -> 796.5281047 | F28: 820.0529921 | G28: 864.610514 | H28: 924.2657075 | I28: 1012.67692 | J28: 1088.979368 | K28: 1170.190737 | L28: 1223.579505 | M28: 1284.975106 | N28: 1409.405058 | O28: =O27+(O27-O26) -> 1576.707471 | P28: =P27+(P27-P26) -> 1598.349457
B29: Single with 5 children | C29: =D29 -> 912.4480254 | D29: 912.4480254 | E29: 912.4480254 | F29: 936.038911 | G29: 980.7214362 | H29: 1040.543994 | I29: 1129.20324 | J29: 1205.719751 | K29: 1287.158953 | L29: 1340.697506 | M29: 1402.265348 | N29: 1527.044387 | O29: 1694.816164 | P29: 1716.518865
B30: Single with 6 children | C30: 1028.367946 | D30: 1028.367946 | E30: 1028.367946 | F30: 1052.02483 | G30: 1096.832358 | H30: 1156.82228 | I30: 1245.72956 | J30: 1322.460135 | K30: 1404.127169 | L30: 1457.815508 | M30: 1519.55559 | N30: 1644.683717 | O30: 1812.924857 | P30: 1834.688272
B31: Single with 7 children | C31: 1144.287867 | D31: 1144.287867 | E31: 1144.287867 | F31: 1168.010749 | G31: 1212.943281 | H31: 1273.100566 | I31: 1362.25588 | J31: 1439.200518 | K31: 1521.095385 | L31: 1574.93351 | M31: 1636.845832 | N31: 1762.323047 | O31: 1931.033549 | P31: 1952.85768
B32: Single with 8 children | C32: 1260.207787 | D32: 1260.207787 | E32: 1260.207787 | F32: 1283.996668 | G32: 1329.054203 | H32: 1389.378852 | I32: 1478.7822 | J32: 1555.940902 | K32: 1638.063601 | L32: 1692.051511 | M32: 1754.136074 | N32: 1879.962377 | O32: 2049.142242 | P32: =P31+(P31-P30) -> 2071.027087
B33: Single with 9 children | C33: 1376.127708 | D33: 1376.127708 | E33: 1376.127708 | F33: 1399.982586 | G33: 1445.165125 | H33: 1505.657139 | I33: 1595.30852 | J33: 1672.681285 | K33: 1755.031817 | L33: 1809.169513 | M33: 1871.426316 | N33: 1997.601707 | O33: 2167.250935 | P33: 2189.196494
B34: Single with 10 children | C34: 1492.047629 | D34: 1492.047629 | E34: 1492.047629 | F34: 1515.968505 | G34: 1561.276047 | H34: 1621.935425 | I34: 1711.83484 | J34: 1789.421668 | K34: 1872.000033 | L34: 1926.287515 | M34: 1988.716557 | N34: 2115.241037 | O34: 2285.359628 | P34: 2307.365902
B45: "HEM Table 1" equivalent
B46: BASED ON RAW DATA
B47: Smoothed HEM
B48: WORKFORCE STATUS HEAD NOT USED | C48: Including Housing $ per week | D48: Other than Housing S per week
B49: Couple | C49: - | D49: 716.9967788
B50: Couple with 1 child | C50: - | D50: 949.7435577
B51: Couple with 2 children | C51: - | D51: 999.5489904 | I51: $ per Week | J51: $ per Month
B52: Couple with 3 children | C52: - | D52: 1096.134471 | H52: Single | J52: =I52*52/12 -> 0
H53: Couples | J53: =I53*52/12 -> 0
B54: Single person | C54: - | D54: 329.9645673 | H54: Children | J54: =(I54-I52)*52/12 -> 0
B55: Single parent with 1 child | C55: - | D55: 460.2291827
B56: Single parent with 2 children | C56: - | D56: 544.0472596
B57: Single parent with 3 children | C57: - | D57: 627.8653365
B68: Monthly HEM
B71: Column for lookup | C71: 2 | D71: 3 | E71: 4 | F71: 5 | G71: 6 | H71: 7 | I71: 8 | J71: 9 | K71: 10
F72: Total current gross HH income from all sources (measured in current dollars)
C73: 0 | D73: 22000 | E73: 32000 | F73: 43000 | G73: 54000 | H73: 65000 | I73: 86000 | J73: 108000 | K73: 129000
C74: or less | D74: to | E74: to | F74: to | G74: to | H74: to | I74: to | J74: to | K74: to
D75: 32000 | E75: 43000 | F75: 54000 | G75: 65000 | H75: 86000 | I75: 108000 | J75: 129000 | K75: 151000
B76: Australia
B77: Couple with 0 children | C77: =C13*52/12 -> 2630.472871 | D77: =D13*52/12 -> 2630.472871 | E77: 2692.108774 | F77: 2793.476377 | G77: 2985.472574 | H77: 3242.523851 | I77: 3623.483465 | J77: 3952.266996 | K77: 4302.202848
B78: Couple with 1 children | C78: =C14*52/12 -> 3083.624915 | D78: 3083.624915 | E78: 3083.624915 | F78: 3184.751439 | G78: 3376.291025 | H78: 3632.730962 | I78: 4012.784558 | J78: 4340.786163 | K78: 4689.889789
B79: Couple with 2 children | C79: =C15*52/12 -> 3400.360283 | D79: 3400.360283 | E79: 3400.360283 | F79: 3501.561776 | G79: 3693.243347 | H79: 3949.873388 | I79: 4330.208718 | J79: 4658.453472 | K79: 5007.815888
B80: Couple with 3 children | C80: =C16*52/12 -> 3734.895382 | D80: 3734.895382 | E80: 3734.895382 | F80: 3734.895382 | G80: 3925.327448 | H80: 4180.284609 | I80: 4558.140658 | J80: 4884.245691 | K80: 5231.330729
B81: Couple with 4 children | C81: =C17*52/12 -> 3968.228989 | D81: 3968.228989 | E81: 3968.228989 | F81: 3968.228989 | G81: 4157.411548 | H81: 4410.695831 | I81: 4786.072597 | J81: 5110.03791 | K81: 5454.84557
B82: Couple with 5 children | C82: =C18*52/12 -> 4201.562595 | D82: 4201.562595 | E82: 4201.562595 | F82: 4201.562595 | G82: 4389.495648 | H82: 4641.107052 | I82: 5014.004536 | J82: 5335.830128 | K82: 5678.360411
B83: Couple with 6 children | C83: =C19*52/12 -> 4434.896202 | D83: 4434.896202 | E83: 4434.896202 | F83: 4434.896202 | G83: 4621.579748 | H83: 4871.518273 | I83: 5241.936475 | J83: 5561.622347 | K83: 5901.875253
B84: Couple with 7 children | C84: =C20*52/12 -> 4668.229809 | D84: 4668.229809 | E84: 4668.229809 | F84: 4668.229809 | G84: 4853.663848 | H84: 5101.929494 | I84: 5469.868414 | J84: 5787.414565 | K84: 6125.390094
B85: Couple with 8 children | C85: =C21*52/12 -> 4901.563415 | D85: 4901.563415 | E85: 4901.563415 | F85: 4901.563415 | G85: 5085.747949 | H85: 5332.340715 | I85: 5697.800353 | J85: 6013.206784 | K85: 6348.904935
B86: Couple with 9 children | C86: =C22*52/12 -> 5134.897022 | D86: 5134.897022 | E86: 5134.897022 | F86: 5134.897022 | G86: 5317.832049 | H86: 5562.751937 | I86: 5925.732293 | J86: 6238.999002 | K86: 6572.419776
B87: Couple with 10 children | C87: =C23*52/12 -> 5368.230629 | D87: 5368.230629 | E87: 5368.230629 | F87: 5368.230629 | G87: 5549.916149 | H87: 5793.163158 | I87: 6153.664232 | J87: 6464.791221 | K87: 6795.934617
B89: Single with 0 children | C89: =C24*52/12 -> 1365.639874 | D89: 1438.220293 | E89: 1499.842041 | F89: 1601.186364 | G89: 1793.138463 | H89: 2050.130706 | I89: 2431.002824 | J89: 2759.710846 | K89: 3109.566331
B90: Single with 1 children | C90: =C25*52/12 -> 1883.199829 | D90: 1883.199829 | E90: 1944.662818 | F90: 2045.746021 | G90: 2237.203572 | H90: 2493.533678 | I90: 2873.424492 | J90: 3201.285609 | K90: 3550.239716
B91: Single with 2 children | C91: =C26*52/12 -> 2385.34559 | D91: 2385.34559 | E91: 2446.982474 | F91: 2548.351669 | G91: 2740.350902 | H91: 2997.406252 | I91: 3378.371879 | J91: 3707.160604 | K91: 4057.101986
B92: Single with 3 children | C92: =C27*52/12 -> 2949.30213 | D92: 2949.30213 | E92: 2949.30213 | F92: 3050.957317 | G92: 3243.498231 | H92: 3501.278826 | I92: 3883.319266 | J92: 4213.035599 | K92: 4563.964256
B93: Single with 4 children | C93: =C28*52/12 -> 3451.621787 | D93: 3451.621787 | E93: 3451.621787 | F93: 3553.562966 | G93: 3746.645561 | H93: 4005.151399 | I93: 4388.266652 | J93: 4718.910594 | K93: 5070.826526
B94: Single with 5 children | C94: =C29*52/12 -> 3953.941443 | D94: 3953.941443 | E94: 3953.941443 | F94: 4056.168614 | G94: 4249.79289 | H94: 4509.023973 | I94: 4893.214039 | J94: 5224.785589 | K94: 5577.688795
B95: Single with 6 children | C95: =C30*52/12 -> 4456.2611 | D95: 4456.2611 | E95: 4456.2611 | F95: 4558.774263 | G95: 4752.94022 | H95: 5012.896547 | I95: 5398.161425 | J95: 5730.660583 | K95: 6084.551065
B96: Single with 7 children | C96: =C31*52/12 -> 4958.580756 | D96: 4958.580756 | E96: 4958.580756 | F96: 5061.379911 | G96: 5256.087549 | H96: 5516.76912 | I96: 5903.108812 | J96: 6236.535578 | K96: 6591.413335
B97: Single with 8 children | C97: =C32*52/12 -> 5460.900412 | D97: 5460.900412 | E97: 5460.900412 | F97: 5563.985559 | G97: 5759.234879 | H97: 6020.641694 | I97: 6408.056199 | J97: 6742.410573 | K97: 7098.275605
B98: Single with 9 children | C98: =C33*52/12 -> 5963.220069 | D98: 5963.220069 | E98: 5963.220069 | F98: 6066.591208 | G98: 6262.382209 | H98: 6524.514268 | I98: 6913.003585 | J98: 7248.285568 | K98: 7605.137874
B99: Single with 10 children | C99: =C34*52/12 -> 6465.539725 | D99: 6465.539725 | E99: 6465.539725 | F99: 6569.196856 | G99: 6765.529538 | H99: 7028.386841 | I99: 7417.950972 | J99: 7754.160563 | K99: 8112.000144

Sheet Change Log (hidden)
A1: Change Log
A2: Calculator | B2: Date | C2: Change
A3: Serviceability Calculator | B3: 2021-09-06 | C3: Assessment rate amended floor - 5.29% Assessment rate amended buffer - 2.50%
A4: Lease Doc Calculator | B4: 2021-06-06 | C4: Added with 1.75 times ICR required
A5: Serviceability Calculator | B5: 2021-10-11 | C5: NDI ratio > 1.00 pass (was 1.01)
A6: Serviceability Calculator | B6: 2022-06-06 | C6: Add Genworth DTI® Change to show both code and non-coded result update HEM table Q1 2022 Assessment rate buffer change to -3.00% (Coded) Move Insurance to standard living expense to compare with HEM
A7: SMSF/Non-Coded | B7: 2022-06-17 | C7: Assessment rate buffer change to -3.00%
A8: Serviceability Calculator | B8: 2023-03-03 | C8: update HEM table Q4 2022 Assessment rate buffer change to - 2.50% Existing commitment stressed change to - 2.25% Result to display NSI DTI NDIR Debug self-employed worksheet Add function for rebranding
A9: SME Servicing Calculator | B9: 2023-03-03 | C9: Introduce SME Servicing Calculator
A10: SMSF/Non-Coded | B10: 2023-03-03 | C10: Assessment rate buffer change to -2.25% Debug Verify Data button
A11: Serviceability Calculator | B11: 2023-03-23 | C11: Assessment rate buffer change to -3.00% Add result row
A12: SMSF | B12: 2023-03-27 | C12: Assessment rate buffer change to -2.50% Existing commitment stressed change to - 2.25%
A13: SME Servicing Calculator | B13: 2023-03-27 | C13: Assessment rate buffer change to -2.50%
A14: Serviceability Calculator | B14: 2023-09-04 | C14: Update HEM table Q2 2023 Assessment rate buffer change to -2.50%
A15: SME Servicing Calculator | B15: 2023-09-04 | C15: Assessment rate buffer change to -2.00%
A16: SMSF | B16: 2023-09-04 | C16: Assessment rate buffer change to -2.00% Allow 6 members in verify data
A17: Lease doc | B17: 2023-09-04 | C17: ICR change to 1.30
A18: YTD Cal | B18: 2023-09-04 | C18: super contribution to 11%
A19: Serviceability Calculator | B19: 2024-05-21 | C19: Update HEM table Q1 2024 default no of loan to 4 , before no of loan is 3 - include the ability to max 6
A20: SMSF | B20: 2024-05-21 | C20: Assessment rate amended floor - 5.50%
A21: Serviceability Calculator | B21: 2024-05-21 | C21: default no of loan to 4 , before no of loan is 3 - include the ability to max 6
A22: SMSF | B22: 2024-06-25 | C22: Change Mandatory contributions change 27,500 to 30,000 Remove other income from the fund Change the rule of liquidity test - (< 3 * months repayment) Net Asset Test only fail when it is less than 0 Update Tax Rate -ATO 24/25 Remove additional contributions from 15% tax as the input is after tax.
A23: Serviceability Calculator | B23: 2024-06-25 | C23: Update Tax Rate -ATO 24/25
A24: Serviceability Calculator | B24: 2024-10-03 | C24: Update HEM table Q2 2024 LITO & LIMTO removed (App2 to App4) Assessment rate buffer change to 2.00% allow negative income to be entered clear living expense when change household
A25: SMSF | B25: 2024-10-03 | C25: fix taxable income with SMSF member >= 3 Delete Health and Personal Insurance from living expense
A26: SME Servicing Calculator | B26: 2024-10-03 | C26: Update HEM table Q2 2024 allow negative income to be entered add self-employed worksheet and Rental & Gearing worksheet clear living expense when change household
A27: Serviceability Calculator | B27: 2025-01-28 | C27: Update HEM table Q3 2024
A28: SME Servicing Calculator | B28: 2025-01-28 | C28: Update HEM table Q3 2024
A29: Year To Date Cal | B29: 2025-01-28 | C29: Casual selection to haircut the annualised income
A30: SMSF | B30: 2025-01-28 | C30: Fix DTI showing issue
A31: Serviceability Calculator | B31: 2025-05-15 | C31: Update HEM table Q1 2025 Allow 1 year loss for company
A32: SME Servicing Calculator | B32: 2025-05-15 | C32: Update HEM table Q1 2025
A33: SMSF | B33: 2025-05-15 | C33: Add IO term Update liquidity test to use actual repayment
A34: Serviceability Calculator | B34: 2025-08-28 | C34: Update HEM table Q2 2025 Change Household will clean Household expense
A35: SME Servicing Calculator | B35: 2025-08-28 | C35: Update HEM table Q2 2025 Change Household will clean Household expense
A36: Serviceability Calculator | B36: 2025-11-20 | C36: Update HEM table Q3 2025 Up to 10 loans
A37: SME Servicing Calculator | B37: 2025-11-20 | C37: Update HEM table Q3 2025 Up to 10 loans

Sheet SME Servicing Calculator
C2: SME Servicing Calculator V2.43 | O2: Date:
C4: New Loan Commitment(s) | D4: Loan 1 | E4: Loan 2 | F4: Loan 3
C5: Application No
C6: Repayment Type | D6: =IF(D8=0,"",IF(D8>D9,"Principal & Interest","Interest Only")) ->  | E6: =IF(E8=0,"",IF(E8>E9,"Principal & Interest","Interest Only")) ->  | F6: =IF(F8=0,"",IF(F8>F9,"Principal & Interest","Interest Only")) -> 
C7: New Loan Amount
C8: New Loan Term (Years)
C9: Interest Only Term (Years)
C10: Interest Rate of New Loan
C11: New Monthly Interest Amount | D11: =D7*D10/12 -> 0 | E11: =E7*E10/12 -> 0 | F11: =F7*F10/12 -> 0
C12: New Monthly Loan Repayment/s | D12: =IFERROR(IF(D$6="",0,(IF(D$6="Principal & Interest",-PMT(D$10/12,(D$8-D$9)*12,D$7,0,0),((D$7*D$10)/12)))),0) -> 0 | E12: =IFERROR(IF(E$6="",0,(IF(E$6="Principal & Interest",-PMT(E$10/12,(E$8-E$9)*12,E$7,0,0),((E$7*E$10)/12)))),0) -> 0 | F12: =IFERROR(IF(F$6="",0,(IF(F$6="Principal & Interest",-PMT(F$10/12,(F$8-F$9)*12,F$7,0,0),((F$7*F$10)/12)))),0) -> 0 | G12: =SUM(D12:F12) -> 0
C13: Loan Assessment Rate | D13: =IF(D10+RepayCalculator!$B$6>RepayCalculator!$B$8,D10+RepayCalculator!$B$6,RepayCalculator!$B$8) -> 0.0529 | E13: =IF(E10+RepayCalculator!$B$6>RepayCalculator!$B$8,E10+RepayCalculator!$B$6,RepayCalculator!$B$8) -> 0.0529 | F13: =IF(F10+RepayCalculator!$B$6>RepayCalculator!$B$8,F10+RepayCalculator!$B$6,RepayCalculator!$B$8) -> 0.0529 | G13: =G14-G12 -> 0
C14: Stressed Loan Payments | D14: =IFERROR(IF(D$6="",0,(IF(D$6="Principal & Interest",-PMT(D$13/12,(D$8-D$9)*12,D$7,0,0),((D$7*D$13)/12)))),0) -> 0 | E14: =IFERROR(IF(E$6="",0,(IF(E$6="Principal & Interest",-PMT(E$13/12,(E$8-E$9)*12,E$7,0,0),((E$7*E$13)/12)))),0) -> 0 | F14: =IFERROR(IF(F$6="",0,(IF(F$6="Principal & Interest",-PMT(F$13/12,(F$8-F$9)*12,F$7,0,0),((F$7*F$13)/12)))),0) -> 0 | G14: =SUM(D14:F14) -> 0
C15: Stress Rate for ICR | D15: =IF(D10+RepayCalculator!$B$6>RepayCalculator!$B$8,D10+RepayCalculator!$B$6,RepayCalculator!$B$8) -> 0.0529 | E15: =IF(E10+RepayCalculator!$B$6>RepayCalculator!$B$8,E10+RepayCalculator!$B$6,RepayCalculator!$B$8) -> 0.0529 | F15: =IF(F10+RepayCalculator!$B$6>RepayCalculator!$B$8,F10+RepayCalculator!$B$6,RepayCalculator!$B$8) -> 0.0529 | G15: =G16-G12 -> 0
C16: Stressed monthly Amount for ICR | D16: =D7*D15/12 -> 0 | E16: =E7*E15/12 -> 0 | F16: =F7*F15/12 -> 0 | G16: =SUM(D16:F16) -> 0
C19: Household Status | D19: Applicant Name | E19: Household Number | F19: Status | G19: Dependents
C20: Applicant 1
C21: Applicant 2
C22: Applicant 3
C23: Applicant 4
C25: HEM Status | E25: Status | F25: Dependents | I25: Household HEM | O25: Long Description | P25: Income for HEM
C26: Household 1 | E26: =_xlfn.IFNA(VLOOKUP(C26,$E$20:$F$23,2,FALSE),"N/A") -> N/A | F26: =SUMIF($E$20:$E$23,C26,$G$20:$G$23) -> 0 | H26: =LOOKUP(P26,HEM!$C$9:$P$9,HEM!$C$7:$P$7) -> 2 | I26: =_xlfn.IFNA(VLOOKUP(O26,HEM!$B$12:$P$34,H26,FALSE),0)*52/12 -> 0 | O26: =E26&" with "&F26&" children" -> N/A with 0 children | P26: =SUMIF($N$33:$N$36,C26,$D$33:$D$36)+SUMIF($N$40:$N$43,C26,$P$40:$P$43)+SUMIF($N$33:$N$36,C26,$E$33:$E$36) -> 0
C27: Household 2 | E27: =_xlfn.IFNA(VLOOKUP(C27,$E$20:$F$23,2,FALSE),"N/A") -> N/A | F27: =SUMIF($E$20:$E$23,C27,$G$20:$G$23) -> 0 | H27: =LOOKUP(P27,HEM!$C$9:$P$9,HEM!$C$7:$P$7) -> 2 | I27: =_xlfn.IFNA(VLOOKUP(O27,HEM!$B$12:$P$34,H27,FALSE),0)*52/12 -> 0 | O27: =E27&" with "&F27&" children" -> N/A with 0 children | P27: =SUMIF($N$33:$N$36,C27,$D$33:$D$36)+SUMIF($N$40:$N$43,C27,$P$40:$P$43)+SUMIF($N$33:$N$36,C27,$E$33:$E$36) -> 0
C28: Household 3 | E28: =_xlfn.IFNA(VLOOKUP(C28,$E$20:$F$23,2,FALSE),"N/A") -> N/A | F28: =SUMIF($E$20:$E$23,C28,$G$20:$G$23) -> 0 | H28: =LOOKUP(P28,HEM!$C$9:$P$9,HEM!$C$7:$P$7) -> 2 | I28: =_xlfn.IFNA(VLOOKUP(O28,HEM!$B$12:$P$34,H28,FALSE),0)*52/12 -> 0 | O28: =E28&" with "&F28&" children" -> N/A with 0 children | P28: =SUMIF($N$33:$N$36,C28,$D$33:$D$36)+SUMIF($N$40:$N$43,C28,$P$40:$P$43)+SUMIF($N$33:$N$36,C28,$E$33:$E$36) -> 0
C29: Household 4 | E29: =_xlfn.IFNA(VLOOKUP(C29,$E$20:$F$23,2,FALSE),"N/A") -> N/A | F29: =SUMIF($E$20:$E$23,C29,$G$20:$G$23) -> 0 | H29: =LOOKUP(P29,HEM!$C$9:$P$9,HEM!$C$7:$P$7) -> 2 | I29: =_xlfn.IFNA(VLOOKUP(O29,HEM!$B$12:$P$34,H29,FALSE),0)*52/12 -> 0 | O29: =E29&" with "&F29&" children" -> N/A with 0 children | P29: =SUMIF($N$33:$N$36,C29,$D$33:$D$36)+SUMIF($N$40:$N$43,C29,$P$40:$P$43)+SUMIF($N$33:$N$36,C29,$E$33:$E$36) -> 0
C30: Total | I30: =SUM(I26:I29) -> 0
C32: Income - Personal | D32: Gross Taxable Income | E32: Gross Non Taxable Income | F32: Gross Rental Income | G32: Net Monthly Income | O32: Gross Income - Taxable | P32: Gross Income - Non-taxable
C33: Applicant 1 - Personal Income | F33: ='Rental & Gearing (SME)'!I31 -> 0 | G33: ='Scales Tax'!$J$14+(P33/12) -> 0 | N33: =E20 -> 0 | O33: =D33+P40 -> 0 | P33: =(D40*12)+E33 -> 0
C34: Applicant 2 - Personal Income | F34: ='Rental & Gearing (SME)'!I32 -> 0 | G34: ='Scales Tax'!$J$27+(P34/12) -> 0 | N34: =E21 -> 0 | O34: =D34+P41 -> 0 | P34: =(D41*12)+E34 -> 0
C35: Applicant 3 - Personal Income | F35: ='Rental & Gearing (SME)'!I33 -> 0 | G35: ='Scales Tax'!$J$40+(P35/12) -> 0 | N35: =E22 -> 0 | O35: =D35+P42 -> 0 | P35: =(D42*12)+E35 -> 0
C36: Applicant 4 - Personal Income | F36: ='Rental & Gearing (SME)'!I34 -> 0 | G36: ='Scales Tax'!$J$53+(P36/12) -> 0 | N36: =E23 -> 0 | O36: =D36+P43 -> 0 | P36: =(D43*12)+E36 -> 0
G37: =SUM(G33:G36) -> 0 | N37: =E24 -> 0
C39: Interest on Rental Properties | D39: Monthly Interest Expense (for gearing purposes only) | O39: Gross Annual Income - less haircut | P39: Net Rental Income
C40: Applicant 1 - Interest expense on rental properties | D40: ='Rental & Gearing (SME)'!J31/12 -> 0 | N40: =E20 -> 0 | O40: ='Rental & Gearing (SME)'!AC31 -> 0 | P40: =O40-(D40*12) -> 0
C41: Applicant 2 - Interest expense on rental properties | D41: ='Rental & Gearing (SME)'!J32/12 -> 0 | N41: =E21 -> 0 | O41: ='Rental & Gearing (SME)'!AC32 -> 0 | P41: =O41-(D41*12) -> 0
C42: Applicant 3 - Interest expense on rental properties | D42: ='Rental & Gearing (SME)'!J33/12 -> 0 | N42: =E22 -> 0 | O42: ='Rental & Gearing (SME)'!AC33 -> 0 | P42: =O42-(D42*12) -> 0
C43: Applicant 4 - Interest expense on rental properties | D43: ='Rental & Gearing (SME)'!J34/12 -> 0 | N43: =E23 -> 0 | O43: ='Rental & Gearing (SME)'!AC34 -> 0 | P43: =O43-(D43*12) -> 0
I45: Total Income | J45: Company 1 Income | K45: Company 2 income
C46: Business Income | D46: Company Income | E46: Depreciation Add-back | J46: ='Self Employed Calculator (SME)'!D34 -> 0 | K46: ='Self Employed Calculator (SME)'!D66 -> 0 | L46: Applicant 1
C47: Company 1 | D47: 0 | E47: 0 | G47: ='Scales Tax'!$J$83+(P47/12) -> 0 | J47: ='Self Employed Calculator (SME)'!F34 -> 0 | K47: ='Self Employed Calculator (SME)'!F66 -> 0 | L47: Applicant 2 | O47: =J54 -> 0 | P47: =E47 -> 0
C48: Company 2 | D48: 0 | E48: 0 | G48: =IF(_GTI_ST="Sole Trade Income","",'Scales Tax'!$J$90+(P48/12)) -> 0 | J48: ='Self Employed Calculator (SME)'!H34 -> 0 | K48: ='Self Employed Calculator (SME)'!H66 -> 0 | L48: Applicant 3 | O48: =J55 -> 0 | P48: =E48 -> 0
J49: ='Self Employed Calculator (SME)'!J34 -> 0 | K49: ='Self Employed Calculator (SME)'!J66 -> 0 | L49: Applicant 4
C51: Total Gross Income | G51: =SUM(D33:D36)+SUM(E33:E36)+SUM(D47:D48)+SUM(E47:E48)+SUM(F33:F36) -> 0
C52: Total Monthly Income | G52: =+G37+SUM(G47:G48) -> 0
J53: Company Income | K53: Depreciation Add-back | L53: =IFERROR(IF(SE1Test=1,_SE1dep,IF(SE1Test=2,_SE1depadj,0)),"") -> 
C54: Less Living Allowance | D54: Household 1 | E54: Household 2 | F54: Household 3 | G54: Household 4 | J54: =SUM(J46:J49) -> 0 | K54: ='Self Employed Calculator (SME)'!D36+'Self Employed Calculator (SME)'!F36+'Self Employed Calculator (SME)'!H36+'Self Employed Calculator (SME)'!J36 -> 0
C55: Basic Housing & Property Expense | J55: =SUM(K46:K49) -> 0 | K55: ='Self Employed Calculator (SME)'!D68+'Self Employed Calculator (SME)'!F68+'Self Employed Calculator (SME)'!H68+'Self Employed Calculator (SME)'!J68 -> 0
C56: Investment Property Costs
C57: Communication & Media
C58: Food & Groceries
C59: Recreation & Entertainment
C60: Clothing & Personal Care
C61: Medical & Health
C62: Transport
C63: Health & Personal Insurances
C64: Other Expenses
C65: Monthly Living Expenses | D65: =SUM(D55:D64) -> 0 | E65: =SUM(E55:E64) -> 0 | F65: =SUM(F55:F64) -> 0 | G65: =SUM(G55:G64) -> 0
C66: Benchmark Living Expenses | D66: =_xlfn.IFNA(VLOOKUP($O$26,HEM!$B$12:$P$34,$H$26,FALSE),0)*52/12 -> 0 | E66: =_xlfn.IFNA(VLOOKUP($O$27,HEM!$B$12:$P$34,$H$27,FALSE),0)*52/12 -> 0 | F66: =_xlfn.IFNA(VLOOKUP($O$28,HEM!$B$12:$P$34,$H$28,FALSE),0)*52/12 -> 0 | G66: =_xlfn.IFNA(VLOOKUP($O$29,HEM!$B$12:$P$34,$H$29,FALSE),0)*52/12 -> 0
C67: Living Expense Used (> of HEM or Actual) | D67: =IF(D66>D65,D66,D65) -> 0 | E67: =IF(E66>E65,E66,E65) -> 0 | F67: =IF(F66>F65,F66,F65) -> 0 | G67: =IF(G66>G65,G66,G65) -> 0
C68: Private Schooling
C69: Child Support / Spousal maintenance
C70: Rent / Board
C71: ="WARNING - "&IF(D65<D66,"Household 1 ","")&IF(E65<E66,"Household 2 ","")&IF(F65<F66,"Household 3 ","")&IF(G65<G66,"Household 4 ","")&"declared living expenses are below benchmark. Detailed review of living expenses required" -> WARNING - declared living expenses are below benchmark. Detailed review of living expenses required
C72: Total Living Expenses | G72: =SUM(D67:G67) -> 0
C73: Rent, Board & Child Support | G73: =SUM(D68:G70) -> 0
C74: Total Expenses | G74: =G72+G73 -> 0
C76: Total Income Available | G76: =G52-G74 -> 0
C79: Less Existing Commitments | D79: Debt / Limit | E79: Monthly Pmt
C80: Credit Card (Limit not debt) | E80: =D80*0.0383 -> 0
C93: Total Existing Commitments | G93: =SUM(E80:E91) -> 0
C94: Existing Commitments Sensitivity | G94: =SUM(D81:D91)/12*2.25% -> 0
F95: Total Stressed Commitments | G95: =SUM(G93:G94) -> 0
F96: Existing Commitments Sensitivity(Non-Coded) | G96: =SUM(D81:D91)/12*RepayCalculator!B6 -> 0
C97: Total Stressed Commitments(Non-Coded) | G97: =SUM(G95:G96) -> 0
G99: Summary | I99: =G37+G47+G48-G74 -> 0
C100: Result - Must Be Positive | G100: =G76-G95-G14 -> 0 | I100: =G16+G97 -> 0
C101: For Coded loan | G101: =IF(AND(G100>0),"PASS","FAIL") -> FAIL | I101: =I99/I100 -> 
C103: Interest Coverage Ratio | G103: =+L103/L104 ->  | I103: EBIAT (earnings before interest after taxes) | L103: =G51 -> 0
F104: For Non-Coded loan | G104: =IF(AND(G103>1.75,G100>0,G108>1.001),"PASS","FAIL") ->  | I104: Annual Interest Expense (unstressed) | L104: =(SUM(D16:F16)+SUM(D81:D91)*RepayCalculator!B6/12+E80)*12 -> 0
F105: Stressed Interest Coverage Ratio | G105: =+L103/L105 ->  | I105: Annual Interest Expense (stressed) | L105: =(SUM(D16:F16)+SUM(D81:D91)*RepayCalculator!B8/12+E80)*12 -> 0
C107: DTI | G107: =(SUM(D80:D91)+SUM(D7:F7))/G51 ->  | I107: =((G76-G93-G94)/(D10+1.7%)*12) -> 0
F108: NDI Ratio (NDI Ratio must be at least 1.001:1) | G108: =G52/(G95+G14+G74) -> 
C109: =IFERROR(IF(OR(G107>6,G100<500),"Supplementary supporting documents are required: "&" "& "- 3 months bank account statements showing regular salary credits OR - Income statement from ATO (via MyGov) confirming Previous FY and Current YTD income. Screenshot acceptable to support current income figure.",""),"") -> 
C111: Maximum Loan Available - Principal & Interest loans only | G111: =IF(OR(E7>0,F7>0),"N/A - Multiple loans",IF(D6="Principal & Interest",FLOOR(-PV((D13)/12,(D8-D9)*12,(G76-G95),0,0),100),"N/A")) -> N/A

Sheet SMSF Servicing Calculator
C3: SMSF Servicing Calculator V2.43 | F3: =TODAY() -> 2025-12-04
C4: Application Details
C5: Applicant / SMSF Name | D5: Enter Name Here
C6: Loan Value | E6: Loan Term
C7: Security Value | E7: I/O Term
C8: LVR | D8: =D6/D7 ->  | E8: Interest Rate
C9: Assessment Rate | D9: =IF(G8<3.5%,5.5%,G8+RepayCalculator!B6) -> 0.055 | E9: Assessed Proposed Monthly Repayments | G9: =-PMT(D$9/12,(G6-G7)*12,D6,0,0) -> 
C11: Annual income | E11: Funds To Complete
C12: Mandatory contributions | E12: Purchase Price
C13: Additional contributions | E13: Refinance Amount
C14: Total Rental income | E14: Government Charges
C15: CMA Balance | E15: Solicitor Fees / Other Costs
C16: Other Asset Balance(Share,Term Deposit etc.) | E16: Deposit Paid
C17: Other income from the fund | E17: Total Surplus Funds | G17: =G16+D15+D16+D6-(G12+G13+G14+G15) -> 0
C19: Annual fund expenses | E19: Additional SMSF Commitment No.
C21: =IF(OR(ISBLANK(G19),G19=0,G19=1),"Existing Commitments","Existing Commitments (Existing SMSF Investment 1)") -> Existing Commitments | E21: Existing Commitments (Existing SMSF Investment 2)
C22: Property Value | E22: Property Value
C23: Other Investment loan balances | E23: Other Investment loan balances
C24: Other Investment loan Interest rate | E24: Other Investment loan Interest rate
C25: Monthly repayment | E25: Monthly repayment
C27: Existing Commitments (Existing SMSF Investment 3) | E27: Existing Commitments (Existing SMSF Investment 4)
C28: Property Value | E28: Property Value
C29: Other Investment loan balances | E29: Other Investment loan balances
C30: Other Investment loan Interest rate | E30: Other Investment loan Interest rate
C31: Monthly repayment | E31: Monthly repayment
C33: Results
C34: Total Gross Income | D34: ='Calculations breakdown'!C6 -> 0 | E34: NDI | G34: ='Calculations breakdown'!C28 -> 
C35: Less Annual fund expenses | D35: ='Calculations breakdown'!C12 -> 2000
C36: Less Investment loan interest add back | D36: =SUM('Calculations breakdown'!C7:C11) -> 0
C37: Net Annual Income | D37: ='Calculations breakdown'!C15 -> 0 | E37: NSI per month | G37: ='Calculations breakdown'!C26 -> 
C38: Less Tax | D38: ='Calculations breakdown'!C14 -> 0
C39: Annual Surplus Income | D39: ='Calculations breakdown'!C21 -> -2000 | E39: Servicebility Outcome | G39: =IF(AND(G37>41.67,G34>1),"Pass","Fail") -> 
C40: Less other commitments | D40: ='Calculations breakdown'!C16 -> 0
C41: Less fund expenses | D41: ='Calculations breakdown'!C17 -> 2000
C43: Actual Proposed Monthly Repayments | D43: ='Calculations breakdown'!D22 ->  | E43: Liquidity - Min 3 Mths Repayment | G43: =IF(G17>(D43*3),"Pass","Fail") -> 
C44: Assessed Proposed Monthly Repayments | D44: ='Calculations breakdown'!D23 ->  | E44: Net Asset Test | G44: =(D7+D22+D28+G22+G28+G17)-(D6+D23+G23+D29+G29) -> 0
C47: Personal Details
C48: Household Status | D48: Household | E48: Status | F48: Dependents (only enter once for each household)
C49: SMSF Member 1 | N49: 0
C50: SMSF Member 2
C51: SMSF Member 3
C52: SMSF Member 4
C53: SMSF Member 5
C54: SMSF Member 6
C56: HEM Status | D56: Dependents | E56: Long Description | F56: Household HEM | M56: Status | N56: Income for HEM
C57: Household 1 | D57: =SUMIF($D$49:$D$54,C57,$F$49:$F$54) -> 0 | E57: =M57&" with "&D57&" children" -> N/A with 0 children | F57: =_xlfn.IFNA(VLOOKUP(E57,HEM!$B$12:$P$34,O57,FALSE),0)*52/12 -> 0 | M57: =_xlfn.IFNA(VLOOKUP(C57,$D$49:$E$54,2,FALSE),"N/A") -> N/A | N57: =SUMIF($M$67:$M$72,C57,$D$67:$D$72)+SUMIF($M$67:$M$72,C57,$E$67:$E$72)+SUMIF($M$76:$M$81,C57,$O$76:$O$81) -> 0 | O57: =LOOKUP(N57,HEM!$C$9:$P$9,HEM!$C$7:$P$7) -> 2
C58: Household 2 | D58: =SUMIF($D$49:$D$54,C58,$F$49:$F$54) -> 0 | E58: =M58&" with "&D58&" children" -> N/A with 0 children | F58: =_xlfn.IFNA(VLOOKUP(E58,HEM!$B$12:$P$34,O58,FALSE),0)*52/12 -> 0 | M58: =_xlfn.IFNA(VLOOKUP(C58,$D$49:$E$54,2,FALSE),"N/A") -> N/A | N58: 0 | O58: =LOOKUP(N58,HEM!$C$9:$P$9,HEM!$C$7:$P$7) -> 2
C59: Household 3 | D59: =SUMIF($D$49:$D$54,C59,$F$49:$F$54) -> 0 | E59: =M59&" with "&D59&" children" -> N/A with 0 children | F59: =_xlfn.IFNA(VLOOKUP(E59,HEM!$B$12:$P$34,O59,FALSE),0)*52/12 -> 0 | M59: =_xlfn.IFNA(VLOOKUP(C59,$D$49:$E$54,2,FALSE),"N/A") -> N/A | N59: 0 | O59: =LOOKUP(N59,HEM!$C$9:$P$9,HEM!$C$7:$P$7) -> 2
C60: Household 4 | D60: =SUMIF($D$49:$D$54,C60,$F$49:$F$54) -> 0 | E60: =M60&" with "&D60&" children" -> N/A with 0 children | F60: =_xlfn.IFNA(VLOOKUP(E60,HEM!$B$12:$P$34,O60,FALSE),0)*52/12 -> 0 | M60: =_xlfn.IFNA(VLOOKUP(C60,$D$49:$E$54,2,FALSE),"N/A") -> N/A | N60: 0 | O60: =LOOKUP(N60,HEM!$C$9:$P$9,HEM!$C$7:$P$7) -> 2
C61: Household 5 | D61: 0 | E61: N/A with 0 children | F61: =_xlfn.IFNA(VLOOKUP(E61,HEM!$B$12:$P$34,O61,FALSE),0)*52/12 -> 0 | M61: N/A | N61: 0 | O61: =LOOKUP(N61,HEM!$C$9:$P$9,HEM!$C$7:$P$7) -> 2
C62: Household 6 | D62: 0 | E62: N/A with 0 children | F62: =_xlfn.IFNA(VLOOKUP(E62,HEM!$B$12:$P$34,O62,FALSE),0)*52/12 -> 0 | M62: N/A | N62: 0 | O62: =LOOKUP(N62,HEM!$C$9:$P$9,HEM!$C$7:$P$7) -> 2
C63: Total | F63: =SUM(F57:F62) -> 0
C66: Income | D66: Gross Taxable Income | E66: Gross Non-Taxable Income | F66: Net Monthly Income | N66: Gross Income - Taxable | O66: Gross Income - Non-taxable
C67: SMSF Member 1 - (Taxable) Income | F67: ='Tax Scales'!Y14+(O67/12) -> 0 | M67: =D49 -> 0 | N67: =D67+O76 -> 0 | O67: =(E76*12)+E67 -> 0
C68: SMSF Member 2 - (Taxable) Income | F68: ='Tax Scales'!Y27+(O68/12) -> 0 | M68: 0 | N68: 0 | O68: 0
C69: SMSF Member 3 - (Taxable) Income | F69: ='Tax Scales'!Y40+(O69/12) -> 0 | M69: 0 | N69: 0 | O69: 0
C70: SMSF Member 4 - (Taxable) Income | F70: ='Tax Scales'!Y53+(O70/12) -> 0 | M70: 0 | N70: =D70+O79 -> 0 | O70: 0
C71: SMSF Member 5 - (Taxable) Income | F71: ='Tax Scales'!Y89+(O71/12) -> 0 | M71: 0 | N71: =D71+O80 -> 0 | O71: 0
C72: SMSF Member 6 - (Taxable) Income | F72: ='Tax Scales'!Y102+(O72/12) -> 0 | M72: 0 | N72: =D72+O81 -> 0 | O72: 0
F73: =SUM(F67:F72) -> 0
C75: Rental Property Income | D75: Gross Annual Income | E75: Monthly Interest Expense (for gearing purposes only) | N75: Gross Annual Income - less haircut | O75: Net Rental Income
C76: SMSF Member 1 - Annual Rental Income(s) | M76: =D49 -> 0 | N76: =D76*RepayCalculator!$B$44 -> 0 | O76: =N76-(E76*12) -> 0
C77: SMSF Member 2 - Annual Rental Income(s) | M77: 0 | N77: =D77*RepayCalculator!$B$44 -> 0 | O77: =N77-(E77*12) -> 0
C78: SMSF Member 3 - Annual Rental Income(s) | M78: 0 | N78: =D78*RepayCalculator!$B$44 -> 0 | O78: =N78-(E78*12) -> 0
C79: SMSF Member 4 - Annual Rental Income(s) | M79: 0 | N79: =D79*RepayCalculator!$B$44 -> 0 | O79: =N79-(E79*12) -> 0
C80: SMSF Member 5 - Annual Rental Income(s) | M80: 0 | N80: =D80*RepayCalculator!$B$44 -> 0 | O80: 0
C81: SMSF Member 6 - Annual Rental Income(s) | M81: 0 | N81: =D81*RepayCalculator!$B$44 -> 0 | O81: 0
C83: Company Income | D83: Net Profit before tax (NPBT) | E83: Addbacks
C84: Company 1 (Net Profit Before Tax) | F84: ='Tax Scales'!Y109+(E84/12) -> 0 | N84: =D84/12 -> 0
C85: Company 2 (Net Profit Before Tax) | F85: ='Tax Scales'!Y116+(E85/12) -> 0 | N85: =D85/12 -> 0
F86: =SUM(F84:F85) -> 0
C88: Total Income | E88: =SUM(D67:D72)+SUM(E67:E68)+SUM(D84:D85)+SUM(D76:D81) -> 0 | F88: =+F73+F86 -> 0 | N88: =SUM(N67:N76) -> 0
C90: Less Living Allowance
C91: Monthly Living Expenses
C92: Living Expense Used (> of HEM or Actual) | E92: =IF(F63>E91,F63,E91) -> 0
C93: Private Schooling
C94: Rent / Board
C95: Child Support / Maintenance
C96: Total Living Expenses | F96: =SUM($E$92:$E$95) -> 0
C98: Total income available for debt & housing servicing | F98: =F88-F96 -> 0
C100: Less Existing Commitments | E100: Debt / Limit | F100: Monthly Pmt
C101: Credit Card (Limit not debt) | F101: =E101*3.83% -> 0 | N101: Loan balance sensitivity
N102: =IFERROR(RATE(360,F102,E102*-1,0,0,0.1)*12,0) -> 0 | O102: =IF(PMT((N102+RepayCalculator!$B$7)/12,360,E102,0,0)<(PMT(RepayCalculator!$B$8/12,360,E102,0,0)),(PMT((N102+RepayCalculator!$B$7)/12,360,E102,0,0)*-1)-F102,(PMT((RepayCalculator!$B$8)/12,360,E102,0,0)*-1)-F102) -> 0
N103: =IFERROR(RATE(360,F103,E103*-1,0,0,0.1)*12,0) -> 0 | O103: =IF(PMT((N103+RepayCalculator!$B$7)/12,360,E103,0,0)<(PMT(RepayCalculator!$B$8/12,360,E103,0,0)),(PMT((N103+RepayCalculator!$B$7)/12,360,E103,0,0)*-1)-F103,(PMT((RepayCalculator!$B$8)/12,360,E103,0,0)*-1)-F103) -> 0
N104: 0 | O104: =IF(PMT((N104+RepayCalculator!$B$7)/12,360,E104,0,0)<(PMT(RepayCalculator!$B$8/12,360,E104,0,0)),(PMT((N104+RepayCalculator!$B$7)/12,360,E104,0,0)*-1)-F104,(PMT((RepayCalculator!$B$8)/12,360,E104,0,0)*-1)-F104) -> 0
N105: 0 | O105: =IF(PMT((N105+RepayCalculator!$B$7)/12,360,E105,0,0)<(PMT(RepayCalculator!$B$8/12,360,E105,0,0)),(PMT((N105+RepayCalculator!$B$7)/12,360,E105,0,0)*-1)-F105,(PMT((RepayCalculator!$B$8)/12,360,E105,0,0)*-1)-F105) -> 0
N106: 0 | O106: =IF(PMT((N106+RepayCalculator!$B$7)/12,360,E106,0,0)<(PMT(RepayCalculator!$B$8/12,360,E106,0,0)),(PMT((N106+RepayCalculator!$B$7)/12,360,E106,0,0)*-1)-F106,(PMT((RepayCalculator!$B$8)/12,360,E106,0,0)*-1)-F106) -> 0
N107: 0 | O107: =IF(PMT((N107+RepayCalculator!$B$7)/12,360,E107,0,0)<(PMT(RepayCalculator!$B$8/12,360,E107,0,0)),(PMT((N107+RepayCalculator!$B$7)/12,360,E107,0,0)*-1)-F107,(PMT((RepayCalculator!$B$8)/12,360,E107,0,0)*-1)-F107) -> 0
N108: 0 | O108: =IF(PMT((N108+RepayCalculator!$B$7)/12,360,E108,0,0)<(PMT(RepayCalculator!$B$8/12,360,E108,0,0)),(PMT((N108+RepayCalculator!$B$7)/12,360,E108,0,0)*-1)-F108,(PMT((RepayCalculator!$B$8)/12,360,E108,0,0)*-1)-F108) -> 0
N109: 0 | O109: =IF(PMT((N109+RepayCalculator!$B$7)/12,360,E109,0,0)<(PMT(RepayCalculator!$B$8/12,360,E109,0,0)),(PMT((N109+RepayCalculator!$B$7)/12,360,E109,0,0)*-1)-F109,(PMT((RepayCalculator!$B$8)/12,360,E109,0,0)*-1)-F109) -> 0
N110: 0 | O110: =IF(PMT((N110+RepayCalculator!$B$7)/12,360,E110,0,0)<(PMT(RepayCalculator!$B$8/12,360,E110,0,0)),(PMT((N110+RepayCalculator!$B$7)/12,360,E110,0,0)*-1)-F110,(PMT((RepayCalculator!$B$8)/12,360,E110,0,0)*-1)-F110) -> 0
N111: 0 | O111: =IF(PMT((N111+RepayCalculator!$B$7)/12,360,E111,0,0)<(PMT(RepayCalculator!$B$8/12,360,E111,0,0)),(PMT((N111+RepayCalculator!$B$7)/12,360,E111,0,0)*-1)-F111,(PMT((RepayCalculator!$B$8)/12,360,E111,0,0)*-1)-F111) -> 0
N112: 0 | O112: =IF(PMT((N112+RepayCalculator!$B$7)/12,360,E112,0,0)<(PMT(RepayCalculator!$B$8/12,360,E112,0,0)),(PMT((N112+RepayCalculator!$B$7)/12,360,E112,0,0)*-1)-F112,(PMT((RepayCalculator!$B$8)/12,360,E112,0,0)*-1)-F112) -> 0
E113: =SUM(E101:E112) -> 0 | F113: =SUM(F101:F112) -> 0
E114: Loan Assessment Rate (2.25% stress / minimum 5.29%) | F114: =SUM(E102:E112)/12*2.25% -> 0
F115: =SUM(F113:F114) -> 0
C117: Net Personal Servicing Position | F117: =F98-F115 -> 0
C121: Result - Must Be Positive | F121: =G37+F98-F115 -> 
E122: Debt to Income Ratio (DTI) | G122: =(D23+G23+D29+G29+D6+SUM(E101:E112))/(SUM(D12:D14)+E88) -> 

Sheet Calculations breakdown (hidden)
C2: Annual | D2: Monthly | E2: Assessed %
B3: Mandatory contributions | C3: =SUM('SMSF Servicing Calculator'!D12*E3) -> 0 | D3: =C3/12 -> 0 | E3: 1
B4: Other income | C4: =SUM('SMSF Servicing Calculator'!D17*E4) -> 0 | D4: =C4/12 -> 0 | E4: 0.8
B5: Rental income | C5: =SUM('SMSF Servicing Calculator'!D14*E5) -> 0 | D5: =C5/12 -> 0 | E5: 0.8
B6: Total gross income | C6: =SUM(C3:C5) -> 0 | D6: =C6/12 -> 0
B7: less Other investment loans 1 add back | C7: =('SMSF Servicing Calculator'!D23*D7)+C18 -> 0 | D7: =IF('SMSF Servicing Calculator'!D24<E7,E7,'SMSF Servicing Calculator'!D24) -> 0.03 | E7: 0.03 | F7: Deemed rate
B8: less Other investment loans 2 add back | C8: =('SMSF Servicing Calculator'!G23*D8) -> 0 | D8: =IF('SMSF Servicing Calculator'!G24<E8,E8,'SMSF Servicing Calculator'!G24) -> 0.03 | E8: 0.03
B9: less Other investment loans 3 add back | C9: =('SMSF Servicing Calculator'!D29*D9) -> 0 | D9: =IF('SMSF Servicing Calculator'!D30<E9,E9,'SMSF Servicing Calculator'!D30) -> 0.03 | E9: 0.03
B10: less Other investment loans 4 add back | C10: =('SMSF Servicing Calculator'!G29*D10) -> 0 | D10: =IF('SMSF Servicing Calculator'!G30<E10,E10,'SMSF Servicing Calculator'!G30) -> 0.03 | E10: 0.03
B11: less Investment loan add back (Tax deduction) | C11: ='SMSF Servicing Calculator'!D6*'SMSF Servicing Calculator'!G8 -> 0
B12: less Fund expenses (tax deductible) | C12: =IF('SMSF Servicing Calculator'!D19<2000,2000,'SMSF Servicing Calculator'!D19) -> 2000
B13: Taxable income | C13: =IF(SUM(C6-C7-C8-C9-C10-C11-C12)<0,0,SUM(C6-C7-C8-C9-C10-C11-C12)) -> 0
B14: less Tax (calculated on Taxable income) | C14: =IF(C13>0,C13*E14,0) -> 0 | E14: 0.15 | F14: All income taxed
B15: Net Annual Income | C15: =SUM(C6-C14) -> 0 | D15: =C15/12 -> 0
B16: less all other commitments | C16: =(('SMSF Servicing Calculator'!D25+'SMSF Servicing Calculator'!G25+'SMSF Servicing Calculator'!D31+'SMSF Servicing Calculator'!G31)*12) -> 0 | D16: =C16/12 -> 0
B17: less Fund expenses | C17: =IF('SMSF Servicing Calculator'!D19<2000,2000,'SMSF Servicing Calculator'!D19) -> 2000 | D17: =C17/12 -> 166.6666667
B18: less sensitivity on loan balance | C18: =('SMSF Servicing Calculator'!D23+'SMSF Servicing Calculator'!G23+'SMSF Servicing Calculator'!D29+'SMSF Servicing Calculator'!G29)*E18 -> 0 | D18: =C18/12 -> 0 | E18: 0 | F18: To activate sensitivity on existing loan limits
B19: less sensitivity on loan repayments | C19: =D19*12 -> 0 | D19: =('SMSF Servicing Calculator'!D25+'SMSF Servicing Calculator'!G25+'SMSF Servicing Calculator'!D31+'SMSF Servicing Calculator'!G31)*'Calculations breakdown'!E19 -> 0 | E19: 0.2 | F19: To activate sensitivity on existing loan repayments
B20: Additional contributions | C20: =SUM('SMSF Servicing Calculator'!D13*E20) -> 0 | D20: =C20/12 -> 0 | E20: 1
B21: Surplus for servicing | C21: =SUM(C15-C16-C17-C18-C19)+C20 -> -2000 | D21: =C21/12 -> -166.6666667
B22: Actual repayments for this loan | C22: =D22*12 ->  | D22: =PMT('SMSF Servicing Calculator'!G8/12,('SMSF Servicing Calculator'!G6-'SMSF Servicing Calculator'!G7)*12,-'SMSF Servicing Calculator'!D6) ->  | F22: Excludes all sensitivity
B23: Assessed repayments for this loan | C23: =(D23*12) ->  | D23: =PMT('SMSF Servicing Calculator'!D9/12,('SMSF Servicing Calculator'!G6-'SMSF Servicing Calculator'!G7)*12,-'SMSF Servicing Calculator'!D6) -> 
B25: DTI | C25: ='SMSF Servicing Calculator'!D6/('SMSF Servicing Calculator'!D12+'SMSF Servicing Calculator'!D13+'SMSF Servicing Calculator'!D17+'SMSF Servicing Calculator'!D14) -> 
B26: Surplus amount per month | C26: =D21-D23 ->  | D26: Must meet $41.67
B27: Surplus amount per annum | C27: =(D21-D23)*12 ->  | D27: Must meet $500 P/A
B28: NDI used for result | C28: =C21/C23 ->  | D28: NDI >1
B29: Actual NDI | C29: =C21/C22 -> 

Sheet Self Employed Calculator (hidden)
C4: Self employed worksheet
C5: Self employed - Business 1
D7: Current year | F7: Previous year | H7: Comments
C8: Tax year ending | H8: =IF(OR(TaxYearPrev=0,TaxYearCur=0),IF(D24<F24,"Please explain lower current year net income:",IF(D24>F24*1.2,"Please explain > 20% increase in net income:","")),IF(ISERROR(VALUE(D8)<>VALUE(F8)+1),IF(D24<F24,"Please explain lower current year net income:",IF(D24>F24*1.2,"Please explain > 20% increase in net income:","")),IF(VALUE(D8)<>VALUE(F8)+1,"Error - Tax years not in consecutive order",IF(D24<F24,"Please explain lower current year net income:",IF(D24>F24*1.2,"Please explain > 20% increase in net income:",""))))) -> 
C10: Profit/loss (before tax) | H10: =IF(AND(ProfitCur<>"",ProfitPrev<>""),"",IF(OR(ProfitCur<>"",ProfitPrev<>""),"Please explain only one year income is being used: ","")) -> 
C11: minus Non-recurring income
C13: Total profit/loss | D13: =ProfitCur-NonRecIncCur -> 0 | F13: =ProfitPrev-NonRecIncPrev -> 0
C14: Allowable add-backs
C15: Director salary/fees (before tax) | N15: Depreciation Calculation
C16: Depreciation * | N16: =IFERROR(IF(SE1Test=1,_SE1dep,IF(SE1Test=2,_SE1depadj,0)),"") ->  | O16: =IF(AND(ProfitCur<>"",ProfitPrev<>""),(D16+F16)/2,IF(OR(ProfitCur<>"",ProfitPrev<>""),MAX(D16,F16),"")) ->  | Q16: =Bus1App1Inc -> 0
C17: Interest expenses (loans being refinanced) | O17: =IF(AND(ProfitCur<>"",ProfitPrev<>""),IF(D16<F16,MIN(D16,O16),MIN(O16,F16+ABS(F16*0.2))),IF(OR(ProfitCur<>"",ProfitPrev<>""),MAX(D16,F16),"")) ->  | Q17: =Bus1App2Inc -> 0
C18: Superannuation (in excess of compulsory) | Q18: =Bus1App3Inc -> 0
C19: Non-recurring expenses (please specify) | Q19: =Bus1App4Inc -> 0
C20: Other (please specify)
C22: Total add-backs | D22: =D15+D17+D18+D19+D20 -> 0 | F22: =F15+F17+F18+F19+F20 -> 0
C24: Net available income | D24: =D13+D22 -> 0 | F24: =F13+F22 -> 0 | M24: 2
C26: Average net available income | F26: =IF(AND(ProfitCur<>"",ProfitPrev<>""),(F24+D24)/2,IF(OR(ProfitCur<>"",ProfitPrev<>""),IF(D24<0,D24,IF(F24<0,F24,MAX(D24,F24))),0)) -> 0 | H26: =IF(AND(SE1netAv>0,SE1netAv>SE1netAvAdj,SE1Test=1),"This amount can only be considered on an exception basis","") -> 
C28: Income for serviceability | F28: =IF(AND(ProfitCur<>"",ProfitPrev<>""),IF(D24<F24,MIN(D24,F26),MIN(F26,F24+ABS(F24*0.2))),IF(OR(ProfitCur<>"",ProfitPrev<>""),IF(D24<0,D24,IF(F24<0,F24,MAX(D24,F24))),0)) -> 0 | H28: (this amount auto populates serviceability worksheet)
C29: (uses lower current year or max 20% increase rule)
D31: Applicant 1 | F31: Applicant 2 | H31: Applicant 3 | J31: Applicant 4 | K31: Total allocation
C32: Income allocation to applicants (%) | K32: =IF(ROUND(D32+F32+H32+J32,3)>100%,"Error - Total >100%",TEXT(ROUND(D32+F32+H32+J32,3),"0.00%")) -> 0.00% | L32: =IF(ROUND(D32+F32+H32+J32,3)>100%,K32,"") ->  | M32: =ROUND(MAX(1-Bus1_App2Distr-Bus1_App3Distr-Bus1_App4Distr,0),8) -> 1 | N32: =ROUND(MAX(1-Bus1_App1Distr-Bus1_App3Distr-Bus1_App4Distr,0),8) -> 1 | O32: =ROUND(MAX(1-Bus1_App2Distr-Bus1_App1Distr-Bus1_App4Distr,0),8) -> 1 | P32: =ROUND(1-Bus1_App2Distr-Bus1_App3Distr-Bus1_App1Distr,8) -> 1
C34: Income distribution for business 1 | D34: =IFERROR(IF(SE1Test=1,Bus1_App1Distr*SE1netAv,IF(SE1Test=2,Bus1_App1Distr*SE1netAvAdj,0)),"") -> 0 | F34: =IFERROR(IF(SE1Test=1,Bus1_App2Distr*SE1netAv,IF(SE1Test=2,Bus1_App2Distr*SE1netAvAdj,0)),"") -> 0 | H34: =IFERROR(IF(SE1Test=1,Bus1_App3Distr*SE1netAv,IF(SE1Test=2,Bus1_App3Distr*SE1netAvAdj,0)),"") -> 0 | J34: =IFERROR(IF(SE1Test=1,Bus1_App4Distr*SE1netAv,IF(SE1Test=2,Bus1_App4Distr*SE1netAvAdj,0)),"") -> 0
C36: Depreciation | D36: =IF('Self Employed Calculator'!$N$16="",0,'Self Employed Calculator'!$N$16)*Bus1_App1Distr -> 0 | F36: =IF('Self Employed Calculator'!$N$16="",0,'Self Employed Calculator'!$N$16)*Bus1_App2Distr -> 0 | H36: =IF('Self Employed Calculator'!$N$16="",0,'Self Employed Calculator'!$N$16)*Bus1_App3Distr -> 0 | J36: =IF('Self Employed Calculator'!$N$16="",0,'Self Employed Calculator'!$N$16)*Bus1_App4Distr -> 0
C37: Self employed - Business 2
D39: Current year | F39: Previous year | H39: Comments
C40: Tax year ending | H40: =IF(OR(TaxYearPrev2=0,TaxYearCur2=0),IF(D56<F56,"Please explain lower current year net income:",IF(D56>F56*1.2,"Please explain > 20% increase in net income:","")),IF(ISERROR(VALUE(D40)<>VALUE(F40)+1),IF(D56<F56,"Please explain lower current year net income:",IF(D56>F56*1.2,"Please explain > 20% increase in net income:","")),IF(VALUE(D40)<>VALUE(F40)+1,"Error - Tax years not in consecutive order",IF(D56<F56,"Please explain lower current year net income:",IF(D56>F56*1.2,"Please explain > 20% increase in net income:",""))))) -> 
C42: Profit/loss (before tax) | H42: =IF(AND(ProfitCur2<>"",ProfitPrev2<>""),"",IF(OR(ProfitCur2<>"",ProfitPrev2<>""),"Please explain only one year income is being used: ","")) -> 
C43: minus Non-recurring income
C45: Total profit/loss | D45: =ProfitCur2-NonRecIncCur2 -> 0 | F45: =ProfitPrev2-NonRecIncPrev2 -> 0
C46: Allowable add-backs
C47: Director salary/fees (before tax) | N47: Depreciation Calculation
C48: Depreciation * | N48: =IFERROR(IF(SE2Test=1,_SE2dep,IF(SE2Test=2,_SE2depadj,0)),"") ->  | O48: =IF(AND(ProfitCur2<>"",ProfitPrev2<>""),(D48+F48)/2,IF(OR(ProfitCur2<>"",ProfitPrev2<>""),MAX(D48,F48),"")) ->  | Q48: =Bus2App1Inc -> 0
C49: Interest expenses (loans being refinanced) | O49: =IF(AND(ProfitCur2<>"",ProfitPrev2<>""),IF(D48<F48,MIN(D48,O48),MIN(O48,F48+ABS(F48*0.2))),IF(OR(ProfitCur2<>"",ProfitPrev2<>""),MAX(D48,F48),"")) ->  | Q49: =Bus2App2Inc -> 0
C50: Superannuation (in excess of compulsory) | Q50: =Bus2App3Inc -> 0
C51: Non-recurring expenses (please specify) | Q51: =Bus2App4Inc -> 0
C52: Other (please specify)
C54: Total add-backs | D54: =D47+D49+D50+D51+D52 -> 0 | F54: =F47+F49+F50+F51+F52 -> 0
C56: Net available income | D56: =D45+D54 -> 0 | F56: =F45+F54 -> 0 | M56: 2
C58: Average net available income | F58: =IF(AND(ProfitCur2<>"",ProfitPrev2<>""),(F56+D56)/2,IF(OR(ProfitCur2<>"",ProfitPrev2<>""),IF(D56<0,D56,IF(F56<0,F56,MAX(D56,F56))),0)) -> 0 | H58: =IF(AND(SE2netAv>0,SE2netAv>SE2netAvAdj,SE2Test=1),"This amount can only be considered on an exception basis","") -> 
C60: Income for serviceability | F60: =IF(AND(ProfitCur2<>"",ProfitPrev2<>""),IF(D56<F56,MIN(D56,F58),MIN(F58,F56+ABS(F56*0.2))),IF(OR(ProfitCur2<>"",ProfitPrev2<>""),IF(D56<0,D56,IF(F56<0,F56,MAX(D56,F56))),0)) -> 0 | H60: (this amount auto populates serviceability worksheet)
C61: (uses lower current year or max 20% increase rule)
D63: Applicant 1 | F63: Applicant 2 | H63: Applicant 3 | J63: Applicant 4 | K63: Total allocation
C64: Income allocation to applicants (%) | K64: =IF(ROUND(D64+F64+H64+J64,3)>100%,"Error - Total >100%",TEXT(ROUND(D64+F64+H64+J64,3),"0.00%")) -> 0.00% | L64: =IF(ROUND(D64+F64+H64+J64,3)>100%,K64,"") ->  | M64: =ROUND(MAX(1-Bus2_App2Distr-Bus2_App3Distr-Bus2_App4Distr,0),8) -> 1 | N64: =ROUND(MAX(1-Bus2_App1Distr-Bus2_App3Distr-Bus2_App4Distr,0),8) -> 1 | O64: =ROUND(MAX(1-Bus2_App2Distr-Bus2_App1Distr-Bus2_App4Distr,0),8) -> 1 | P64: =ROUND(MAX(1-Bus2_App2Distr-Bus2_App3Distr-Bus2_App1Distr,0),8) -> 1
C66: Income distribution for business 2 | D66: =IFERROR(IF(SE2Test=1,Bus2_App1Distr*SE2netAv,IF(SE2Test=2,Bus2_App1Distr*SE2netAvAdj,0)),"") -> 0 | F66: =IFERROR(IF(SE2Test=1,Bus2_App2Distr*SE2netAv,IF(SE2Test=2,Bus2_App2Distr*SE2netAvAdj,0)),"") -> 0 | H66: =IFERROR(IF(SE2Test=1,Bus2_App3Distr*SE2netAv,IF(SE2Test=2,Bus2_App3Distr*SE2netAvAdj,0)),"") -> 0 | J66: =IFERROR(IF(SE2Test=1,Bus2_App4Distr*SE2netAv,IF(SE2Test=2,Bus2_App4Distr*SE2netAvAdj,0)),"") -> 0
C68: Depreciation | D68: =IF('Self Employed Calculator'!N48="",0,'Self Employed Calculator'!N48)*Bus2_App1Distr -> 0 | F68: =IF('Self Employed Calculator'!N48="",0,'Self Employed Calculator'!N48)*Bus2_App2Distr -> 0 | H68: =IF('Self Employed Calculator'!N48="",0,'Self Employed Calculator'!N48)*Bus2_App3Distr -> 0 | J68: =IF('Self Employed Calculator'!N48="",0,'Self Employed Calculator'!N48)*Bus2_App4Distr -> 0

Sheet Self Employed Calculator (SME) (hidden)
C4: Self employed worksheet
C5: Self employed - Business 1
D7: Current year | F7: Previous year | H7: Comments
C8: Tax year ending | H8: =IF(OR(TaxYearPrevSME=0,TaxYearCurSME=0),IF(D24<F24,"Please explain lower current year net income:",IF(D24>F24*1.2,"Please explain > 20% increase in net income:","")),IF(ISERROR(VALUE(D8)<>VALUE(F8)+1),IF(D24<F24,"Please explain lower current year net income:",IF(D24>F24*1.2,"Please explain > 20% increase in net income:","")),IF(VALUE(D8)<>VALUE(F8)+1,"Error - Tax years not in consecutive order",IF(D24<F24,"Please explain lower current year net income:",IF(D24>F24*1.2,"Please explain > 20% increase in net income:",""))))) -> 
C10: Profit/loss (before tax) | H10: =IF(AND(ProfitCurSME<>"",ProfitPrevSME<>""),"",IF(OR(ProfitCurSME<>"",ProfitPrevSME<>""),"Please explain only one year income is being used: ","")) -> 
C11: minus Non-recurring income
C13: Total profit/loss | D13: =ProfitCurSME-NonRecIncCurSME -> 0 | F13: =ProfitPrevSME-NonRecIncPrevSME -> 0
C14: Allowable add-backs
C15: Director salary/fees (before tax) | N15: Depreciation Calculation
C16: Depreciation * | N16: =IFERROR(IF(SE1TestSME=1,_SE1depSME,IF(SE1TestSME=2,_SE1depadjSME,0)),"") ->  | O16: =IF(AND(ProfitCurSME<>"",ProfitPrevSME<>""),(D16+F16)/2,IF(OR(ProfitCurSME<>"",ProfitPrevSME<>""),MAX(D16,F16),"")) ->  | Q16: =Bus1App1IncSME -> 0
C17: Interest expenses (loans being refinanced) | O17: =IF(AND(ProfitCurSME<>"",ProfitPrevSME<>""),IF(D16<F16,MIN(D16,O16),MIN(O16,F16+ABS(F16*0.2))),IF(OR(ProfitCurSME<>"",ProfitPrevSME<>""),MAX(D16,F16),"")) ->  | Q17: =Bus1App2IncSME -> 0
C18: Superannuation (in excess of compulsory) | Q18: =Bus1App3IncSME -> 0
C19: Non-recurring expenses (please specify) | Q19: =Bus1App4IncSME -> 0
C20: Other (please specify)
C22: Total add-backs | D22: =D15+D17+D18+D19+D20 -> 0 | F22: =F15+F17+F18+F19+F20 -> 0
C24: Net available income | D24: =D13+D22 -> 0 | F24: =F13+F22 -> 0 | M24: 2
C26: Average net available income | F26: =IF(AND(ProfitCurSME<>"",ProfitPrevSME<>""),(F24+D24)/2,IF(OR(ProfitCurSME<>"",ProfitPrevSME<>""),IF(D24<0,D24,IF(F24<0,F24,MAX(D24,F24))),0)) -> 0 | H26: =IF(AND(SE1netAvSME>0,SE1netAvSME>SE1netAvAdjSME,SE1TestSME=1),"This amount can only be considered on an exception basis","") -> 
C28: Income for serviceability | F28: =IF(AND(ProfitCurSME<>"",ProfitPrevSME<>""),IF(D24<F24,MIN(D24,F26),MIN(F26,F24+ABS(F24*0.2))),IF(OR(ProfitCurSME<>"",ProfitPrevSME<>""),IF(D24<0,D24,IF(F24<0,F24,MAX(D24,F24))),0)) -> 0 | H28: (this amount auto populates serviceability worksheet)
C29: (uses lower current year or max 20% increase rule)
D31: Applicant 1 | F31: Applicant 2 | H31: Applicant 3 | J31: Applicant 4 | K31: Total allocation
C32: Income allocation to applicants (%) | K32: =IF(ROUND(D32+F32+H32+J32,3)>100%,"Error - Total >100%",TEXT(ROUND(D32+F32+H32+J32,3),"0.00%")) -> 0.00% | L32: =IF(ROUND(D32+F32+H32+J32,3)>100%,K32,"") ->  | M32: =ROUND(MAX(1-Bus1_App2DistrSME-Bus1_App3DistrSME-Bus1_App4DistrSME,0),8) -> 1 | N32: =ROUND(MAX(1-Bus1_App1DistrSME-Bus1_App3DistrSME-Bus1_App4DistrSME,0),8) -> 1 | O32: =ROUND(MAX(1-Bus1_App2DistrSME-Bus1_App1DistrSME-Bus1_App4DistrSME,0),8) -> 1 | P32: =ROUND(1-Bus1_App2DistrSME-Bus1_App3DistrSME-Bus1_App1DistrSME,8) -> 1
C34: Income distribution for business 1 | D34: =IFERROR(IF(SE1TestSME=1,Bus1_App1DistrSME*SE1netAvSME,IF(SE1TestSME=2,Bus1_App1DistrSME*SE1netAvAdjSME,0)),"") -> 0 | F34: =IFERROR(IF(SE1TestSME=1,Bus1_App2DistrSME*SE1netAvSME,IF(SE1TestSME=2,Bus1_App2DistrSME*SE1netAvAdjSME,0)),"") -> 0 | H34: =IFERROR(IF(SE1TestSME=1,Bus1_App3DistrSME*SE1netAvSME,IF(SE1TestSME=2,Bus1_App3DistrSME*SE1netAvAdjSME,0)),"") -> 0 | J34: =IFERROR(IF(SE1TestSME=1,Bus1_App4DistrSME*SE1netAvSME,IF(SE1TestSME=2,Bus1_App4DistrSME*SE1netAvAdjSME,0)),"") -> 0
C36: Depreciation | D36: =IF('Self Employed Calculator (SME)'!$N$16="",0,'Self Employed Calculator (SME)'!$N$16)*Bus1_App1DistrSME -> 0 | F36: =IF('Self Employed Calculator (SME)'!$N$16="",0,'Self Employed Calculator (SME)'!$N$16)*Bus1_App2DistrSME -> 0 | H36: =IF('Self Employed Calculator (SME)'!$N$16="",0,'Self Employed Calculator (SME)'!$N$16)*Bus1_App3DistrSME -> 0 | J36: =IF('Self Employed Calculator (SME)'!$N$16="",0,'Self Employed Calculator (SME)'!$N$16)*Bus1_App4DistrSME -> 0
C37: Self employed - Business 2
D39: Current year | F39: Previous year | H39: Comments
C40: Tax year ending | H40: =IF(OR(TaxYearPrev2SME=0,TaxYearCur2SME=0),IF(D56<F56,"Please explain lower current year net income:",IF(D56>F56*1.2,"Please explain > 20% increase in net income:","")),IF(ISERROR(VALUE(D40)<>VALUE(F40)+1),IF(D56<F56,"Please explain lower current year net income:",IF(D56>F56*1.2,"Please explain > 20% increase in net income:","")),IF(VALUE(D40)<>VALUE(F40)+1,"Error - Tax years not in consecutive order",IF(D56<F56,"Please explain lower current year net income:",IF(D56>F56*1.2,"Please explain > 20% increase in net income:",""))))) -> 
C42: Profit/loss (before tax) | H42: =IF(AND(ProfitCur2SME<>"",ProfitPrev2SME<>""),"",IF(OR(ProfitCur2SME<>"",ProfitPrev2SME<>""),"Please explain only one year income is being used: ","")) -> 
C43: minus Non-recurring income
C45: Total profit/loss | D45: =ProfitCur2SME-NonRecIncCur2SME -> 0 | F45: =ProfitPrev2SME-NonRecIncPrev2SME -> 0
C46: Allowable add-backs
C47: Director salary/fees (before tax) | N47: Depreciation Calculation
C48: Depreciation * | N48: =IFERROR(IF(SE2TestSME=1,_SE2depSME,IF(SE2TestSME=2,_SE2depadjSME,0)),"") ->  | O48: =IF(AND(ProfitCur2SME<>"",ProfitPrev2SME<>""),(D48+F48)/2,IF(OR(ProfitCur2SME<>"",ProfitPrev2SME<>""),MAX(D48,F48),"")) ->  | Q48: =Bus2App1IncSME -> 0
C49: Interest expenses (loans being refinanced) | O49: =IF(AND(ProfitCur2SME<>"",ProfitPrev2SME<>""),IF(D48<F48,MIN(D48,O48),MIN(O48,F48+ABS(F48*0.2))),IF(OR(ProfitCur2SME<>"",ProfitPrev2SME<>""),MAX(D48,F48),"")) ->  | Q49: =Bus2App2IncSME -> 0
C50: Superannuation (in excess of compulsory) | Q50: =Bus2App3IncSME -> 0
C51: Non-recurring expenses (please specify) | Q51: =Bus2App4IncSME -> 0
C52: Other (please specify)
C54: Total add-backs | D54: =D47+D49+D50+D51+D52 -> 0 | F54: =F47+F49+F50+F51+F52 -> 0
C56: Net available income | D56: =D45+D54 -> 0 | F56: =F45+F54 -> 0 | M56: 2
C58: Average net available income | F58: =IF(AND(ProfitCur2SME<>"",ProfitPrev2SME<>""),(F56+D56)/2,IF(OR(ProfitCur2SME<>"",ProfitPrev2SME<>""),IF(D56<0,D56,IF(F56<0,F56,MAX(D56,F56))),0)) -> 0 | H58: =IF(AND(SE2netAvSME>0,SE2netAvSME>SE2netAvAdjSME,SE2TestSME=1),"This amount can only be considered on an exception basis","") -> 
C60: Income for serviceability | F60: =IF(AND(ProfitCur2SME<>"",ProfitPrev2SME<>""),IF(D56<F56,MIN(D56,F58),MIN(F58,F56+ABS(F56*0.2))),IF(OR(ProfitCur2SME<>"",ProfitPrev2SME<>""),IF(D56<0,D56,IF(F56<0,F56,MAX(D56,F56))),0)) -> 0 | H60: (this amount auto populates serviceability worksheet)
C61: (uses lower current year or max 20% increase rule)
D63: Applicant 1 | F63: Applicant 2 | H63: Applicant 3 | J63: Applicant 4 | K63: Total allocation
C64: Income allocation to applicants (%) | K64: =IF(ROUND(D64+F64+H64+J64,3)>100%,"Error - Total >100%",TEXT(ROUND(D64+F64+H64+J64,3),"0.00%")) -> 0.00% | L64: =IF(ROUND(D64+F64+H64+J64,3)>100%,K64,"") ->  | M64: =ROUND(MAX(1-Bus2_App2DistrSME-Bus2_App3DistrSME-Bus2_App4DistrSME,0),8) -> 1 | N64: =ROUND(MAX(1-Bus2_App1DistrSME-Bus2_App3DistrSME-Bus2_App4DistrSME,0),8) -> 1 | O64: =ROUND(MAX(1-Bus2_App2DistrSME-Bus2_App1DistrSME-Bus2_App4DistrSME,0),8) -> 1 | P64: =ROUND(MAX(1-Bus2_App2DistrSME-Bus2_App3DistrSME-Bus2_App1DistrSME,0),8) -> 1
C66: Income distribution for business 2 | D66: =IFERROR(IF(SE2TestSME=1,Bus2_App1DistrSME*SE2netAvSME,IF(SE2TestSME=2,Bus2_App1DistrSME*SE2netAvAdjSME,0)),"") -> 0 | F66: =IFERROR(IF(SE2TestSME=1,Bus2_App2DistrSME*SE2netAvSME,IF(SE2TestSME=2,Bus2_App2DistrSME*SE2netAvAdjSME,0)),"") -> 0 | H66: =IFERROR(IF(SE2TestSME=1,Bus2_App3DistrSME*SE2netAvSME,IF(SE2TestSME=2,Bus2_App3DistrSME*SE2netAvAdjSME,0)),"") -> 0 | J66: =IFERROR(IF(SE2TestSME=1,Bus2_App4DistrSME*SE2netAvSME,IF(SE2TestSME=2,Bus2_App4DistrSME*SE2netAvAdjSME,0)),"") -> 0
C68: Depreciation | D68: =IF('Self Employed Calculator (SME)'!N48="",0,'Self Employed Calculator (SME)'!N48)*Bus2_App1DistrSME -> 0 | F68: =IF('Self Employed Calculator (SME)'!N48="",0,'Self Employed Calculator (SME)'!N48)*Bus2_App2DistrSME -> 0 | H68: =IF('Self Employed Calculator (SME)'!N48="",0,'Self Employed Calculator (SME)'!N48)*Bus2_App3DistrSME -> 0 | J68: =IF('Self Employed Calculator (SME)'!N48="",0,'Self Employed Calculator (SME)'!N48)*Bus2_App4DistrSME -> 0

Sheet Rental & Gearing (hidden)
F3: Rental Income | R3: Negative Gearing | Y3: Rental
F4: Property Address | I4: Gross Rental | J4: Frequency | L4: Annual Rental | M4: Verification | N4: App 1 | O4: App 2 | P4: App 3 | Q4: App 4 | R4: Amount Owing | S4: Interest Rate | T4: Annual Gearing | U4: App 1 | V4: App 2 | W4: App 3 | X4: App 4 | Y4: App 1 | Z4: App 2 | AA4: App 3 | AB4: App 4
I5: 0 | K5: =IF(J5="Weekly",52,IF(J5="Fortnightly",26,IF(J5="Monthly",12,IF(J5="Quarterly",4,1)))) -> 1 | L5: =I5*K5 -> 0 | R5: 0 | T5: =R5*S5 -> 0 | U5: =T5*N5 -> 0 | V5: =T5*O5 -> 0 | W5: =T5*P5 -> 0 | X5: =Q5*T5 -> 0 | Y5: =N5*L5 -> 0 | Z5: =O5*L5 -> 0 | AA5: =P5*L5 -> 0 | AB5: =Q5*L5 -> 0 | AC5: =IF(M5="New NDIS",1,0) -> 0
I6: 0 | K6: =IF(J6="Weekly",52,IF(J6="Fortnightly",26,IF(J6="Monthly",12,IF(J6="Quarterly",4,1)))) -> 1 | L6: =I6*K6 -> 0 | R6: 0 | T6: 0 | U6: 0 | V6: 0 | W6: 0 | X6: 0 | Y6: 0 | Z6: 0 | AA6: 0 | AB6: 0 | AC6: =IF(M6="New NDIS",1,0) -> 0
I7: 0 | K7: 1 | L7: 0 | R7: 0 | T7: 0 | U7: 0 | V7: 0 | W7: 0 | X7: 0 | Y7: 0 | Z7: 0 | AA7: 0 | AB7: 0 | AC7: 0
I8: 0 | K8: 1 | L8: 0 | R8: 0 | T8: 0 | U8: 0 | V8: 0 | W8: 0 | X8: 0 | Y8: 0 | Z8: 0 | AA8: 0 | AB8: 0 | AC8: 0
I9: 0 | K9: 1 | L9: 0 | R9: 0 | T9: 0 | U9: 0 | V9: 0 | W9: 0 | X9: 0 | Y9: 0 | Z9: 0 | AA9: 0 | AB9: 0 | AC9: 0
I10: 0 | K10: 1 | L10: 0 | R10: 0 | T10: 0 | U10: 0 | V10: 0 | W10: 0 | X10: 0 | Y10: 0 | Z10: 0 | AA10: 0 | AB10: 0 | AC10: 0
I11: 0 | K11: 1 | L11: 0 | R11: 0 | T11: 0 | U11: 0 | V11: 0 | W11: 0 | X11: 0 | Y11: 0 | Z11: 0 | AA11: 0 | AB11: 0 | AC11: 0
I12: 0 | K12: 1 | L12: 0 | R12: 0 | T12: 0 | U12: 0 | V12: 0 | W12: 0 | X12: 0 | Y12: 0 | Z12: 0 | AA12: 0 | AB12: 0 | AC12: 0
I13: 0 | K13: 1 | L13: 0 | R13: 0 | T13: 0 | U13: 0 | V13: 0 | W13: 0 | X13: 0 | Y13: 0 | Z13: 0 | AA13: 0 | AB13: 0 | AC13: 0
I14: 0 | K14: 1 | L14: 0 | R14: 0 | T14: 0 | U14: 0 | V14: 0 | W14: 0 | X14: 0 | Y14: 0 | Z14: 0 | AA14: 0 | AB14: 0 | AC14: 0
I15: 0 | K15: 1 | L15: 0 | R15: 0 | T15: 0 | U15: 0 | V15: 0 | W15: 0 | X15: 0 | Y15: 0 | Z15: 0 | AA15: 0 | AB15: 0 | AC15: 0
I16: 0 | K16: 1 | L16: 0 | R16: 0 | T16: 0 | U16: 0 | V16: 0 | W16: 0 | X16: 0 | Y16: 0 | Z16: 0 | AA16: 0 | AB16: 0 | AC16: 0
I17: 0 | K17: 1 | L17: 0 | R17: 0 | T17: 0 | U17: 0 | V17: 0 | W17: 0 | X17: 0 | Y17: 0 | Z17: 0 | AA17: 0 | AB17: 0 | AC17: 0
I18: 0 | K18: 1 | L18: 0 | R18: 0 | T18: 0 | U18: 0 | V18: 0 | W18: 0 | X18: 0 | Y18: 0 | Z18: 0 | AA18: 0 | AB18: 0 | AC18: 0
I19: 0 | K19: 1 | L19: 0 | R19: 0 | T19: 0 | U19: 0 | V19: 0 | W19: 0 | X19: 0 | Y19: 0 | Z19: 0 | AA19: 0 | AB19: 0 | AC19: 0
I20: 0 | K20: 1 | L20: 0 | R20: 0 | T20: 0 | U20: 0 | V20: 0 | W20: 0 | X20: 0 | Y20: 0 | Z20: 0 | AA20: 0 | AB20: 0 | AC20: 0
I21: 0 | K21: 1 | L21: 0 | R21: 0 | T21: 0 | U21: 0 | V21: 0 | W21: 0 | X21: 0 | Y21: 0 | Z21: 0 | AA21: 0 | AB21: 0 | AC21: 0
I22: 0 | K22: 1 | L22: 0 | R22: 0 | T22: 0 | U22: 0 | V22: 0 | W22: 0 | X22: 0 | Y22: 0 | Z22: 0 | AA22: 0 | AB22: 0 | AC22: 0
I23: 0 | K23: 1 | L23: 0 | R23: 0 | T23: 0 | U23: 0 | V23: 0 | W23: 0 | X23: 0 | Y23: 0 | Z23: 0 | AA23: 0 | AB23: 0 | AC23: 0
I24: 0 | K24: 1 | L24: 0 | R24: 0 | T24: 0 | U24: 0 | V24: 0 | W24: 0 | X24: 0 | Y24: 0 | Z24: 0 | AA24: 0 | AB24: 0 | AC24: 0
I25: 0 | K25: 1 | L25: 0 | R25: 0 | T25: 0 | U25: 0 | V25: 0 | W25: 0 | X25: 0 | Y25: 0 | Z25: 0 | AA25: 0 | AB25: 0 | AC25: 0
I26: 0 | K26: 1 | L26: 0 | R26: 0 | T26: 0 | U26: 0 | V26: 0 | W26: 0 | X26: 0 | Y26: 0 | Z26: 0 | AA26: 0 | AB26: 0 | AC26: 0
I27: 0 | K27: 1 | L27: 0 | R27: 0 | T27: 0 | U27: 0 | V27: 0 | W27: 0 | X27: 0 | Y27: 0 | Z27: 0 | AA27: 0 | AB27: 0 | AC27: 0
I28: 0 | K28: 1 | L28: 0 | R28: 0 | T28: 0 | U28: 0 | V28: 0 | W28: 0 | X28: 0 | Y28: 0 | Z28: 0 | AA28: 0 | AB28: 0 | AC28: 0
I29: 0 | K29: 1 | L29: 0 | R29: 0 | T29: 0 | U29: 0 | V29: 0 | W29: 0 | X29: 0 | Y29: 0 | Z29: 0 | AA29: 0 | AB29: 0 | AC29: 0
F30: Servicing Figure Inputs | I30: Rental | J30: Gearing | AC30: hair cut
F31: Applicant 1 | I31: =SUM(Y5:Y29) -> 0 | J31: =SUM(U5:U29) -> 0 | N31: Ownership must be input as a percentage for each individual. | AC31: =SUM(IF(AC5:AC29=1, Y5:Y29*70%, IF(AC5:AC29=0, Y5:Y29*80%, 0))) -> 0
F32: Applicant 2 | I32: =SUM(Z5:Z29) -> 0 | J32: =SUM(V5:V29) -> 0 | AC32: =SUM(IF(AC5:AC29=1, Z5:Z29*70%, IF(AC5:AC29=0, Z5:Z29*80%, 0))) -> 0
F33: Applicant 3 | I33: =SUM(AA5:AA29) -> 0 | J33: =SUM(W5:W29) -> 0 | AC33: =SUM(IF(AC5:AC29=1, AA5:AA29*70%, IF(AC5:AC29=0, AA5:AA29*80%, 0))) -> 0
F34: Applicant 4 | I34: =SUM(AB5:AB29) -> 0 | J34: =SUM(X5:X29) -> 0 | AC34: =SUM(IF(AC5:AC29=1, AB5:AB29*70%, IF(AC5:AC29=0, AB5:AB29*80%, 0))) -> 0

Sheet Rental & Gearing (SME) (hidden)
F3: Rental Income | R3: Negative Gearing | Y3: Rental
F4: Property Address | I4: Gross Rental | J4: Frequency | L4: Annual Rental | M4: Verification | N4: App 1 | O4: App 2 | P4: App 3 | Q4: App 4 | R4: Amount Owing | S4: Interest Rate | T4: Annual Gearing | U4: App 1 | V4: App 2 | W4: App 3 | X4: App 4 | Y4: App 1 | Z4: App 2 | AA4: App 3 | AB4: App 4
I5: 0 | K5: =IF(J5="Weekly",52,IF(J5="Fortnightly",26,IF(J5="Monthly",12,IF(J5="Quarterly",4,1)))) -> 1 | L5: =I5*K5 -> 0 | R5: 0 | T5: =R5*S5 -> 0 | U5: =T5*N5 -> 0 | V5: =T5*O5 -> 0 | W5: =T5*P5 -> 0 | X5: =Q5*T5 -> 0 | Y5: =N5*L5 -> 0 | Z5: =O5*L5 -> 0 | AA5: =P5*L5 -> 0 | AB5: =Q5*L5 -> 0 | AC5: =IF(M5="New NDIS",1,0) -> 0
I6: 0 | K6: =IF(J6="Weekly",52,IF(J6="Fortnightly",26,IF(J6="Monthly",12,IF(J6="Quarterly",4,1)))) -> 1 | L6: =I6*K6 -> 0 | R6: 0 | T6: 0 | U6: 0 | V6: 0 | W6: 0 | X6: 0 | Y6: 0 | Z6: 0 | AA6: 0 | AB6: 0 | AC6: =IF(M6="New NDIS",1,0) -> 0
I7: 0 | K7: 1 | L7: 0 | R7: 0 | T7: 0 | U7: 0 | V7: 0 | W7: 0 | X7: 0 | Y7: 0 | Z7: 0 | AA7: 0 | AB7: 0 | AC7: 0
I8: 0 | K8: 1 | L8: 0 | R8: 0 | T8: 0 | U8: 0 | V8: 0 | W8: 0 | X8: 0 | Y8: 0 | Z8: 0 | AA8: 0 | AB8: 0 | AC8: 0
I9: 0 | K9: 1 | L9: 0 | R9: 0 | T9: 0 | U9: 0 | V9: 0 | W9: 0 | X9: 0 | Y9: 0 | Z9: 0 | AA9: 0 | AB9: 0 | AC9: 0
I10: 0 | K10: 1 | L10: 0 | R10: 0 | T10: 0 | U10: 0 | V10: 0 | W10: 0 | X10: 0 | Y10: 0 | Z10: 0 | AA10: 0 | AB10: 0 | AC10: 0
I11: 0 | K11: 1 | L11: 0 | R11: 0 | T11: 0 | U11: 0 | V11: 0 | W11: 0 | X11: 0 | Y11: 0 | Z11: 0 | AA11: 0 | AB11: 0 | AC11: 0
I12: 0 | K12: 1 | L12: 0 | R12: 0 | T12: 0 | U12: 0 | V12: 0 | W12: 0 | X12: 0 | Y12: 0 | Z12: 0 | AA12: 0 | AB12: 0 | AC12: 0
I13: 0 | K13: 1 | L13: 0 | R13: 0 | T13: 0 | U13: 0 | V13: 0 | W13: 0 | X13: 0 | Y13: 0 | Z13: 0 | AA13: 0 | AB13: 0 | AC13: 0
I14: 0 | K14: 1 | L14: 0 | R14: 0 | T14: 0 | U14: 0 | V14: 0 | W14: 0 | X14: 0 | Y14: 0 | Z14: 0 | AA14: 0 | AB14: 0 | AC14: 0
I15: 0 | K15: 1 | L15: 0 | R15: 0 | T15: 0 | U15: 0 | V15: 0 | W15: 0 | X15: 0 | Y15: 0 | Z15: 0 | AA15: 0 | AB15: 0 | AC15: 0
I16: 0 | K16: 1 | L16: 0 | R16: 0 | T16: 0 | U16: 0 | V16: 0 | W16: 0 | X16: 0 | Y16: 0 | Z16: 0 | AA16: 0 | AB16: 0 | AC16: 0
I17: 0 | K17: 1 | L17: 0 | R17: 0 | T17: 0 | U17: 0 | V17: 0 | W17: 0 | X17: 0 | Y17: 0 | Z17: 0 | AA17: 0 | AB17: 0 | AC17: 0
I18: 0 | K18: 1 | L18: 0 | R18: 0 | T18: 0 | U18: 0 | V18: 0 | W18: 0 | X18: 0 | Y18: 0 | Z18: 0 | AA18: 0 | AB18: 0 | AC18: 0
I19: 0 | K19: 1 | L19: 0 | R19: 0 | T19: 0 | U19: 0 | V19: 0 | W19: 0 | X19: 0 | Y19: 0 | Z19: 0 | AA19: 0 | AB19: 0 | AC19: 0
I20: 0 | K20: 1 | L20: 0 | R20: 0 | T20: 0 | U20: 0 | V20: 0 | W20: 0 | X20: 0 | Y20: 0 | Z20: 0 | AA20: 0 | AB20: 0 | AC20: 0
I21: 0 | K21: 1 | L21: 0 | R21: 0 | T21: 0 | U21: 0 | V21: 0 | W21: 0 | X21: 0 | Y21: 0 | Z21: 0 | AA21: 0 | AB21: 0 | AC21: 0
I22: 0 | K22: 1 | L22: 0 | R22: 0 | T22: 0 | U22: 0 | V22: 0 | W22: 0 | X22: 0 | Y22: 0 | Z22: 0 | AA22: 0 | AB22: 0 | AC22: 0
I23: 0 | K23: 1 | L23: 0 | R23: 0 | T23: 0 | U23: 0 | V23: 0 | W23: 0 | X23: 0 | Y23: 0 | Z23: 0 | AA23: 0 | AB23: 0 | AC23: 0
I24: 0 | K24: 1 | L24: 0 | R24: 0 | T24: 0 | U24: 0 | V24: 0 | W24: 0 | X24: 0 | Y24: 0 | Z24: 0 | AA24: 0 | AB24: 0 | AC24: 0
I25: 0 | K25: 1 | L25: 0 | R25: 0 | T25: 0 | U25: 0 | V25: 0 | W25: 0 | X25: 0 | Y25: 0 | Z25: 0 | AA25: 0 | AB25: 0 | AC25: 0
I26: 0 | K26: 1 | L26: 0 | R26: 0 | T26: 0 | U26: 0 | V26: 0 | W26: 0 | X26: 0 | Y26: 0 | Z26: 0 | AA26: 0 | AB26: 0 | AC26: 0
I27: 0 | K27: 1 | L27: 0 | R27: 0 | T27: 0 | U27: 0 | V27: 0 | W27: 0 | X27: 0 | Y27: 0 | Z27: 0 | AA27: 0 | AB27: 0 | AC27: 0
I28: 0 | K28: 1 | L28: 0 | R28: 0 | T28: 0 | U28: 0 | V28: 0 | W28: 0 | X28: 0 | Y28: 0 | Z28: 0 | AA28: 0 | AB28: 0 | AC28: 0
I29: 0 | K29: 1 | L29: 0 | R29: 0 | T29: 0 | U29: 0 | V29: 0 | W29: 0 | X29: 0 | Y29: 0 | Z29: 0 | AA29: 0 | AB29: 0 | AC29: 0
F30: Servicing Figure Inputs | I30: Rental | J30: Gearing | AC30: hair cut
F31: Applicant 1 | I31: =SUM(Y5:Y29) -> 0 | J31: =SUM(U5:U29) -> 0 | N31: Ownership must be input as a percentage for each individual. | AC31: =SUM(IF(AC5:AC29=1, Y5:Y29*70%, IF(AC5:AC29=0, Y5:Y29*80%, 0))) -> 0
F32: Applicant 2 | I32: =SUM(Z5:Z29) -> 0 | J32: =SUM(V5:V29) -> 0 | AC32: =SUM(IF(AC5:AC29=1, Z5:Z29*70%, IF(AC5:AC29=0, Z5:Z29*80%, 0))) -> 0
F33: Applicant 3 | I33: =SUM(AA5:AA29) -> 0 | J33: =SUM(W5:W29) -> 0 | AC33: =SUM(IF(AC5:AC29=1, AA5:AA29*70%, IF(AC5:AC29=0, AA5:AA29*80%, 0))) -> 0
F34: Applicant 4 | I34: =SUM(AB5:AB29) -> 0 | J34: =SUM(X5:X29) -> 0 | AC34: =SUM(IF(AC5:AC29=1, AB5:AB29*70%, IF(AC5:AC29=0, AB5:AB29*80%, 0))) -> 0

Sheet SME Calculator 2 (hidden)

Sheet Year To Date Calc
B3: Application Number
B5: PAYG Income Year to Date
B6: Applicant 1
B7: Name | G7: If casual ?
B8: PAYG Income:
B9: Start Date | C9: Finish Date | D9: No. of Days | E9: Weeks | F9: YTD Gross | G9: Ave Per Week | H9: Gross Annualised
D10: =C10-B10 -> 0 | E10: =D10/7 -> 0 | G10: =IFERROR(IF(OR(H7="",H7="No"),F10/E10,F10/E10*46/52),0) -> 0 | H10: =G10*52 -> 0
B11: Superannuation:
B12: Start Date | C12: Finish Date | D12: No. of Days | E12: Weeks | F12: YTD Employer Super | G12: Ave Per Week | H12: Gross Annualised Super
D13: =C13-B13 -> 0 | E13: =D13/7 -> 0 | G13: =IFERROR(IF(OR(H7="",H7="No"),F13/E13,F13/E13*46/52),0) -> 0 | H13: =G13*52 -> 0
F15: Employer Super Rate: | H15: =IFERROR(H13/H10,0) -> 0
H16: =IF($H$15>11%,"Super Contributions exceed 11%, confirm with employer rate of super","") -> 
B18: Applicant 2
B19: Name | G19: If casual ?
B20: PAYG Income:
B21: Start Date | C21: Finish Date | D21: No. of Days | E21: Weeks | F21: YTD Gross | G21: Ave Per Week | H21: Gross Annualised
D22: =C22-B22 -> 0 | E22: =D22/7 -> 0 | G22: =IFERROR(IF(OR(H19="",H19="No"),F22/E22,F22/E22*46/52),0) -> 0 | H22: =G22*52 -> 0
B23: Superannuation:
B24: Start Date | C24: Finish Date | D24: No. of Days | E24: Weeks | F24: YTD Employer Super | G24: Ave Per Week | H24: Gross Annualised Super
D25: =C25-B25 -> 0 | E25: =D25/7 -> 0 | G25: =IFERROR(IF(OR(H19="",H19="No"),F25/E25,F25/E25*46/52),0) -> 0 | H25: =G25*52 -> 0
F27: Employer Super Rate: | H27: =IFERROR(H25/H22,0) -> 0
H28: =IF($H$27>11%,"Super Contributions exceed 11%, confirm with employer rate of super","") -> 
B30: Applicant 3
B31: Name | G31: If casual ?
B32: PAYG Income:
B33: Start Date | C33: Finish Date | D33: No. of Days | E33: Weeks | F33: YTD Gross | G33: Ave Per Week | H33: Gross Annualised
D34: =C34-B34 -> 0 | E34: =D34/7 -> 0 | G34: =IFERROR(IF(OR(H31="",H31="No"),F34/E34,F34/E34*46/52),0) -> 0 | H34: =G34*52 -> 0
B35: Superannuation:
B36: Start Date | C36: Finish Date | D36: No. of Days | E36: Weeks | F36: YTD Employer Super | G36: Ave Per Week | H36: Gross Annualised Super
D37: =C37-B37 -> 0 | E37: =D37/7 -> 0 | G37: =IFERROR(IF(OR(H31="",H31="No"),F37/E37,F37/E37*46/52),0) -> 0 | H37: =G37*52 -> 0
F39: Employer Super Rate: | H39: =IFERROR(H37/H34,0) -> 0
H40: =IF($H$39>11%,"Super Contributions exceed 11%, confirm with employer rate of super","") -> 
B42: Applicant 4
B43: Name | G43: If casual ?
B44: PAYG Income:
B45: Start Date | C45: Finish Date | D45: No. of Days | E45: Weeks | F45: YTD Gross | G45: Ave Per Week | H45: Gross Annualised
D46: =C46-B46 -> 0 | E46: =D46/7 -> 0 | G46: =IFERROR(IF(OR(H43="",H43="No"),F46/E46,F46/E46*46/52),0) -> 0 | H46: =G46*52 -> 0
B47: Superannuation:
B48: Start Date | C48: Finish Date | D48: No. of Days | E48: Weeks | F48: YTD Employer Super | G48: Ave Per Week | H48: Gross Annualised Super
D49: =C49-B49 -> 0 | E49: =D49/7 -> 0 | G49: =IFERROR(IF(OR(H43="",H43="No"),F49/E49,F49/E49*46/52),0) -> 0 | H49: =G49*52 -> 0
F51: Employer Super Rate: | H51: =IFERROR(H49/H46,0) -> 0
H52: =IF($H$51>11%,"Super Contributions exceed 11%, confirm with employer rate of super","") -> 

Sheet Lease Doc Serviceability
C3: Lease Doc Serviceability
A8: Application number
A9: Applicants name(s):
A11: New Loan Committment
A12: Repayment Type | C12: =IF(C13=0,"",IF(C13>C14,"Principal & Interest","Interest Only")) -> 
A13: Loan Term
A14: Interest Only Term
A15: New Loan Amount
A16: Interest Rate of New Loan
A17: New Monthly Loan Repayment/s | C17: =IFERROR(IF(C$12="",0,(IF(C$12="Principal & Interest",-PMT(C$16/12,(C$13-C$14)*12,C$15,0,0),((C$15*C$16)/12)))),0) -> 0
A18: New Annual Loan Repayment/s | C18: =C17*12 -> 0
A19: Monthly Gross Rental Income
A20: Annual Gross Rental Income | C20: =C19*12 -> 0
A21: Remaining Lease Term
A22: Lease options available
A24: Interest Coverage Ratio (Result must exceed 1.30) | C24: Result must exceed 1.75 | D24: =C20/C18 -> 

Sheet Sheet2 (hidden)

Sheet Marginalisation Calculator (hidden)
C6: Marginalisation Calculator | E6: =TODAY() -> 2025-12-04
C7: Marginalisation Year
C8: No of Loans | D8: 3
C9: New Loan Commitment(s) | D9: Loan 1 | E9: Loan 2 | F9: Loan 3 | G9: Loan 4 | H9: Loan 5 | I9: Loan 6 | J9: Loan 7 | K9: Loan 8 | L9: Loan 9 | M9: Loan 10
C10: Delivery Rate
C11: Interest only loading
C12: Offset Loading
C13: Fixed Interest Loading
C14: Additional Loadings
C15: Discounts
C17: Net Trail | D17: 0.004 | E17: 0.004 | F17: 0.004
C18: Upfront Commission | D18: 0.01 | E18: 0.01 | F18: 0.01
C19: GST on upfront commission | D19: 0.1 | E19: 0.1 | F19: 0.1 | G19: 0.1 | H19: 0.1 | I19: 0.1 | J19: 0.1 | K19: 0.1 | L19: 0.1 | M19: 0.1
C21: Interest Rate of New Loan | D21: =IFERROR(D10+D11+D12+D13+D14+D17+D23-D15,D10+D11+D12+D13+D14+D17-D15) -> 0.004 | E21: 0.004 | F21: 0.004 | G21: 0 | H21: 0 | I21: 0 | J21: 0 | K21: 0 | L21: 0 | M21: 0
C23: Upfront Recovery p/a | D23: =IFERROR(IF($D$7="3 (Mezy)",ROUNDDOWN((D18+(D18*D19))/3,4),(D18+(D18*D19))/$D$7),"") -> 
C24: Gross Trail Loading | D24: =IFERROR(D17+D23,"") -> 

Sheet SMSF Refinance Prime
B6: WLTH SMSF Refinance Serviceability | G6: Date: | H6: =NOW() -> 2025-12-04T10:01:12.750
G7: User: | H7: Kailun Huang
A8: =MAX(A9:A31) -> 1 | B8: Applicant Name(s):
A9: =IF(B9="",1,0) -> 1 | I9: =IF(B9="","**","") -> **
B12: Loan Details:
A13: =IF(H13="",1,0) -> 1 | B13: Security Type | I13: =IF(H13="","**","") -> ** | J13: =OR(H13="",H14="",H15="",H18="",H20="",H23="",H30="") -> TRUE
A14: =IF(H14="",1,0) -> 1 | B14: Enter Loan Amount | I14: =IF(H14="","**","") -> **
A15: =IF(H15="",1,0) -> 1 | B15: Security Value | I15: =IF(H15="","**","") -> **
B16: Loan LVR | H16: =IF(ISERROR(H14/H15),0,H14/H15) -> 0
B17: Repayment Type | H17: =IF(H18=0,"",IF(H18>H19,"Principal & Interest","Interest Only")) -> 
A18: =IF(H18="",1,0) -> 1 | B18: Loan Term | I18: =IF(H18="","**","") -> **
B19: Interest Only Term
A20: =IF(H20="",1,0) -> 1 | B20: Interest Rate | I20: =IF(H20="","**","") -> **
B22: Current Loan:
A23: =IF(H23="",1,0) -> 1 | B23: Monthly Loan Repayment/s | G23: =IF(H23="","**","") -> **
B24: Annual Loan Repayment/s | H24: =IF(ISERROR(H23*12),0,H23*12+(H23*12)*20%) -> 0
B26: New Loan:
B27: Monthly Loan Repayment/s | H27: =IF(H17="Principal & Interest",-PMT(H20/12,(H18-H19)*12,H14,0,0)+15,IF(H17="Interest Only",(H14*H20)/12+15,0)) -> 0
B28: Annual Loan Repayment/s | H28: =IF(ISERROR(H27*12),0,H27*12) -> 0
A30: =IF(H30="",1,0) -> 1 | B30: Monthly Gross Rental Income | I30: =IF(H30="","**","") -> **
B31: Annual Gross Rental Income | H31: =IF(ISERROR(H30*12),0,H30*12) -> 0
B32: ** --- Denotes mandadory fields
B34: Result - Must Exceed 1.00 | H34: 0
B35: Express Refinance NSI | H35: =H30-H27 -> 0

Sheet BackEnd (hidden)
A1: Security Type | B1: Repayment Type | D1: Security Type | E1: Min Loan Amount | F1: Max Loan Amount | G1: LVR | I1: Data Test
A2: Residential | B2: Principal & Interest | D2: Residential | E2: 150000 | F2: 1500000 | G2: 0.7 | I2: =OR('SMSF Refinance Prime'!H13="",'SMSF Refinance Prime'!H14="",'SMSF Refinance Prime'!H15="") -> TRUE
A3: Commercial | B3: Interest Only | D3: Commercial | E3: 150000 | F3: 2000000 | G3: 0.7
B6: Current User: | C6: Kailun Huang | P6: Allowed Users To Edit | Q6: =IF(ISERROR(VLOOKUP(C6,P7:P50,1,0)),"Not Found!",VLOOKUP(C6,P7:P50,1,0)) -> Not Found!
B7: ---- You may enter policies after this row up to maximum designated line. Make sure to enter on Column B only. This will be hidden once you leave the sheet. ---
A8: 1 | B8: Refinance Policy (with minimum 2 years clean repayment history)
A9: =A8+1 -> 2
A10: 3 | B10: Annual rental exceeds annual loan repayment to validate serviceability
A11: 4 | B11: - Max LVR 70%
A12: 5 | B12: - 100% of rental income can be used for servicing purposes (evidenced by 12 months rental history from either rental statements and/or rental credits to bank statements)
A13: 6 | B13: - 2 years clean repayment history (evidenced by loan statements. Interenet transactions statement must be supported by formal Bank statements)
A14: 7 | B14: - New loan repayment must be less than the current repayment. | P14: Kailun (Ivan) Huang
A15: 8 | B15: - Other income cannot be used to support for this method.
A16: 9
A17: 10
A18: 11
A19: 12
A20: 13
A21: 14
A22: 15
A23: 16
A24: 17
A25: 18
A26: 19
A27: 20
A28: 21
A29: 22
A30: 23
A31: 24
A32: 25
A33: 26
A34: 27
A35: 28
A36: 29
A37: 30
A38: 31
A39: 32
A40: 33
A41: =A40+1 -> 34
A42: 35
A43: 36
A44: 37
A45: 38
A46: 39
A47: 40
A48: 41
A49: 42
A50: 43
A51: 44
A52: 45
A53: 46
A54: 47
A55: 48
A56: 49
A57: 50
A58: 51
A59: 52
A60: 53
A61: 54
A62: 55
A63: 56
A64: 57
A65: 58
A66: 59
A67: 60
A68: 61
A69: 62
A70: 63
A71: 64
A72: 65
A73: =A72+1 -> 66
A74: 67
A75: 68
A76: 69
A77: 70
A78: 71
A79: 72
A80: 73
A81: 74
A82: 75
A83: 76
A84: 77
A85: 78
A86: 79
A87: 80
A88: 81
A89: 82
A90: 83
A91: 84
A92: 85
A93: 86
A94: 87
A95: 88
A96: 89
A97: 90
A98: 91
A99: 92
A100: 93
A101: 94
A102: 95
A103: 96
A104: 97
A105: 98
A106: 99
A107: 100

Sheet Definitions (hidden)
A1: Definitions
A2: Definitions
A4: Household Numer | B4: The household group that an individual applicant is attached to.
A6: Status | B6: Individual applicants household status (single or couple)
A8: Dependents | B8: Number of children or other dependents of an individual applicant. Dependents includes adult children over 18 if they rely on parents to cover living costs. Dependents also includes dependent children or other parties over 18 such as children with disabilities.
A10: Gross Taxable Income | B10: Yearly cash component of salary before tax. (Taxable income). To be entered by you.
A12: Non-Taxable Income | B12: Non taxable income of the applicant. This is generally pension or governement benefit income that is not taxable.
A14: Annual Rental Income | B14: Annual Rental Income received from investment properties (include income from property being purchased if a tenancy agreement is held and can be provided). The calculator will use 80% of the amount entered adjusted for the relevant tax rate.
A16: Monthly Interest Expense (for gearing prurposes only) | B16: The interest expense for investment property where a tax deduction is able to be claimed. This amount is to be allocated to the relevant applicant. The interest expense must not include any principal amount that forms part of the loan payment.
A18: Net Monthly Income | B18: Monthly cash component of salary after tax. Automatically calculated.
A20: Company Net Profit Before Tax | B20: Yearly cash component of salary after expenses before tax. (Taxable income).
A22: Company addbacks | B22: Non-taxable addbacks for the company such as depreciation and interest payments on loans included in servicing assessment.
A24: Living Allowance | B24: Refer to application form for details of each category. Full details must be entered for each household group.
A26: Credit Card (Limit not Debt) | B26: We need to take the full credit card limit into account when calculating serviceability. We will use 3.8% of the total limit, regardless of the debt outstanding.
A28: Existing Commitments | B28: Existing debt commitments of the applicant. Full available loan limits must be entered as well as payments based on the full limit.
A30: Sensitivity | B30: An annual percentage rate applied to the total balances of outstanding loans as a precaution against any future interest rate increases. Currently 2.0%p.a. with 5.3% floor assessment rate.
A32: Loan Term | B32: Loan term of loan application in years.
A34: Interest Only Term | B34: Interest only term applicable to the applied loan
A36: New Loan Amount | B36: Loan amount as per the application
A38: Interest rate | B38: Applicable interest rate for the product
A40: New Monthly Loan Repayments | B40: This is the monthly loan repayment of the proposed loan. It is a principal and interest repayment. For interest only repayment calculations please refer to us.
A42: Result - Net Surplus | B42: This is the remaining amount of the borrowers available monthly income after living expenses, existing commitments and the proposed commitment are deducted. This amount must be positive to succesfully pass the Serviceability Calculator. Please refer your scenario to usif the loan does not pass the Serviceability Calculator.
A44: SMSF Contributions | B44: Annual superannuation contributuons for the applicant.
A46: Annual Management Fee | B46: Annual management fee applicible for the SMSF. This includes accountants fees, auditor fees, compliance expenses etc. Costs incurred in the generation of income are excluded from this amount as this is incorporated into the return on SMSF Assets.
A48: SMSF Assets | B48: This is the amount of the Self Managed Super Fund's Assets excluding the security for the loan. This is only applicable to SMSF loans. (We assume an investment return of 3.9% per annum taxed at the current Tax Rate for Superannuation income).

Sheet Scales Tax (hidden)
A1: Annual Salary Guide - Standard | P1: Annual Salary Guide - SMSF | AE1: Annual Salary Guide - Non Resident | AT1: Annual Salary Guide - ICR
A2: Tax Scales | P2: Tax Scales | AE2: Tax Scales | AT2: Tax Scales
A3: Applicant 1 | P3: Applicant 1 | AE3: Applicant 1 | AT3: Applicant 1
A4: Gross Taxable Income | D4: Tax Rate | F4: Gross | H4: Tax | J4: Net | P4: Gross Taxable Income | S4: Tax Rate | U4: Gross | W4: Tax | Y4: Net | AA4: Flood Levy Calculations | AE4: Gross Taxable Income | AH4: Tax Rate | AJ4: Gross | AL4: Tax | AN4: Net | AP4: Flood Levy Calculations | AT4: Gross Taxable Income | AW4: Tax Rate | AY4: Gross | BA4: Tax | BC4: Net
A5: 1 | B5: 18200 | C5: =B5-A5+1 -> 18200 | D5: 0 | F5: =IF('SME Servicing Calculator'!O33<B5,'SME Servicing Calculator'!O33,C5) -> 0 | G5: =F5 -> 0 | H5: =F5*D5 -> 0 | J5: =F5-H5 -> 0 | P5: =A5 -> 1 | Q5: 18200 | R5: 18200 | S5: 0 | U5: =IF('SMSF Servicing Calculator'!N67<Q5,'SMSF Servicing Calculator'!N67,R5) -> 0 | V5: =U5 -> 0 | W5: =U5*S5 -> 0 | Y5: =U5-W5 -> 0 | AE5: =P5 -> 1 | AF5: 18200 | AG5: 18200 | AH5: 0 | AJ5: =IF(#REF!<AF5,#REF!,AG5) ->  | AK5: =AJ5 ->  | AL5: =AJ5*AH5 ->  | AN5: =AJ5-AL5 ->  | AT5: =A5 -> 1 | AU5: 18200 | AV5: 18200 | AW5: 0 | AY5: 0 | AZ5: =AY5 -> 0 | BA5: =AY5*AW5 -> 0 | BC5: =AY5-BA5 -> 0
A6: 18201 | B6: 45000 | C6: =B6-A6+1 -> 26800 | D6: 0.16 | F6: =IF(G5='SME Servicing Calculator'!O33,0,IF(('SME Servicing Calculator'!O33-G5)>C6,C6,('SME Servicing Calculator'!O33-G5))) -> 0 | G6: =G5+F6 -> 0 | H6: =F6*D6 -> 0 | J6: =F6-H6 -> 0 | P6: 18201 | Q6: 45000 | R6: =C6 -> 26800 | S6: 0.16 | U6: =IF(V5='SMSF Servicing Calculator'!$N$67,0,IF(('SMSF Servicing Calculator'!$N$67-V5)>R6,R6,('SMSF Servicing Calculator'!$N$67-V5))) -> 0 | V6: =V5+U6 -> 0 | W6: =U6*S6 -> 0 | Y6: =U6-W6 -> 0 | AE6: 18201 | AF6: 45000 | AG6: 26800 | AH6: 0.16 | AJ6: =IF(AK5=#REF!,0,IF((#REF!-0)>AG6,AG6,(#REF!-0))) ->  | AK6: =AK5+AJ6 ->  | AL6: =AJ6*AH6 ->  | AN6: =AJ6-AL6 ->  | AT6: 18201 | AU6: 45000 | AV6: 26800 | AW6: 0.16 | AY6: 0 | AZ6: =AZ5+AY6 -> 0 | BA6: =AY6*AW6 -> 0 | BC6: =AY6-BA6 -> 0
A7: 45001 | B7: 135000 | C7: =B7-A7+1 -> 90000 | D7: 0.3 | F7: =IF(G6='SME Servicing Calculator'!O33,0,IF(('SME Servicing Calculator'!O33-G6)>C7,C7,('SME Servicing Calculator'!O33-G6))) -> 0 | G7: =G6+F7 -> 0 | H7: =F7*D7 -> 0 | J7: =F7-H7 -> 0 | P7: 45001 | Q7: 135000 | R7: 90000 | S7: 0.3 | U7: =IF(V6='SMSF Servicing Calculator'!$N$67,0,IF(('SMSF Servicing Calculator'!$N$67-V6)>R7,R7,('SMSF Servicing Calculator'!$N$67-V6))) -> 0 | V7: =V6+U7 -> 0 | W7: =U7*S7 -> 0 | Y7: =U7-W7 -> 0 | AA7: =IF(U7>13000,(U7-13000)*0.5%,0) -> 0 | AE7: 45001 | AF7: 135000 | AG7: 90000 | AH7: 0.3 | AJ7: =IF(AK6=#REF!,0,IF((#REF!-AK6)>AG7,AG7,(#REF!-AK6))) ->  | AK7: =AK6+AJ7 ->  | AL7: =AJ7*AH7 ->  | AN7: =AJ7-AL7 ->  | AP7: =IF(AJ7>13000,(AJ7-13000)*0.5%,0) ->  | AT7: 45001 | AU7: 135000 | AV7: 90000 | AW7: 0.3 | AY7: 0 | AZ7: =AZ6+AY7 -> 0 | BA7: =AY7*AW7 -> 0 | BC7: =AY7-BA7 -> 0
A8: 135001 | B8: 190001 | C8: =B8-A8+1 -> 55001 | D8: 0.37 | F8: =IF(G7='SME Servicing Calculator'!O33,0,IF(('SME Servicing Calculator'!O33-G7)>C8,C8,('SME Servicing Calculator'!O33-G7))) -> 0 | G8: =G7+F8 -> 0 | H8: =F8*D8 -> 0 | J8: =F8-H8 -> 0 | P8: 135001 | Q8: 190001 | R8: 55001 | S8: 0.37 | U8: =IF(V7='SMSF Servicing Calculator'!$N$67,0,IF(('SMSF Servicing Calculator'!$N$67-V7)>R8,R8,('SMSF Servicing Calculator'!$N$67-V7))) -> 0 | V8: =V7+U8 -> 0 | W8: =U8*S8 -> 0 | Y8: =U8-W8 -> 0 | AA8: =SUM(AB8:AC8) -> 0 | AB8: =IF(U8<=20000,U8*0.5%,0) -> 0 | AC8: =IF(U8>20000,((U8-20000)*1%)+100,0) -> 0 | AE8: 135001 | AF8: 190001 | AG8: 55001 | AH8: 0.37 | AJ8: =IF(AK7=#REF!,0,IF((#REF!-AK7)>AG8,AG8,(#REF!-AK7))) ->  | AK8: =AK7+AJ8 ->  | AL8: =AJ8*AH8 ->  | AN8: =AJ8-AL8 ->  | AP8: =SUM(AQ8:AR8) ->  | AQ8: =IF(AJ8<=20000,AJ8*0.5%,0) ->  | AR8: =IF(AJ8>20000,((AJ8-20000)*1%)+100,0) ->  | AT8: 135001 | AU8: 190001 | AV8: 55001 | AW8: 0.37 | AY8: 0 | AZ8: =AZ7+AY8 -> 0 | BA8: =AY8*AW8 -> 0 | BC8: =AY8-BA8 -> 0
A9: 190001 | B9: 100000000 | C9: =B9-A9+1 -> 99810000 | D9: 0.45 | F9: =IF('SME Servicing Calculator'!O33-G8<=0,0,('SME Servicing Calculator'!O33-G8)) -> 0 | G9: =G8+F9 -> 0 | H9: =F9*D9 -> 0 | J9: =F9-H9 -> 0 | P9: 190001 | Q9: 100000000 | R9: 99810000 | S9: 0.45 | U9: =IF(V8='SMSF Servicing Calculator'!$N$67,0,IF(('SMSF Servicing Calculator'!$N$67-V8)>R9,R9,('SMSF Servicing Calculator'!$N$67-V8))) -> 0 | V9: =V8+U9 -> 0 | W9: =U9*S9 -> 0 | Y9: =U9-W9 -> 0 | AA9: =U9*1% -> 0 | AE9: 190001 | AF9: 100000000 | AG9: 99810000 | AH9: 0.45 | AJ9: =IF(#REF!-AK8<=0,0,(#REF!-AK8)) ->  | AK9: =AK8+AJ9 ->  | AL9: =AJ9*AH9 ->  | AN9: =AJ9-AL9 ->  | AP9: =AJ9*1% ->  | AT9: 190001 | AU9: 100000000 | AV9: 99810000 | AW9: 0.45 | AY9: 0 | AZ9: =AZ8+AY9 -> 0 | BA9: =AY9*AW9 -> 0 | BC9: =AY9-BA9 -> 0
D10: Totals: | F10: =SUM(F5:F9) -> 0 | H10: =SUM(H5:H9) -> 0 | J10: =SUM(J5:J9) -> 0 | S10: Totals: | U10: =SUM(U5:U9) -> 0 | W10: =SUM(W5:W9) -> 0 | Y10: =SUM(Y5:Y9) -> 0 | AA10: =SUM(AA7:AA9) -> 0 | AH10: Totals: | AJ10: =IF(#REF!<0,SUM(AJ5:AJ9),SUM(AJ6:AJ9)) ->  | AL10: =SUM(AL5:AL9) ->  | AN10: =SUM(AN5:AN9) ->  | AP10: =SUM(AP7:AP9) ->  | AW10: Totals: | AY10: =SUM(AY5:AY9) -> 0 | BA10: =SUM(BA5:BA9) -> 0 | BC10: =SUM(BC5:BC9) -> 0
A11: Low & middle income tax offset (monthly) | C11: 0 | D11: Refer table | P11: Low & middle income tax offset (monthly) | R11: 0 | S11: Refer table | AE11: Budget Repair Levy (monthly) | AG11: 0 | AH11: N/A | AT11: Low & middle income tax offset (monthly) | AV11: =IF($AY$10<=$B$97,$D$97,(IF($AY$10<=$B$98,$D$98,IF($AY$10<=$B$99,(($AY$10-$B$98)*$C$99)+$D$99,IF($AY$10<=$B$100,$D$100,IF($AY$10<=$B$101,(($AY$10-$B$100)*$C$101)+$D$101,IF($AY$10<=$B$102,$D$102,0)))))))/12 -> 0 | AW11: Refer table
A12: Low income tax offset (monthly) | C12: 0 | D12: Refer table | P12: Low income tax offset (monthly) | R12: 0 | S12: Refer table | AT12: Low income tax offset (monthly) | AV12: =IF($AY$10<=$B$109,$D$109,IF($AY$10<=$B$110,$D$110,IF($AY$10<=$B$111,(($AY$10-$B$110)*$C$111)+$D$111,IF($AY$10<=$B$112,$D$112,0))))/12 -> 0 | AW12: Refer table
A13: Medicare Levy (monthly) | C13: =F10*(2/100)/12 -> 0 | D13: 0.02 | P13: Medicare Levy (monthly) | R13: =U10*(2/100)/12 -> 0 | S13: 0.02 | AE13: Medicare Levy (monthly) | AG13: 0 | AH13: N/A | AT13: Medicare Levy (monthly) | AV13: =AY10*(2/100)/12 -> 0 | AW13: 0.02
C14: =SUM(C11:C13) -> 0 | H14: Monthly | J14: =(J10/12)-C14 -> 0 | R14: =SUM(R11:R13) -> 0 | W14: Monthly | Y14: =(Y10/12)-R14 -> 0 | AG14: =SUM(AG11:AG13) -> 0 | AL14: Monthly | AN14: =(AN10/12)-AG14 ->  | AV14: =SUM(AV11:AV13) -> 0 | BA14: Monthly | BC14: =(BC10/12)-AV14 -> 0
A16: Applicant 2 | P16: Applicant 2 | AE16: Applicant 2 | AT16: Applicant 2
A17: Gross Taxable Income | D17: Tax Rate | F17: Gross | H17: Tax | J17: Net | P17: Gross Taxable Income | S17: Tax Rate | U17: Gross | W17: Tax | Y17: Net | AE17: Gross Taxable Income | AH17: Tax Rate | AJ17: Gross | AL17: Tax | AN17: Net | AT17: Gross Taxable Income | AW17: Tax Rate | AY17: Gross | BA17: Tax | BC17: Net
A18: =A5 -> 1 | B18: 18200 | C18: 18200 | D18: 0 | F18: =IF('SME Servicing Calculator'!O34<B18,'SME Servicing Calculator'!O34,C18) -> 0 | G18: =F18 -> 0 | H18: =F18*D18 -> 0 | J18: =F18-H18 -> 0 | P18: =A18 -> 1 | Q18: 18200 | R18: 18200 | S18: 0 | U18: =IF('SMSF Servicing Calculator'!N68<Q18,'SMSF Servicing Calculator'!N68,R18) -> 0 | V18: =U18 -> 0 | W18: =U18*S18 -> 0 | Y18: =U18-W18 -> 0 | AE18: =AE5 -> 1 | AF18: 18200 | AG18: 18200 | AH18: 0 | AJ18: =IF(#REF!<AF18,#REF!,AG18) ->  | AK18: =AJ18 ->  | AL18: =AJ18*AH18 ->  | AN18: =AJ18-AL18 ->  | AT18: =AT5 -> 1 | AU18: 18200 | AV18: 18200 | AW18: 0 | AY18: 0 | AZ18: =AY18 -> 0 | BA18: =AY18*AW18 -> 0 | BC18: =AY18-BA18 -> 0
A19: 18201 | B19: 45000 | C19: 26800 | D19: 0.16 | F19: =IF(G18='SME Servicing Calculator'!O34,0,IF(('SME Servicing Calculator'!O34-G18)>C19,C19,('SME Servicing Calculator'!O34-G18))) -> 0 | G19: =G18+F19 -> 0 | H19: =F19*D19 -> 0 | J19: =F19-H19 -> 0 | P19: 18201 | Q19: 45000 | R19: 26800 | S19: 0.16 | U19: =IF(V18='SMSF Servicing Calculator'!$N$68,0,IF(('SMSF Servicing Calculator'!$N$68-V18)>R19,R19,('SMSF Servicing Calculator'!$N$68-V18))) -> 0 | V19: =V18+U19 -> 0 | W19: =U19*S19 -> 0 | Y19: =U19-W19 -> 0 | AE19: 18201 | AF19: 45000 | AG19: 26800 | AH19: 0.16 | AJ19: =IF(AK18=#REF!,0,IF((#REF!-AK18)>AG19,AG19,(#REF!-AK18))) ->  | AK19: =AK18+AJ19 ->  | AL19: =AJ19*AH19 ->  | AN19: =AJ19-AL19 ->  | AT19: 18201 | AU19: 45000 | AV19: 26800 | AW19: 0.16 | AY19: 0 | AZ19: =AZ18+AY19 -> 0 | BA19: =AY19*AW19 -> 0 | BC19: =AY19-BA19 -> 0
A20: 45001 | B20: 135000 | C20: 90000 | D20: 0.3 | F20: =IF(G19='SME Servicing Calculator'!O34,0,IF(('SME Servicing Calculator'!O34-G19)>C20,C20,('SME Servicing Calculator'!O34-G19))) -> 0 | G20: =G19+F20 -> 0 | H20: =F20*D20 -> 0 | J20: =F20-H20 -> 0 | P20: 45001 | Q20: 135000 | R20: 90000 | S20: 0.3 | U20: =IF(V19='SMSF Servicing Calculator'!$N$68,0,IF(('SMSF Servicing Calculator'!$N$68-V19)>R20,R20,('SMSF Servicing Calculator'!$N$68-V19))) -> 0 | V20: =V19+U20 -> 0 | W20: =U20*S20 -> 0 | Y20: =U20-W20 -> 0 | AA20: =IF(U20>13000,(U20-13000)*0.5%,0) -> 0 | AE20: 45001 | AF20: 135000 | AG20: 90000 | AH20: 0.3 | AJ20: =IF(AK19=#REF!,0,IF((#REF!-AK19)>AG20,AG20,(#REF!-AK19))) ->  | AK20: =AK19+AJ20 ->  | AL20: =AJ20*AH20 ->  | AN20: =AJ20-AL20 ->  | AP20: =IF(AJ20>13000,(AJ20-13000)*0.5%,0) ->  | AT20: 45001 | AU20: 135000 | AV20: 90000 | AW20: 0.3 | AY20: 0 | AZ20: =AZ19+AY20 -> 0 | BA20: =AY20*AW20 -> 0 | BC20: =AY20-BA20 -> 0
A21: 135001 | B21: 190001 | C21: 55001 | D21: 0.37 | F21: =IF(G20='SME Servicing Calculator'!O34,0,IF(('SME Servicing Calculator'!O34-G20)>C21,C21,('SME Servicing Calculator'!O34-G20))) -> 0 | G21: =G20+F21 -> 0 | H21: =F21*D21 -> 0 | J21: =F21-H21 -> 0 | P21: 135001 | Q21: 190001 | R21: 55001 | S21: 0.37 | U21: =IF(V20='SMSF Servicing Calculator'!$N$68,0,IF(('SMSF Servicing Calculator'!$N$68-V20)>R21,R21,('SMSF Servicing Calculator'!$N$68-V20))) -> 0 | V21: =V20+U21 -> 0 | W21: =U21*S21 -> 0 | Y21: =U21-W21 -> 0 | AA21: =SUM(AB21:AC21) -> 0 | AB21: =IF(U21<=20000,U21*0.5%,0) -> 0 | AC21: =IF(U21>20000,((U21-20000)*1%)+100,0) -> 0 | AE21: 135001 | AF21: 190001 | AG21: 55001 | AH21: 0.37 | AJ21: =IF(AK20=#REF!,0,IF((#REF!-AK20)>AG21,AG21,(#REF!-AK20))) ->  | AK21: =AK20+AJ21 ->  | AL21: =AJ21*AH21 ->  | AN21: =AJ21-AL21 ->  | AP21: =SUM(AQ21:AR21) ->  | AQ21: =IF(AJ21<=20000,AJ21*0.5%,0) ->  | AR21: =IF(AJ21>20000,((AJ21-20000)*1%)+100,0) ->  | AT21: 135001 | AU21: 190001 | AV21: 55001 | AW21: 0.37 | AY21: 0 | AZ21: =AZ20+AY21 -> 0 | BA21: =AY21*AW21 -> 0 | BC21: =AY21-BA21 -> 0
A22: 190001 | B22: 100000000 | C22: 99810000 | D22: 0.45 | F22: =IF('SME Servicing Calculator'!O34-G21<=0,0,('SME Servicing Calculator'!O34-G21)) -> 0 | G22: =G21+F22 -> 0 | H22: =F22*D22 -> 0 | J22: =F22-H22 -> 0 | P22: 190001 | Q22: 100000000 | R22: 99810000 | S22: 0.45 | U22: =IF(V21='SMSF Servicing Calculator'!$N$68,0,IF(('SMSF Servicing Calculator'!$N$68-V21)>R22,R22,('SMSF Servicing Calculator'!$N$68-V21))) -> 0 | V22: =V21+U22 -> 0 | W22: =U22*S22 -> 0 | Y22: =U22-W22 -> 0 | AA22: =U22*1% -> 0 | AE22: 190001 | AF22: 100000000 | AG22: 99810000 | AH22: 0.45 | AJ22: =IF(#REF!-AK21<=0,0,(#REF!-AK21)) ->  | AK22: =AK21+AJ22 ->  | AL22: =AJ22*AH22 ->  | AN22: =AJ22-AL22 ->  | AP22: =AJ22*1% ->  | AT22: 190001 | AU22: 100000000 | AV22: 99810000 | AW22: 0.45 | AY22: 0 | AZ22: =AZ21+AY22 -> 0 | BA22: =AY22*AW22 -> 0 | BC22: =AY22-BA22 -> 0
D23: Totals: | F23: =SUM(F18:F22) -> 0 | H23: =SUM(H18:H22) -> 0 | J23: =SUM(J18:J22) -> 0 | S23: Totals: | U23: =SUM(U18:U22) -> 0 | W23: =SUM(W18:W22) -> 0 | Y23: =SUM(Y18:Y22) -> 0 | AA23: =SUM(AA20:AA22) -> 0 | AH23: Totals: | AJ23: =SUM(AJ18:AJ22) ->  | AL23: =SUM(AL18:AL22) ->  | AN23: =SUM(AN18:AN22) ->  | AP23: =SUM(AP20:AP22) ->  | AW23: Totals: | AY23: =SUM(AY18:AY22) -> 0 | BA23: =SUM(BA18:BA22) -> 0 | BC23: =SUM(BC18:BC22) -> 0
A24: Low & middle income tax offset (monthly) | C24: 0 | D24: Refer table | P24: Low & middle income tax offset (monthly) | R24: 0 | S24: Refer table | AE24: Budget Repair Levy (monthly) | AG24: 0 | AH24: N/A | AT24: Low & middle income tax offset (monthly) | AV24: =IF($AY$23<=$B$97,$D$97,(IF($AY$23<=$B$98,$D$98,IF($AY$23<=$B$99,(($AY$23-$B$98)*$C$99)+$D$99,IF($AY$23<=$B$100,$D$100,IF($AY$23<=$B$101,(($AY$23-$B$100)*$C$101)+$D$101,IF($AY$23<=$B$102,$D$102,0)))))))/12 -> 0 | AW24: Refer table
A25: Low income tax offset (monthly) | C25: 0 | D25: Refer table | P25: Low income tax offset (monthly) | R25: 0 | S25: Refer table | AT25: Low income tax offset (monthly) | AV25: =IF($AY$23<=$B$109,$D$109,IF($AY$23<=$B$110,$D$110,IF($AY$23<=$B$111,(($AY$23-$B$110)*$C$111)+$D$111,IF($AY$23<=$B$112,$D$112,0))))/12 -> 0 | AW25: Refer table
A26: Medicare Levy (monthly) | C26: =F23*(2/100)/12 -> 0 | D26: 0.02 | P26: Medicare Levy (monthly) | R26: =U23*(2/100)/12 -> 0 | S26: 0.02 | AE26: Medicare Levy (monthly) | AG26: 0 | AH26: N/A | AT26: Medicare Levy (monthly) | AV26: =AY23*(2/100)/12 -> 0 | AW26: 0.02
C27: =SUM(C24:C26) -> 0 | H27: Monthly | J27: =(J23/12)-C27 -> 0 | R27: =SUM(R24:R26) -> 0 | W27: Monthly | Y27: =(Y23/12)-R27 -> 0 | AG27: =SUM(AG24:AG26) -> 0 | AL27: Monthly | AN27: =(AN23/12)-AG27 ->  | AV27: =SUM(AV24:AV26) -> 0 | BA27: Monthly | BC27: =(BC23/12)-AV27 -> 0
A29: Applicant 3 | P29: Applicant 3 | AE29: Applicant 3 | AT29: Applicant 3
A30: Gross Taxable Income | D30: Tax Rate | F30: Gross | H30: Tax | J30: Net | P30: Gross Taxable Income | S30: Tax Rate | U30: Gross | W30: Tax | Y30: Net | AE30: Gross Taxable Income | AH30: Tax Rate | AJ30: Gross | AL30: Tax | AN30: Net | AT30: Gross Taxable Income | AW30: Tax Rate | AY30: Gross | BA30: Tax | BC30: Net
A31: =A18 -> 1 | B31: 18200 | C31: 18200 | D31: 0 | F31: =IF('SME Servicing Calculator'!O35<B31,'SME Servicing Calculator'!O35,C31) -> 0 | G31: =F31 -> 0 | H31: =F31*D31 -> 0 | J31: =F31-H31 -> 0 | P31: =A31 -> 1 | Q31: 18200 | R31: 18200 | S31: 0 | U31: =IF('SMSF Servicing Calculator'!N69<Q31,'SMSF Servicing Calculator'!N69,R31) -> 0 | V31: =U31 -> 0 | W31: =U31*S31 -> 0 | Y31: =U31-W31 -> 0 | AE31: =AE18 -> 1 | AF31: 18200 | AG31: 18200 | AH31: 0 | AJ31: =IF(#REF!<AF31,#REF!,AG31) ->  | AK31: =AJ31 ->  | AL31: =AJ31*AH31 ->  | AN31: =AJ31-AL31 ->  | AT31: =AT5 -> 1 | AU31: 18200 | AV31: 18200 | AW31: 0 | AY31: 0 | AZ31: =AY31 -> 0 | BA31: =AY31*AW31 -> 0 | BC31: =AY31-BA31 -> 0
A32: 18201 | B32: 45000 | C32: 26800 | D32: 0.16 | F32: =IF(G31='SME Servicing Calculator'!O35,0,IF(('SME Servicing Calculator'!O35-G31)>C32,C32,('SME Servicing Calculator'!O35-G31))) -> 0 | G32: =G31+F32 -> 0 | H32: =F32*D32 -> 0 | J32: =F32-H32 -> 0 | P32: 18201 | Q32: 45000 | R32: 26800 | S32: 0.16 | U32: =IF(V31='SMSF Servicing Calculator'!$N$69,0,IF(('SMSF Servicing Calculator'!$N$69-V31)>R32,R32,('SMSF Servicing Calculator'!$N$69-V31))) -> 0 | V32: =V31+U32 -> 0 | W32: =U32*S32 -> 0 | Y32: =U32-W32 -> 0 | AE32: 18201 | AF32: 45000 | AG32: 26800 | AH32: 0.16 | AJ32: =IF(AK31=#REF!,0,IF((#REF!-AK31)>AG32,AG32,(#REF!-AK31))) ->  | AK32: =AK31+AJ32 ->  | AL32: =AJ32*AH32 ->  | AN32: =AJ32-AL32 ->  | AT32: 18201 | AU32: 45000 | AV32: 26800 | AW32: 0.16 | AY32: 0 | AZ32: =AZ31+AY32 -> 0 | BA32: =AY32*AW32 -> 0 | BC32: =AY32-BA32 -> 0
A33: 45001 | B33: 135000 | C33: 90000 | D33: 0.3 | F33: =IF(G32='SME Servicing Calculator'!O35,0,IF(('SME Servicing Calculator'!O35-G32)>C33,C33,('SME Servicing Calculator'!O35-G32))) -> 0 | G33: =G32+F33 -> 0 | H33: =F33*D33 -> 0 | J33: =F33-H33 -> 0 | P33: 45001 | Q33: 135000 | R33: 90000 | S33: 0.3 | U33: =IF(V32='SMSF Servicing Calculator'!$N$69,0,IF(('SMSF Servicing Calculator'!$N$69-V32)>R33,R33,('SMSF Servicing Calculator'!$N$69-V32))) -> 0 | V33: =V32+U33 -> 0 | W33: =U33*S33 -> 0 | Y33: =U33-W33 -> 0 | AA33: =IF(U33>13000,(U33-13000)*0.5%,0) -> 0 | AE33: 45001 | AF33: 135000 | AG33: 90000 | AH33: 0.3 | AJ33: =IF(AK32=#REF!,0,IF((#REF!-AK32)>AG33,AG33,(#REF!-AK32))) ->  | AK33: =AK32+AJ33 ->  | AL33: =AJ33*AH33 ->  | AN33: =AJ33-AL33 ->  | AP33: =IF(AJ33>13000,(AJ33-13000)*0.5%,0) ->  | AT33: 45001 | AU33: 135000 | AV33: 90000 | AW33: 0.3 | AY33: 0 | AZ33: =AZ32+AY33 -> 0 | BA33: =AY33*AW33 -> 0 | BC33: =AY33-BA33 -> 0
A34: 135001 | B34: 190001 | C34: 55001 | D34: 0.37 | F34: =IF(G33='SME Servicing Calculator'!O35,0,IF(('SME Servicing Calculator'!O35-G33)>C34,C34,('SME Servicing Calculator'!O35-G33))) -> 0 | G34: =G33+F34 -> 0 | H34: =F34*D34 -> 0 | J34: =F34-H34 -> 0 | P34: 135001 | Q34: 190001 | R34: 55001 | S34: 0.37 | U34: =IF(V33='SMSF Servicing Calculator'!$N$69,0,IF(('SMSF Servicing Calculator'!$N$69-V33)>R34,R34,('SMSF Servicing Calculator'!$N$69-V33))) -> 0 | V34: =V33+U34 -> 0 | W34: =U34*S34 -> 0 | Y34: =U34-W34 -> 0 | AA34: =SUM(AB34:AC34) -> 0 | AB34: =IF(U34<=20000,U34*0.5%,0) -> 0 | AC34: =IF(U34>20000,((U34-20000)*1%)+100,0) -> 0 | AE34: 135001 | AF34: 190001 | AG34: 55001 | AH34: 0.37 | AJ34: =IF(AK33=#REF!,0,IF((#REF!-AK33)>AG34,AG34,(#REF!-AK33))) ->  | AK34: =AK33+AJ34 ->  | AL34: =AJ34*AH34 ->  | AN34: =AJ34-AL34 ->  | AP34: =SUM(AQ34:AR34) ->  | AQ34: =IF(AJ34<=20000,AJ34*0.5%,0) ->  | AR34: =IF(AJ34>20000,((AJ34-20000)*1%)+100,0) ->  | AT34: 135001 | AU34: 190001 | AV34: 55001 | AW34: 0.37 | AY34: 0 | AZ34: =AZ33+AY34 -> 0 | BA34: =AY34*AW34 -> 0 | BC34: =AY34-BA34 -> 0
A35: 190001 | B35: 100000000 | C35: 99810000 | D35: 0.45 | F35: =IF('SME Servicing Calculator'!O35-G34<=0,0,('SME Servicing Calculator'!O35-G34)) -> 0 | G35: =G34+F35 -> 0 | H35: =F35*D35 -> 0 | J35: =F35-H35 -> 0 | P35: 190001 | Q35: 100000000 | R35: 99810000 | S35: 0.45 | U35: =IF(V34='SMSF Servicing Calculator'!$N$69,0,IF(('SMSF Servicing Calculator'!$N$69-V34)>R35,R35,('SMSF Servicing Calculator'!$N$69-V34))) -> 0 | V35: =V34+U35 -> 0 | W35: =U35*S35 -> 0 | Y35: =U35-W35 -> 0 | AA35: =U35*1% -> 0 | AE35: 190001 | AF35: 100000000 | AG35: 99810000 | AH35: 0.45 | AJ35: =IF(#REF!-AK34<=0,0,(#REF!-AK34)) ->  | AK35: =AK34+AJ35 ->  | AL35: =AJ35*AH35 ->  | AN35: =AJ35-AL35 ->  | AP35: =AJ35*1% ->  | AT35: 190001 | AU35: 100000000 | AV35: 99810000 | AW35: 0.45 | AY35: 0 | AZ35: =AZ34+AY35 -> 0 | BA35: =AY35*AW35 -> 0 | BC35: =AY35-BA35 -> 0
D36: Totals: | F36: =SUM(F31:F35) -> 0 | H36: =SUM(H31:H35) -> 0 | J36: =SUM(J31:J35) -> 0 | S36: Totals: | U36: =SUM(U31:U35) -> 0 | W36: =SUM(W31:W35) -> 0 | Y36: =SUM(Y31:Y35) -> 0 | AA36: =SUM(AA33:AA35) -> 0 | AH36: Totals: | AJ36: =SUM(AJ31:AJ35) ->  | AL36: =SUM(AL31:AL35) ->  | AN36: =SUM(AN31:AN35) ->  | AP36: =SUM(AP33:AP35) ->  | AW36: Totals: | AY36: =SUM(AY31:AY35) -> 0 | BA36: =SUM(BA31:BA35) -> 0 | BC36: =SUM(BC31:BC35) -> 0
A37: Low & middle income tax offset (monthly) | C37: 0 | D37: Refer table | P37: Low & middle income tax offset (monthly) | R37: 0 | S37: Refer table | AE37: Budget Repair Levy (monthly) | AG37: 0 | AH37: N/A | AT37: Low & middle income tax offset (monthly) | AV37: =IF($AY$36<=$B$97,$D$97,(IF($AY$36<=$B$98,$D$98,IF($AY$36<=$B$99,(($AY$36-$B$98)*$C$99)+$D$99,IF($AY$36<=$B$100,$D$100,IF($AY$36<=$B$101,(($AY$36-$B$100)*$C$101)+$D$101,IF($AY$36<=$B$102,$D$102,0)))))))/12 -> 0 | AW37: Refer table
A38: Low income tax offset (monthly) | C38: 0 | D38: Refer table | P38: Low income tax offset (monthly) | R38: 0 | S38: Refer table | AT38: Low income tax offset (monthly) | AV38: =IF($AY$36<=$B$109,$D$109,IF($AY$36<=$B$110,$D$110,IF($AY$36<=$B$111,(($AY$36-$B$110)*$C$111)+$D$111,IF($AY$36<=$B$112,$D$112,0))))/12 -> 0 | AW38: Refer table
A39: Medicare Levy (monthly) | C39: =F36*(2/100)/12 -> 0 | D39: 0.02 | P39: Medicare Levy (monthly) | R39: =U36*(2/100)/12 -> 0 | S39: 0.02 | AE39: Medicare Levy (monthly) | AG39: 0 | AH39: N/A | AT39: Medicare Levy (monthly) | AV39: =AY36*(2/100)/12 -> 0 | AW39: 0.02
C40: =SUM(C37:C39) -> 0 | H40: Monthly | J40: =(J36/12)-C40 -> 0 | R40: =SUM(R37:R39) -> 0 | W40: Monthly | Y40: =(Y36/12)-R40 -> 0 | AG40: =SUM(AG37:AG39) -> 0 | AL40: Monthly | AN40: =(AN36/12)-AG40 ->  | AV40: =SUM(AV37:AV39) -> 0 | BA40: Monthly | BC40: =(BC36/12)-AV40 -> 0
A42: Applicant 4 | P42: Applicant 4 | AE42: Applicant 4 | AT42: Applicant 4
A43: Gross Taxable Income | D43: Tax Rate | F43: Gross | H43: Tax | J43: Net | P43: Gross Taxable Income | S43: Tax Rate | U43: Gross | W43: Tax | Y43: Net | AE43: Gross Taxable Income | AH43: Tax Rate | AJ43: Gross | AL43: Tax | AN43: Net | AT43: Gross Taxable Income | AW43: Tax Rate | AY43: Gross | BA43: Tax | BC43: Net
A44: =A31 -> 1 | B44: 18200 | C44: 18200 | D44: 0 | F44: =IF('SME Servicing Calculator'!O36<B44,'SME Servicing Calculator'!O36,C44) -> 0 | G44: =F44 -> 0 | H44: =F44*D44 -> 0 | J44: =F44-H44 -> 0 | P44: =A44 -> 1 | Q44: 18200 | R44: 18200 | S44: 0 | U44: =IF('SMSF Servicing Calculator'!N72<Q44,'SMSF Servicing Calculator'!N72,R44) -> 0 | V44: =U44 -> 0 | W44: =U44*S44 -> 0 | Y44: =U44-W44 -> 0 | AE44: =AE31 -> 1 | AF44: 18200 | AG44: 18200 | AH44: 0 | AJ44: =IF(#REF!<AF44,#REF!,AG44) ->  | AK44: =AJ44 ->  | AL44: =AJ44*AH44 ->  | AN44: =AJ44-AL44 ->  | AT44: =AT5 -> 1 | AU44: 18200 | AV44: 18200 | AW44: 0 | AY44: 0 | AZ44: =AY44 -> 0 | BA44: =AY44*AW44 -> 0 | BC44: =AY44-BA44 -> 0
A45: 18201 | B45: 45000 | C45: 26800 | D45: 0.16 | F45: =IF(G44='SME Servicing Calculator'!O36,0,IF(('SME Servicing Calculator'!O36-G44)>C45,C45,('SME Servicing Calculator'!O36-G44))) -> 0 | G45: =G44+F45 -> 0 | H45: =F45*D45 -> 0 | J45: =F45-H45 -> 0 | P45: 18201 | Q45: 45000 | R45: 26800 | S45: 0.16 | U45: =IF(V44='SMSF Servicing Calculator'!$N$72,0,IF(('SMSF Servicing Calculator'!$N$72-V44)>R45,R45,('SMSF Servicing Calculator'!$N$72-V44))) -> 0 | V45: =V44+U45 -> 0 | W45: =U45*S45 -> 0 | Y45: =U45-W45 -> 0 | AE45: 18201 | AF45: 45000 | AG45: 26800 | AH45: 0.16 | AJ45: =IF(AK44=#REF!,0,IF((#REF!-AK44)>AG45,AG45,(#REF!-AK44))) ->  | AK45: =AK44+AJ45 ->  | AL45: =AJ45*AH45 ->  | AN45: =AJ45-AL45 ->  | AT45: 18201 | AU45: 45000 | AV45: 26800 | AW45: 0.16 | AY45: 0 | AZ45: =AZ44+AY45 -> 0 | BA45: =AY45*AW45 -> 0 | BC45: =AY45-BA45 -> 0
A46: 45001 | B46: 135000 | C46: 90000 | D46: 0.3 | F46: =IF(G45='SME Servicing Calculator'!O36,0,IF(('SME Servicing Calculator'!O36-G45)>C46,C46,('SME Servicing Calculator'!O36-G45))) -> 0 | G46: =G45+F46 -> 0 | H46: =F46*D46 -> 0 | J46: =F46-H46 -> 0 | P46: 45001 | Q46: 135000 | R46: 90000 | S46: 0.3 | U46: =IF(V45='SMSF Servicing Calculator'!$N$72,0,IF(('SMSF Servicing Calculator'!$N$72-V45)>R46,R46,('SMSF Servicing Calculator'!$N$72-V45))) -> 0 | V46: =V45+U46 -> 0 | W46: =U46*S46 -> 0 | Y46: =U46-W46 -> 0 | AA46: =IF(U46>13000,(U46-13000)*0.5%,0) -> 0 | AE46: 45001 | AF46: 135000 | AG46: 90000 | AH46: 0.3 | AJ46: =IF(AK45=#REF!,0,IF((#REF!-AK45)>AG46,AG46,(#REF!-AK45))) ->  | AK46: =AK45+AJ46 ->  | AL46: =AJ46*AH46 ->  | AN46: =AJ46-AL46 ->  | AP46: =IF(AJ46>13000,(AJ46-13000)*0.5%,0) ->  | AT46: 45001 | AU46: 135000 | AV46: 90000 | AW46: 0.3 | AY46: 0 | AZ46: =AZ45+AY46 -> 0 | BA46: =AY46*AW46 -> 0 | BC46: =AY46-BA46 -> 0
A47: 135001 | B47: 190001 | C47: 55001 | D47: 0.37 | F47: =IF(G46='SME Servicing Calculator'!O36,0,IF(('SME Servicing Calculator'!O36-G46)>C47,C47,('SME Servicing Calculator'!O36-G46))) -> 0 | G47: =G46+F47 -> 0 | H47: =F47*D47 -> 0 | J47: =F47-H47 -> 0 | P47: 135001 | Q47: 190001 | R47: 55001 | S47: 0.37 | U47: =IF(V46='SMSF Servicing Calculator'!$N$72,0,IF(('SMSF Servicing Calculator'!$N$72-V46)>R47,R47,('SMSF Servicing Calculator'!$N$72-V46))) -> 0 | V47: =V46+U47 -> 0 | W47: =U47*S47 -> 0 | Y47: =U47-W47 -> 0 | AA47: =SUM(AB47:AC47) -> 0 | AB47: =IF(U47<=20000,U47*0.5%,0) -> 0 | AC47: =IF(U47>20000,((U47-20000)*1%)+100,0) -> 0 | AE47: 135001 | AF47: 190001 | AG47: 55001 | AH47: 0.37 | AJ47: =IF(AK46=#REF!,0,IF((#REF!-AK46)>AG47,AG47,(#REF!-AK46))) ->  | AK47: =AK46+AJ47 ->  | AL47: =AJ47*AH47 ->  | AN47: =AJ47-AL47 ->  | AP47: =SUM(AQ47:AR47) ->  | AQ47: =IF(AJ47<=20000,AJ47*0.5%,0) ->  | AR47: =IF(AJ47>20000,((AJ47-20000)*1%)+100,0) ->  | AT47: 135001 | AU47: 190001 | AV47: 55001 | AW47: 0.37 | AY47: 0 | AZ47: =AZ46+AY47 -> 0 | BA47: =AY47*AW47 -> 0 | BC47: =AY47-BA47 -> 0
A48: 190001 | B48: 100000000 | C48: 99810000 | D48: 0.45 | F48: =IF('SME Servicing Calculator'!O36-G47<=0,0,('SME Servicing Calculator'!O36-G47)) -> 0 | G48: =G47+F48 -> 0 | H48: =F48*D48 -> 0 | J48: =F48-H48 -> 0 | P48: 190001 | Q48: 100000000 | R48: 99810000 | S48: 0.45 | U48: =IF(V47='SMSF Servicing Calculator'!$N$72,0,IF(('SMSF Servicing Calculator'!$N$72-V47)>R48,R48,('SMSF Servicing Calculator'!$N$72-V47))) -> 0 | V48: =V47+U48 -> 0 | W48: =U48*S48 -> 0 | Y48: =U48-W48 -> 0 | AA48: =U48*1% -> 0 | AE48: 190001 | AF48: 100000000 | AG48: 99810000 | AH48: 0.45 | AJ48: =IF(#REF!-AK47<=0,0,(#REF!-AK47)) ->  | AK48: =AK47+AJ48 ->  | AL48: =AJ48*AH48 ->  | AN48: =AJ48-AL48 ->  | AP48: =AJ48*1% ->  | AT48: 190001 | AU48: 100000000 | AV48: 99810000 | AW48: 0.45 | AY48: 0 | AZ48: =AZ47+AY48 -> 0 | BA48: =AY48*AW48 -> 0 | BC48: =AY48-BA48 -> 0
D49: Totals: | F49: =SUM(F44:F48) -> 0 | H49: =SUM(H44:H48) -> 0 | J49: =SUM(J44:J48) -> 0 | S49: Totals: | U49: =SUM(U44:U48) -> 0 | W49: =SUM(W44:W48) -> 0 | Y49: =SUM(Y44:Y48) -> 0 | AA49: =SUM(AA46:AA48) -> 0 | AH49: Totals: | AJ49: =SUM(AJ44:AJ48) ->  | AL49: =SUM(AL44:AL48) ->  | AN49: =SUM(AN44:AN48) ->  | AP49: =SUM(AP46:AP48) ->  | AW49: Totals: | AY49: =SUM(AY44:AY48) -> 0 | BA49: =SUM(BA44:BA48) -> 0 | BC49: =SUM(BC44:BC48) -> 0
A50: Low & middle income tax offset (monthly) | C50: 0 | D50: Refer table | P50: Low & middle income tax offset (monthly) | R50: 0 | S50: Refer table | AE50: Budget Repair Levy (monthly) | AG50: 0 | AH50: N/A | AT50: Low & middle income tax offset (monthly) | AV50: =IF($AY$49<=$B$97,$D$97,(IF($AY$49<=$B$98,$D$98,IF($AY$49<=$B$99,(($AY$49-$B$98)*$C$99)+$D$99,IF($AY$49<=$B$100,$D$100,IF($AY$49<=$B$101,(($AY$49-$B$100)*$C$101)+$D$101,IF($AY$49<=$B$102,$D$102,0)))))))/12 -> 0 | AW50: Refer table
A51: Low income tax offset (monthly) | C51: 0 | D51: Refer table | P51: Low income tax offset (monthly) | R51: 0 | S51: Refer table | AT51: Low income tax offset (monthly) | AV51: =IF($AY$49<=$B$109,$D$109,IF($AY$49<=$B$110,$D$110,IF($AY$49<=$B$111,(($AY$49-$B$110)*$C$111)+$D$111,IF($AY$49<=$B$112,$D$112,0))))/12 -> 0 | AW51: Refer table
A52: Medicare Levy (monthly) | C52: =F49*(2/100)/12 -> 0 | D52: 0.02 | P52: Medicare Levy (monthly) | R52: =U49*(2/100)/12 -> 0 | S52: 0.02 | AE52: Medicare Levy (monthly) | AG52: 0 | AH52: N/A | AT52: Medicare Levy (monthly) | AV52: =AY49*(2/100)/12 -> 0 | AW52: 0.02
C53: =SUM(C50:C52) -> 0 | H53: Monthly | J53: =(J49/12)-C53 -> 0 | R53: =SUM(R50:R52) -> 0 | W53: Monthly | Y53: =(Y49/12)-R53 -> 0 | AG53: =SUM(AG50:AG52) -> 0 | AL53: Monthly | AN53: =(AN49/12)-AG53 ->  | AV53: =SUM(AV50:AV52) -> 0 | BA53: Monthly | BC53: =(BC49/12)-AV53 -> 0
A55: Applicant 5 | P55: Applicant 5 | AE55: Applicant 5 | AT55: Applicant 5
A56: Gross Taxable Income | D56: Tax Rate | F56: Gross | H56: Tax | J56: Net | P56: Gross Taxable Income | S56: Tax Rate | U56: Gross | W56: Tax | Y56: Net | AE56: Gross Taxable Income | AH56: Tax Rate | AJ56: Gross | AL56: Tax | AN56: Net | AT56: Gross Taxable Income | AW56: Tax Rate | AY56: Gross | BA56: Tax | BC56: Net
A57: 1 | B57: 6000 | C57: =B57-A57+1 -> 6000 | D57: 0 | F57: =IF('SME Servicing Calculator'!#REF!<B57,'SME Servicing Calculator'!#REF!,C57) ->  | G57: =F57 ->  | H57: =F57*D57 ->  | J57: =F57-H57 ->  | P57: 1 | Q57: 6000 | R57: =Q57-P57+1 -> 6000 | S57: 0 | U57: =IF('SME Servicing Calculator'!#REF!<Q57,'SME Servicing Calculator'!#REF!,R57) ->  | V57: =U57 ->  | W57: =U57*S57 ->  | Y57: =U57-W57 ->  | AE57: 1 | AF57: 6000 | AG57: =AF57-AE57+1 -> 6000 | AH57: 0 | AJ57: =IF(#REF!<AF57,#REF!,AG57) ->  | AK57: =AJ57 ->  | AL57: =AJ57*AH57 ->  | AN57: =AJ57-AL57 ->  | AT57: 1 | AU57: 6000 | AV57: =AU57-AT57+1 -> 6000 | AW57: 0 | AY57: =IF('SME Servicing Calculator'!#REF!<AU57,'SME Servicing Calculator'!#REF!,AV57) ->  | AZ57: =AY57 ->  | BA57: =AY57*AW57 ->  | BC57: =AY57-BA57 -> 
A58: 6001 | B58: 35000 | C58: =B58-A58+1 -> 29000 | D58: 0.15 | F58: =IF(G57='SME Servicing Calculator'!#REF!,0,IF(('SME Servicing Calculator'!#REF!-G57)>C58,C58,('SME Servicing Calculator'!#REF!-G57))) ->  | G58: =G57+F58 ->  | H58: =F58*D58 ->  | J58: =F58-H58 ->  | P58: 6001 | Q58: 35000 | R58: =Q58-P58+1 -> 29000 | S58: 0.15 | U58: =IF(V57='SME Servicing Calculator'!#REF!,0,IF(('SME Servicing Calculator'!#REF!-V57)>R58,R58,('SME Servicing Calculator'!#REF!-V57))) ->  | V58: =V57+U58 ->  | W58: =U58*S58 ->  | Y58: =U58-W58 ->  | AE58: 6001 | AF58: 35000 | AG58: =AF58-AE58+1 -> 29000 | AH58: 0.15 | AJ58: =IF(AK57=#REF!,0,IF((#REF!-AK57)>AG58,AG58,(#REF!-AK57))) ->  | AK58: =AK57+AJ58 ->  | AL58: =AJ58*AH58 ->  | AN58: =AJ58-AL58 ->  | AT58: 6001 | AU58: 35000 | AV58: =AU58-AT58+1 -> 29000 | AW58: 0.15 | AY58: =IF(AZ57='SME Servicing Calculator'!#REF!,0,IF(('SME Servicing Calculator'!#REF!-AZ57)>AV58,AV58,('SME Servicing Calculator'!#REF!-AZ57))) ->  | AZ58: =AZ57+AY58 ->  | BA58: =AY58*AW58 ->  | BC58: =AY58-BA58 -> 
A59: 35001 | B59: 80000 | C59: =B59-A59+1 -> 45000 | D59: 0.3 | F59: =IF(G58='SME Servicing Calculator'!#REF!,0,IF(('SME Servicing Calculator'!#REF!-G58)>C59,C59,('SME Servicing Calculator'!#REF!-G58))) ->  | G59: =G58+F59 ->  | H59: =F59*D59 ->  | J59: =F59-H59 ->  | P59: 35001 | Q59: 80000 | R59: =Q59-P59+1 -> 45000 | S59: 0.3 | U59: =IF(V58='SME Servicing Calculator'!#REF!,0,IF(('SME Servicing Calculator'!#REF!-V58)>R59,R59,('SME Servicing Calculator'!#REF!-V58))) ->  | V59: =V58+U59 ->  | W59: =U59*S59 ->  | Y59: =U59-W59 ->  | AE59: 35001 | AF59: 80000 | AG59: =AF59-AE59+1 -> 45000 | AH59: 0.3 | AJ59: =IF(AK58=#REF!,0,IF((#REF!-AK58)>AG59,AG59,(#REF!-AK58))) ->  | AK59: =AK58+AJ59 ->  | AL59: =AJ59*AH59 ->  | AN59: =AJ59-AL59 ->  | AT59: 35001 | AU59: 80000 | AV59: =AU59-AT59+1 -> 45000 | AW59: 0.3 | AY59: =IF(AZ58='SME Servicing Calculator'!#REF!,0,IF(('SME Servicing Calculator'!#REF!-AZ58)>AV59,AV59,('SME Servicing Calculator'!#REF!-AZ58))) ->  | AZ59: =AZ58+AY59 ->  | BA59: =AY59*AW59 ->  | BC59: =AY59-BA59 -> 
A60: 80001 | B60: 180000 | C60: =B60-A60+1 -> 100000 | D60: 0.38 | F60: =IF(G59='SME Servicing Calculator'!#REF!,0,IF(('SME Servicing Calculator'!#REF!-G59)>C60,C60,('SME Servicing Calculator'!#REF!-G59))) ->  | G60: =G59+F60 ->  | H60: =F60*D60 ->  | J60: =F60-H60 ->  | P60: 80001 | Q60: 180000 | R60: =Q60-P60+1 -> 100000 | S60: 0.38 | U60: =IF(V59='SME Servicing Calculator'!#REF!,0,IF(('SME Servicing Calculator'!#REF!-V59)>R60,R60,('SME Servicing Calculator'!#REF!-V59))) ->  | V60: =V59+U60 ->  | W60: =U60*S60 ->  | Y60: =U60-W60 ->  | AE60: 80001 | AF60: 180000 | AG60: =AF60-AE60+1 -> 100000 | AH60: 0.38 | AJ60: =IF(AK59=#REF!,0,IF((#REF!-AK59)>AG60,AG60,(#REF!-AK59))) ->  | AK60: =AK59+AJ60 ->  | AL60: =AJ60*AH60 ->  | AN60: =AJ60-AL60 ->  | AT60: 80001 | AU60: 180000 | AV60: =AU60-AT60+1 -> 100000 | AW60: 0.38 | AY60: =IF(AZ59='SME Servicing Calculator'!#REF!,0,IF(('SME Servicing Calculator'!#REF!-AZ59)>AV60,AV60,('SME Servicing Calculator'!#REF!-AZ59))) ->  | AZ60: =AZ59+AY60 ->  | BA60: =AY60*AW60 ->  | BC60: =AY60-BA60 -> 
A61: 180001 | B61: 1000000 | C61: =B61-A61+1 -> 820000 | D61: 0.45 | F61: =IF('SME Servicing Calculator'!#REF!-G60<=0,0,('SME Servicing Calculator'!#REF!-G60)) ->  | G61: =G60+F61 ->  | H61: =F61*D61 ->  | J61: =F61-H61 ->  | P61: 180001 | Q61: 1000000 | R61: =Q61-P61+1 -> 820000 | S61: 0.45 | U61: =IF('SME Servicing Calculator'!#REF!-V60<=0,0,('SME Servicing Calculator'!#REF!-V60)) ->  | V61: =V60+U61 ->  | W61: =U61*S61 ->  | Y61: =U61-W61 ->  | AE61: 180001 | AF61: 1000000 | AG61: =AF61-AE61+1 -> 820000 | AH61: 0.45 | AJ61: =IF(#REF!-AK60<=0,0,(#REF!-AK60)) ->  | AK61: =AK60+AJ61 ->  | AL61: =AJ61*AH61 ->  | AN61: =AJ61-AL61 ->  | AT61: 180001 | AU61: 1000000 | AV61: =AU61-AT61+1 -> 820000 | AW61: 0.45 | AY61: =IF('SME Servicing Calculator'!#REF!-AZ60<=0,0,('SME Servicing Calculator'!#REF!-AZ60)) ->  | AZ61: =AZ60+AY61 ->  | BA61: =AY61*AW61 ->  | BC61: =AY61-BA61 -> 
D62: Totals: | F62: =SUM(F57:F61) ->  | H62: =SUM(H57:H61) ->  | J62: =SUM(J57:J61) ->  | S62: Totals: | U62: =SUM(U57:U61) ->  | W62: =SUM(W57:W61) ->  | Y62: =SUM(Y57:Y61) ->  | AH62: Totals: | AJ62: =SUM(AJ57:AJ61) ->  | AL62: =SUM(AL57:AL61) ->  | AN62: =SUM(AN57:AN61) ->  | AW62: Totals: | AY62: =SUM(AY57:AY61) ->  | BA62: =SUM(BA57:BA61) ->  | BC62: =SUM(BC57:BC61) -> 
A63: =F62*(1.5/100)/12 ->  | B63: Medicare Levy (Monthly) | P63: =U62*(1.5/100)/12 ->  | Q63: Medicare Levy (Monthly) | AE63: =AJ62*(1.5/100)/12 ->  | AF63: Medicare Levy (Monthly) | AT63: =AY62*(1.5/100)/12 ->  | AU63: Medicare Levy (Monthly)
H64: Monthly | J64: =(J62/12)-A63 ->  | W64: Monthly | Y64: =(Y62/12)-P63 ->  | AL64: Monthly | AN64: =(AN62/12)-AE63 ->  | BA64: Monthly | BC64: =(BC62/12)-AT63 -> 
A66: Applicant 6 | P66: Applicant 6 | AE66: Applicant 6 | AT66: Applicant 6
A67: Gross Taxable Income | D67: Tax Rate | F67: Gross | H67: Tax | J67: Net | P67: Gross Taxable Income | S67: Tax Rate | U67: Gross | W67: Tax | Y67: Net | AE67: Gross Taxable Income | AH67: Tax Rate | AJ67: Gross | AL67: Tax | AN67: Net | AT67: Gross Taxable Income | AW67: Tax Rate | AY67: Gross | BA67: Tax | BC67: Net
A68: 1 | B68: 6000 | C68: =B68-A68+1 -> 6000 | D68: 0 | F68: =IF('SME Servicing Calculator'!#REF!<B68,'SME Servicing Calculator'!#REF!,C68) ->  | G68: =F68 ->  | H68: =F68*D68 ->  | J68: =F68-H68 ->  | P68: 1 | Q68: 6000 | R68: =Q68-P68+1 -> 6000 | S68: 0 | U68: =IF('SME Servicing Calculator'!#REF!<Q68,'SME Servicing Calculator'!#REF!,R68) ->  | V68: =U68 ->  | W68: =U68*S68 ->  | Y68: =U68-W68 ->  | AE68: 1 | AF68: 6000 | AG68: =AF68-AE68+1 -> 6000 | AH68: 0 | AJ68: =IF(#REF!<AF68,#REF!,AG68) ->  | AK68: =AJ68 ->  | AL68: =AJ68*AH68 ->  | AN68: =AJ68-AL68 ->  | AT68: 1 | AU68: 6000 | AV68: =AU68-AT68+1 -> 6000 | AW68: 0 | AY68: =IF('SME Servicing Calculator'!#REF!<AU68,'SME Servicing Calculator'!#REF!,AV68) ->  | AZ68: =AY68 ->  | BA68: =AY68*AW68 ->  | BC68: =AY68-BA68 -> 
A69: 6001 | B69: 35000 | C69: =B69-A69+1 -> 29000 | D69: 0.15 | F69: =IF(G68='SME Servicing Calculator'!#REF!,0,IF(('SME Servicing Calculator'!#REF!-G68)>C69,C69,('SME Servicing Calculator'!#REF!-G68))) ->  | G69: =G68+F69 ->  | H69: =F69*D69 ->  | J69: =F69-H69 ->  | P69: 6001 | Q69: 35000 | R69: =Q69-P69+1 -> 29000 | S69: 0.15 | U69: =IF(V68='SME Servicing Calculator'!#REF!,0,IF(('SME Servicing Calculator'!#REF!-V68)>R69,R69,('SME Servicing Calculator'!#REF!-V68))) ->  | V69: =V68+U69 ->  | W69: =U69*S69 ->  | Y69: =U69-W69 ->  | AE69: 6001 | AF69: 35000 | AG69: =AF69-AE69+1 -> 29000 | AH69: 0.15 | AJ69: =IF(AK68=#REF!,0,IF((#REF!-AK68)>AG69,AG69,(#REF!-AK68))) ->  | AK69: =AK68+AJ69 ->  | AL69: =AJ69*AH69 ->  | AN69: =AJ69-AL69 ->  | AT69: 6001 | AU69: 35000 | AV69: =AU69-AT69+1 -> 29000 | AW69: 0.15 | AY69: =IF(AZ68='SME Servicing Calculator'!#REF!,0,IF(('SME Servicing Calculator'!#REF!-AZ68)>AV69,AV69,('SME Servicing Calculator'!#REF!-AZ68))) ->  | AZ69: =AZ68+AY69 ->  | BA69: =AY69*AW69 ->  | BC69: =AY69-BA69 -> 
A70: 35001 | B70: 80000 | C70: =B70-A70+1 -> 45000 | D70: 0.3 | F70: =IF(G69='SME Servicing Calculator'!#REF!,0,IF(('SME Servicing Calculator'!#REF!-G69)>C70,C70,('SME Servicing Calculator'!#REF!-G69))) ->  | G70: =G69+F70 ->  | H70: =F70*D70 ->  | J70: =F70-H70 ->  | P70: 35001 | Q70: 80000 | R70: =Q70-P70+1 -> 45000 | S70: 0.3 | U70: =IF(V69='SME Servicing Calculator'!#REF!,0,IF(('SME Servicing Calculator'!#REF!-V69)>R70,R70,('SME Servicing Calculator'!#REF!-V69))) ->  | V70: =V69+U70 ->  | W70: =U70*S70 ->  | Y70: =U70-W70 ->  | AE70: 35001 | AF70: 80000 | AG70: =AF70-AE70+1 -> 45000 | AH70: 0.3 | AJ70: =IF(AK69=#REF!,0,IF((#REF!-AK69)>AG70,AG70,(#REF!-AK69))) ->  | AK70: =AK69+AJ70 ->  | AL70: =AJ70*AH70 ->  | AN70: =AJ70-AL70 ->  | AT70: 35001 | AU70: 80000 | AV70: =AU70-AT70+1 -> 45000 | AW70: 0.3 | AY70: =IF(AZ69='SME Servicing Calculator'!#REF!,0,IF(('SME Servicing Calculator'!#REF!-AZ69)>AV70,AV70,('SME Servicing Calculator'!#REF!-AZ69))) ->  | AZ70: =AZ69+AY70 ->  | BA70: =AY70*AW70 ->  | BC70: =AY70-BA70 -> 
A71: 80001 | B71: 180000 | C71: =B71-A71+1 -> 100000 | D71: 0.38 | F71: =IF(G70='SME Servicing Calculator'!#REF!,0,IF(('SME Servicing Calculator'!#REF!-G70)>C71,C71,('SME Servicing Calculator'!#REF!-G70))) ->  | G71: =G70+F71 ->  | H71: =F71*D71 ->  | J71: =F71-H71 ->  | P71: 80001 | Q71: 180000 | R71: =Q71-P71+1 -> 100000 | S71: 0.38 | U71: =IF(V70='SME Servicing Calculator'!#REF!,0,IF(('SME Servicing Calculator'!#REF!-V70)>R71,R71,('SME Servicing Calculator'!#REF!-V70))) ->  | V71: =V70+U71 ->  | W71: =U71*S71 ->  | Y71: =U71-W71 ->  | AE71: 80001 | AF71: 180000 | AG71: =AF71-AE71+1 -> 100000 | AH71: 0.38 | AJ71: =IF(AK70=#REF!,0,IF((#REF!-AK70)>AG71,AG71,(#REF!-AK70))) ->  | AK71: =AK70+AJ71 ->  | AL71: =AJ71*AH71 ->  | AN71: =AJ71-AL71 ->  | AT71: 80001 | AU71: 180000 | AV71: =AU71-AT71+1 -> 100000 | AW71: 0.38 | AY71: =IF(AZ70='SME Servicing Calculator'!#REF!,0,IF(('SME Servicing Calculator'!#REF!-AZ70)>AV71,AV71,('SME Servicing Calculator'!#REF!-AZ70))) ->  | AZ71: =AZ70+AY71 ->  | BA71: =AY71*AW71 ->  | BC71: =AY71-BA71 -> 
A72: 180001 | B72: 1000000 | C72: =B72-A72+1 -> 820000 | D72: 0.45 | F72: =IF('SME Servicing Calculator'!#REF!-G71<=0,0,('SME Servicing Calculator'!#REF!-G71)) ->  | G72: =G71+F72 ->  | H72: =F72*D72 ->  | J72: =F72-H72 ->  | P72: 180001 | Q72: 1000000 | R72: =Q72-P72+1 -> 820000 | S72: 0.45 | U72: =IF('SME Servicing Calculator'!#REF!-V71<=0,0,('SME Servicing Calculator'!#REF!-V71)) ->  | V72: =V71+U72 ->  | W72: =U72*S72 ->  | Y72: =U72-W72 ->  | AE72: 180001 | AF72: 1000000 | AG72: =AF72-AE72+1 -> 820000 | AH72: 0.45 | AJ72: =IF(#REF!-AK71<=0,0,(#REF!-AK71)) ->  | AK72: =AK71+AJ72 ->  | AL72: =AJ72*AH72 ->  | AN72: =AJ72-AL72 ->  | AT72: 180001 | AU72: 1000000 | AV72: =AU72-AT72+1 -> 820000 | AW72: 0.45 | AY72: =IF('SME Servicing Calculator'!#REF!-AZ71<=0,0,('SME Servicing Calculator'!#REF!-AZ71)) ->  | AZ72: =AZ71+AY72 ->  | BA72: =AY72*AW72 ->  | BC72: =AY72-BA72 -> 
D73: Totals: | F73: =SUM(F68:F72) ->  | H73: =SUM(H68:H72) ->  | J73: =SUM(J68:J72) ->  | S73: Totals: | U73: =SUM(U68:U72) ->  | W73: =SUM(W68:W72) ->  | Y73: =SUM(Y68:Y72) ->  | AH73: Totals: | AJ73: =SUM(AJ68:AJ72) ->  | AL73: =SUM(AL68:AL72) ->  | AN73: =SUM(AN68:AN72) ->  | AW73: Totals: | AY73: =SUM(AY68:AY72) ->  | BA73: =SUM(BA68:BA72) ->  | BC73: =SUM(BC68:BC72) -> 
A74: =F73*(1.5/100)/12 ->  | B74: Medicare Levy (Monthly) | P74: =U73*(1.5/100)/12 ->  | Q74: Medicare Levy (Monthly) | AE74: =AJ73*(1.5/100)/12 ->  | AF74: Medicare Levy (Monthly) | AT74: =AY73*(1.5/100)/12 ->  | AU74: Medicare Levy (Monthly)
H75: Monthly | J75: =(J73/12)-A74 ->  | W75: Monthly | Y75: =(Y73/12)-P74 ->  | AL75: Monthly | AN75: =(AN73/12)-AE74 ->  | BA75: Monthly | BC75: =(BC73/12)-AT74 -> 
A78: Company 1 | P78: Company 1 | AE78: Company 1
A79: Gross Taxable Income | D79: Tax Rate | F79: Gross | H79: Tax | J79: Net | P79: Gross Taxable Income | S79: Tax Rate | U79: Gross | W79: Tax | Y79: Net | AE79: Gross Taxable Income | AH79: Tax Rate | AJ79: Gross | AL79: Tax | AN79: Net
D80: 0.25 | F80: ='SME Servicing Calculator'!D47 -> 0 | G80: =F80 -> 0 | H80: =F80*D80 -> 0 | J80: =F80-H80 -> 0 | S80: =D80 -> 0.25 | U80: ='SMSF Servicing Calculator'!D84 -> 0 | V80: =U80 -> 0 | W80: =U80*S80 -> 0 | Y80: =U80-W80 -> 0 | AH80: 0.25 | AJ80: =#REF! ->  | AK80: =AJ80 ->  | AL80: =AJ80*AH80 ->  | AN80: =AJ80-AL80 -> 
D81: Totals: | F81: =SUM(F80:F80) -> 0 | H81: =SUM(H80:H80) -> 0 | J81: =SUM(J80:J80) -> 0 | S81: Totals: | U81: =SUM(U80:U80) -> 0 | W81: =SUM(W80:W80) -> 0 | Y81: =SUM(Y80:Y80) -> 0 | AH81: Totals: | AJ81: =SUM(AJ80:AJ80) ->  | AL81: =SUM(AL80:AL80) ->  | AN81: =SUM(AN80:AN80) -> 
A82: N/A | B82: Medicare Levy (Monthly) | P82: N/A | Q82: Medicare Levy (Monthly) | AE82: N/A | AF82: Medicare Levy (Monthly)
H83: Monthly | J83: =(J81/12) -> 0 | W83: Monthly | Y83: =(Y81/12) -> 0 | AL83: Monthly | AN83: =(AN81/12) -> 
A85: Company 2 | P85: Company 2 | AE85: Company 2
A86: Gross Taxable Income | D86: Tax Rate | F86: Gross | H86: Tax | J86: Net | P86: Gross Taxable Income | S86: Tax Rate | U86: Gross | W86: Tax | Y86: Net | AE86: Gross Taxable Income | AH86: Tax Rate | AJ86: Gross | AL86: Tax | AN86: Net
D87: =D80 -> 0.25 | F87: ='SME Servicing Calculator'!D48 -> 0 | G87: =F87 -> 0 | H87: =F87*D87 -> 0 | J87: =F87-H87 -> 0 | S87: =D87 -> 0.25 | U87: ='SMSF Servicing Calculator'!D85 -> 0 | V87: =U87 -> 0 | W87: =U87*S87 -> 0 | Y87: =U87-W87 -> 0 | AH87: =AH80 -> 0.25 | AJ87: =#REF! ->  | AK87: =AJ87 ->  | AL87: =AJ87*AH87 ->  | AN87: =AJ87-AL87 -> 
D88: Totals: | F88: =SUM(F87:F87) -> 0 | H88: =SUM(H87:H87) -> 0 | J88: =SUM(J87:J87) -> 0 | S88: Totals: | U88: =SUM(U87:U87) -> 0 | W88: =SUM(W87:W87) -> 0 | Y88: =SUM(Y87:Y87) -> 0 | AH88: Totals: | AJ88: =SUM(AJ87:AJ87) ->  | AL88: =SUM(AL87:AL87) ->  | AN88: =SUM(AN87:AN87) -> 
A89: N/A | B89: Medicare Levy (Monthly) | P89: N/A | Q89: Medicare Levy (Monthly) | AE89: N/A | AF89: Medicare Levy (Monthly)
H90: Monthly | J90: =(J88/12) -> 0 | W90: Monthly | Y90: =(Y88/12) -> 0 | AL90: Monthly | AN90: =(AN88/12) -> 
P92: SMSF Assets
P93: Gross Taxable Income | S93: Tax Rate | U93: Assets | V93: Income | W93: Tax | Y93: Net
S94: 0.15 | U94: ='SMSF Servicing Calculator'!D8 ->  | V94: =U94*3.9% ->  | W94: =V94*S94 ->  | Y94: =V94-W94 -> 
A95: Low & Middle Income Tax Offset table | S95: Totals: | U95: =SUM(U94:U94) ->  | W95: =SUM(W94:W94) ->  | Y95: =SUM(Y94:Y94) -> 
A96: Low Band | B96: High Band | C96: % Cacl | D96: $ Calc | P96: N/A | Q96: Medicare Levy (Monthly)
A97: 0 | B97: 19543 | D97: 0
A98: 19543 | B98: 37000 | D98: -255 | W98: Monthly | Y98: =(Y95/12) -> 
A99: 37001 | B99: 48000 | C99: -0.075 | D99: -255
A100: 48001 | B100: 90000 | D100: -1080 | P100: SMSF Contributions - Applicant 1
A101: 90001 | B101: 126000 | C101: 0.03 | D101: -1080 | P101: Gross Taxable Income | S101: Tax Rate | U101: Gross | W101: Tax | Y101: Net
A102: 126001 | B102: 10000000 | D102: 0 | P102: 1 | Q102: 25000 | R102: =Q102-P102+1 -> 25000 | S102: 0.15 | U102: =IF('SMSF Servicing Calculator'!D12<Q102,'SMSF Servicing Calculator'!D12,R102) -> 0 | V102: =U102 -> 0 | W102: =U102*S102 -> 0 | Y102: =V102-W102 -> 0
P103: 25001 | Q103: 10000000 | R103: =Q103-P103+1 -> 9975000 | S103: 0.47 | U103: =IF(V102='SMSF Servicing Calculator'!$D$12,0,IF(('SMSF Servicing Calculator'!$D$12-V102)>R103,R103,('SMSF Servicing Calculator'!$D$12-V102))) -> 0 | V103: =V102+U103 -> 0 | W103: =U103*S103 -> 0 | Y103: =U103-W103 -> 0
S104: Totals: | U104: =SUM(U102:U103) -> 0 | W104: =SUM(W102:W103) -> 0 | Y104: =SUM(Y102:Y103) -> 0
A106: =IF(F10<=B97,D97,IF($F$23<=$B$98,$D$98,IF($F$23<=$B$99,(($F$23-$B$98)*$C$99)+$D$99,IF($F$23<=$B$100,$D$100,IF($F$23<=$B$101,(($F$23-$B$100)*$C$101)+$D$101,IF($F$23<=$B$102,$D$102,0)))))) -> 0 | W106: Monthly | Y106: =(Y104/12) -> 0
A108: Low Income Tax Offset | P108: SMSF Contributions - Applicant 2
A109: 0 | B109: 20593 | D109: 0 | P109: Gross Taxable Income | S109: Tax Rate | U109: Gross | W109: Tax | Y109: Net
A110: 20596 | B110: 37000 | D110: -445 | P110: 1 | Q110: 25000 | R110: =Q110-P110+1 -> 25000 | S110: =S102 -> 0.15 | U110: =IF('SMSF Servicing Calculator'!D13<Q110,'SMSF Servicing Calculator'!D13,R110) -> 0 | V110: =U110 -> 0 | W110: =U110*S110 -> 0 | Y110: =V110-W110 -> 0
A111: 37001 | B111: 66666 | C111: 0.015 | D111: -445 | P111: 25001 | Q111: 10000000 | R111: =Q111-P111+1 -> 9975000 | S111: =S103 -> 0.47 | U111: =IF(V110='SMSF Servicing Calculator'!$D$13,0,IF(('SMSF Servicing Calculator'!$D$13-V110)>R111,R111,('SMSF Servicing Calculator'!$D$13-V110))) -> 0 | V111: =V110+U111 -> 0 | W111: =U111*S111 -> 0 | Y111: =U111-W111 -> 0
A112: 66667 | B112: 10000000 | D112: 0 | S112: Totals: | U112: =SUM(U110:U111) -> 0 | W112: =SUM(W110:W111) -> 0 | Y112: =SUM(Y110:Y111) -> 0
W114: Monthly | Y114: =(Y112/12) -> 0
A115: =IF($F$10<=$B$109,$D$109,IF($F$10<=$B$110,$D$110,IF($F$10<=$B$111,(($F$10-$B$110)*$C$111)+$D$111,IF($F$10<=$B$112,$D$112,0)))) -> 0
P116: SMSF Contributions - Applicant 3
P117: Gross Taxable Income | S117: Tax Rate | U117: Gross | W117: Tax | Y117: Net
P118: 1 | Q118: 25000 | R118: =Q118-P118+1 -> 25000 | S118: =S102 -> 0.15 | U118: =IF('SMSF Servicing Calculator'!D14<Q118,'SMSF Servicing Calculator'!D14,R118) -> 0 | V118: =U118 -> 0 | W118: =U118*S118 -> 0 | Y118: =V118-W118 -> 0
P119: 25001 | Q119: 10000000 | R119: =Q119-P119+1 -> 9975000 | S119: =S103 -> 0.47 | U119: =IF(V118='SMSF Servicing Calculator'!$D$14,0,IF(('SMSF Servicing Calculator'!$D$14-V118)>R119,R119,('SMSF Servicing Calculator'!$D$14-V118))) -> 0 | V119: =V118+U119 -> 0 | W119: =U119*S119 -> 0 | Y119: =U119-W119 -> 0
S120: Totals: | U120: =SUM(U118:U119) -> 0 | W120: =SUM(W118:W119) -> 0 | Y120: =SUM(Y118:Y119) -> 0
W122: Monthly | Y122: =(Y120/12) -> 0
P124: SMSF Contributions - Applicant 4
P125: Gross Taxable Income | S125: Tax Rate | U125: Gross | W125: Tax | Y125: Net
P126: 1 | Q126: 25000 | R126: =Q126-P126+1 -> 25000 | S126: =S102 -> 0.15 | U126: =IF('SMSF Servicing Calculator'!D15<Q126,'SMSF Servicing Calculator'!D15,R126) -> 0 | V126: =U126 -> 0 | W126: =U126*S126 -> 0 | Y126: =V126-W126 -> 0
P127: 25001 | Q127: 10000000 | R127: =Q127-P127+1 -> 9975000 | S127: =S103 -> 0.47 | U127: =IF(V126='SMSF Servicing Calculator'!$D$15,0,IF(('SMSF Servicing Calculator'!$D$15-V126)>R127,R127,('SMSF Servicing Calculator'!$D$15-V126))) -> 0 | V127: =V126+U127 -> 0 | W127: =U127*S127 -> 0 | Y127: =U127-W127 -> 0
S128: Totals: | U128: =SUM(U126:U127) -> 0 | W128: =SUM(W126:W127) -> 0 | Y128: =SUM(Y126:Y127) -> 0
W130: Monthly | Y130: =(Y128/12) -> 0

Sheet Tax Scales (hidden)
A1: Annual Salary Guide - Standard | P1: Annual Salary Guide - SMSF | AE1: Annual Salary Guide - Non Resident | AT1: Annual Salary Guide - ICR
A2: Tax Scales | P2: Tax Scales | AE2: Tax Scales | AT2: Tax Scales
A3: Applicant 1 | P3: Applicant 1 | AE3: Applicant 1 | AT3: Applicant 1
A4: Gross Taxable Income | D4: Tax Rate | F4: Gross | H4: Tax | J4: Net | P4: Gross Taxable Income | S4: Tax Rate | U4: Gross | W4: Tax | Y4: Net | AA4: Flood Levy Calculations | AE4: Gross Taxable Income | AH4: Tax Rate | AJ4: Gross | AL4: Tax | AN4: Net | AP4: Flood Levy Calculations | AT4: Gross Taxable Income | AW4: Tax Rate | AY4: Gross | BA4: Tax | BC4: Net
A5: 1 | B5: 18200 | C5: =B5-A5+1 -> 18200 | D5: 0 | F5: =IF('Serviceability Calculator'!V33<B5,'Serviceability Calculator'!V33,C5) -> 0 | G5: =F5 -> 0 | H5: =F5*D5 -> 0 | J5: =F5-H5 -> 0 | P5: =A5 -> 1 | Q5: 18200 | R5: 18200 | S5: 0 | U5: =IF('SMSF Servicing Calculator'!N67<Q5,'SMSF Servicing Calculator'!N67,R5) -> 0 | V5: =U5 -> 0 | W5: =U5*S5 -> 0 | Y5: =U5-W5 -> 0 | AE5: =P5 -> 1 | AF5: 18200 | AG5: =R5 -> 18200 | AH5: 0 | AJ5: =IF(#REF!<AF5,#REF!,AG5) ->  | AK5: =AJ5 ->  | AL5: =AJ5*AH5 ->  | AN5: =AJ5-AL5 ->  | AT5: =A5 -> 1 | AU5: 18200 | AV5: 18200 | AW5: 0 | AY5: 0 | AZ5: =AY5 -> 0 | BA5: =AY5*AW5 -> 0 | BC5: =AY5-BA5 -> 0
A6: 18201 | B6: 45000 | C6: =B6-A6+1 -> 26800 | D6: 0.16 | F6: =IF(G5='Serviceability Calculator'!V33,0,IF(('Serviceability Calculator'!V33-G5)>C6,C6,('Serviceability Calculator'!V33-G5))) -> 0 | G6: =G5+F6 -> 0 | H6: =F6*D6 -> 0 | J6: =F6-H6 -> 0 | P6: 18201 | Q6: 45000 | R6: =C6 -> 26800 | S6: 0.16 | U6: =IF(V5='SMSF Servicing Calculator'!$N$67,0,IF(('SMSF Servicing Calculator'!$N$67-V5)>R6,R6,('SMSF Servicing Calculator'!$N$67-V5))) -> 0 | V6: =V5+U6 -> 0 | W6: =U6*S6 -> 0 | Y6: =U6-W6 -> 0 | AE6: 18201 | AF6: 45000 | AG6: 26800 | AH6: 0.16 | AJ6: =IF(AK5=#REF!,0,IF((#REF!-0)>AG6,AG6,(#REF!-0))) ->  | AK6: =AK5+AJ6 ->  | AL6: =AJ6*AH6 ->  | AN6: =AJ6-AL6 ->  | AT6: 18201 | AU6: 45000 | AV6: 26800 | AW6: 0.16 | AY6: 0 | AZ6: =AZ5+AY6 -> 0 | BA6: =AY6*AW6 -> 0 | BC6: =AY6-BA6 -> 0
A7: 45001 | B7: 135000 | C7: =B7-A7+1 -> 90000 | D7: 0.3 | F7: =IF(G6='Serviceability Calculator'!V33,0,IF(('Serviceability Calculator'!V33-G6)>C7,C7,('Serviceability Calculator'!V33-G6))) -> 0 | G7: =G6+F7 -> 0 | H7: =F7*D7 -> 0 | J7: =F7-H7 -> 0 | P7: 45001 | Q7: 135000 | R7: 90000 | S7: 0.3 | U7: =IF(V6='SMSF Servicing Calculator'!$N$67,0,IF(('SMSF Servicing Calculator'!$N$67-V6)>R7,R7,('SMSF Servicing Calculator'!$N$67-V6))) -> 0 | V7: =V6+U7 -> 0 | W7: =U7*S7 -> 0 | Y7: =U7-W7 -> 0 | AA7: =IF(U7>13000,(U7-13000)*0.5%,0) -> 0 | AE7: 45001 | AF7: 135000 | AG7: 90000 | AH7: 0.3 | AJ7: =IF(AK6=#REF!,0,IF((#REF!-AK6)>AG7,AG7,(#REF!-AK6))) ->  | AK7: =AK6+AJ7 ->  | AL7: =AJ7*AH7 ->  | AN7: =AJ7-AL7 ->  | AP7: =IF(AJ7>13000,(AJ7-13000)*0.5%,0) ->  | AT7: 45001 | AU7: 135000 | AV7: 90000 | AW7: 0.3 | AY7: 0 | AZ7: =AZ6+AY7 -> 0 | BA7: =AY7*AW7 -> 0 | BC7: =AY7-BA7 -> 0
A8: 135001 | B8: 190001 | C8: =B8-A8+1 -> 55001 | D8: 0.37 | F8: =IF(G7='Serviceability Calculator'!V33,0,IF(('Serviceability Calculator'!V33-G7)>C8,C8,('Serviceability Calculator'!V33-G7))) -> 0 | G8: =G7+F8 -> 0 | H8: =F8*D8 -> 0 | J8: =F8-H8 -> 0 | P8: 135001 | Q8: 190001 | R8: 55001 | S8: 0.37 | U8: =IF(V7='SMSF Servicing Calculator'!$N$67,0,IF(('SMSF Servicing Calculator'!$N$67-V7)>R8,R8,('SMSF Servicing Calculator'!$N$67-V7))) -> 0 | V8: =V7+U8 -> 0 | W8: =U8*S8 -> 0 | Y8: =U8-W8 -> 0 | AA8: =SUM(AB8:AC8) -> 0 | AB8: =IF(U8<=20000,U8*0.5%,0) -> 0 | AC8: =IF(U8>20000,((U8-20000)*1%)+100,0) -> 0 | AE8: 135001 | AF8: 190001 | AG8: 55001 | AH8: 0.37 | AJ8: =IF(AK7=#REF!,0,IF((#REF!-AK7)>AG8,AG8,(#REF!-AK7))) ->  | AK8: =AK7+AJ8 ->  | AL8: =AJ8*AH8 ->  | AN8: =AJ8-AL8 ->  | AP8: =SUM(AQ8:AR8) ->  | AQ8: =IF(AJ8<=20000,AJ8*0.5%,0) ->  | AR8: =IF(AJ8>20000,((AJ8-20000)*1%)+100,0) ->  | AT8: 135001 | AU8: 190001 | AV8: 55001 | AW8: 0.37 | AY8: 0 | AZ8: =AZ7+AY8 -> 0 | BA8: =AY8*AW8 -> 0 | BC8: =AY8-BA8 -> 0
A9: 190001 | B9: 100000000 | C9: =B9-A9+1 -> 99810000 | D9: 0.45 | F9: =IF('Serviceability Calculator'!V33-G8<=0,0,('Serviceability Calculator'!V33-G8)) -> 0 | G9: =G8+F9 -> 0 | H9: =F9*D9 -> 0 | J9: =F9-H9 -> 0 | P9: 190001 | Q9: 100000000 | R9: 99810000 | S9: 0.45 | U9: =IF(V8='SMSF Servicing Calculator'!$N$67,0,IF(('SMSF Servicing Calculator'!$N$67-V8)>R9,R9,('SMSF Servicing Calculator'!$N$67-V8))) -> 0 | V9: =V8+U9 -> 0 | W9: =U9*S9 -> 0 | Y9: =U9-W9 -> 0 | AA9: =U9*1% -> 0 | AE9: 190001 | AF9: 100000000 | AG9: 99810000 | AH9: 0.45 | AJ9: =IF(#REF!-AK8<=0,0,(#REF!-AK8)) ->  | AK9: =AK8+AJ9 ->  | AL9: =AJ9*AH9 ->  | AN9: =AJ9-AL9 ->  | AP9: =AJ9*1% ->  | AT9: 190001 | AU9: 100000000 | AV9: 99810000 | AW9: 0.45 | AY9: 0 | AZ9: =AZ8+AY9 -> 0 | BA9: =AY9*AW9 -> 0 | BC9: =AY9-BA9 -> 0
D10: Totals: | F10: =SUM(F5:F9) -> 0 | H10: =SUM(H5:H9) -> 0 | J10: =SUM(J5:J9) -> 0 | S10: Totals: | U10: =SUM(U5:U9) -> 0 | W10: =SUM(W5:W9) -> 0 | Y10: =SUM(Y5:Y9) -> 0 | AA10: =SUM(AA7:AA9) -> 0 | AH10: Totals: | AJ10: =IF(#REF!<0,SUM(AJ5:AJ9),SUM(AJ6:AJ9)) ->  | AL10: =SUM(AL5:AL9) ->  | AN10: =SUM(AN5:AN9) ->  | AP10: =SUM(AP7:AP9) ->  | AW10: Totals: | AY10: =SUM(AY5:AY9) -> 0 | BA10: =SUM(BA5:BA9) -> 0 | BC10: =SUM(BC5:BC9) -> 0
A11: Low & middle income tax offset (monthly) | C11: 0 | D11: Refer table | P11: Low & middle income tax offset (monthly) | R11: 0 | S11: Refer table | AE11: Budget Repair Levy (monthly) | AG11: 0 | AH11: N/A | AT11: Low & middle income tax offset (monthly) | AV11: =IF($AY$10<=$B$97,$D$97,(IF($AY$10<=$B$98,$D$98,IF($AY$10<=$B$99,(($AY$10-$B$98)*$C$99)+$D$99,IF($AY$10<=$B$100,$D$100,IF($AY$10<=$B$101,(($AY$10-$B$100)*$C$101)+$D$101,IF($AY$10<=$B$102,$D$102,0)))))))/12 -> 0 | AW11: Refer table
A12: Low income tax offset (monthly) | C12: 0 | D12: Refer table | P12: Low income tax offset (monthly) | R12: 0 | S12: Refer table | AT12: Low income tax offset (monthly) | AV12: =IF($AY$10<=$B$109,$D$109,IF($AY$10<=$B$110,$D$110,IF($AY$10<=$B$111,(($AY$10-$B$110)*$C$111)+$D$111,IF($AY$10<=$B$112,$D$112,0))))/12 -> 0 | AW12: Refer table
A13: Medicare Levy (monthly) | C13: =F10*(2/100)/12 -> 0 | D13: 0.02 | P13: Medicare Levy (monthly) | R13: =U10*(2/100)/12 -> 0 | S13: 0.02 | AE13: Medicare Levy (monthly) | AG13: 0 | AH13: N/A | AT13: Medicare Levy (monthly) | AV13: =AY10*(2/100)/12 -> 0 | AW13: 0.02
C14: =SUM(C11:C13) -> 0 | H14: Monthly | J14: =(J10/12)-C14 -> 0 | R14: =SUM(R11:R13) -> 0 | W14: Monthly | Y14: =(Y10/12)-R14 -> 0 | AG14: =SUM(AG11:AG13) -> 0 | AL14: Monthly | AN14: =(AN10/12)-AG14 ->  | AV14: =SUM(AV11:AV13) -> 0 | BA14: Monthly | BC14: =(BC10/12)-AV14 -> 0
A16: Applicant 2 | P16: Applicant 2 | AE16: Applicant 2 | AT16: Applicant 2
A17: Gross Taxable Income | D17: Tax Rate | F17: Gross | H17: Tax | J17: Net | P17: Gross Taxable Income | S17: Tax Rate | U17: Gross | W17: Tax | Y17: Net | AE17: Gross Taxable Income | AH17: Tax Rate | AJ17: Gross | AL17: Tax | AN17: Net | AT17: Gross Taxable Income | AW17: Tax Rate | AY17: Gross | BA17: Tax | BC17: Net
A18: =A5 -> 1 | B18: 18200 | C18: 18200 | D18: 0 | F18: =IF('Serviceability Calculator'!V34<B18,'Serviceability Calculator'!V34,C18) -> 0 | G18: =F18 -> 0 | H18: =F18*D18 -> 0 | J18: =F18-H18 -> 0 | P18: =A18 -> 1 | Q18: 18200 | R18: 18200 | S18: 0 | U18: =IF('SMSF Servicing Calculator'!N68<Q18,'SMSF Servicing Calculator'!N68,R18) -> 0 | V18: =U18 -> 0 | W18: =U18*S18 -> 0 | Y18: =U18-W18 -> 0 | AE18: =AE5 -> 1 | AF18: 18200 | AG18: 18200 | AH18: 0 | AJ18: =IF(#REF!<AF18,#REF!,AG18) ->  | AK18: =AJ18 ->  | AL18: =AJ18*AH18 ->  | AN18: =AJ18-AL18 ->  | AT18: =AT5 -> 1 | AU18: 18200 | AV18: 18200 | AW18: 0 | AY18: 0 | AZ18: =AY18 -> 0 | BA18: =AY18*AW18 -> 0 | BC18: =AY18-BA18 -> 0
A19: 18201 | B19: 45000 | C19: 26800 | D19: 0.16 | F19: =IF(G18='Serviceability Calculator'!V34,0,IF(('Serviceability Calculator'!V34-G18)>C19,C19,('Serviceability Calculator'!V34-G18))) -> 0 | G19: =G18+F19 -> 0 | H19: =F19*D19 -> 0 | J19: =F19-H19 -> 0 | P19: 18201 | Q19: 45000 | R19: 26800 | S19: 0.16 | U19: =IF(V18='SMSF Servicing Calculator'!$N$68,0,IF(('SMSF Servicing Calculator'!$N$68-V18)>R19,R19,('SMSF Servicing Calculator'!$N$68-V18))) -> 0 | V19: =V18+U19 -> 0 | W19: =U19*S19 -> 0 | Y19: =U19-W19 -> 0 | AE19: 18201 | AF19: 45000 | AG19: 26800 | AH19: 0.16 | AJ19: =IF(AK18=#REF!,0,IF((#REF!-AK18)>AG19,AG19,(#REF!-AK18))) ->  | AK19: =AK18+AJ19 ->  | AL19: =AJ19*AH19 ->  | AN19: =AJ19-AL19 ->  | AT19: 18201 | AU19: 45000 | AV19: 26800 | AW19: 0.16 | AY19: 0 | AZ19: =AZ18+AY19 -> 0 | BA19: =AY19*AW19 -> 0 | BC19: =AY19-BA19 -> 0
A20: 45001 | B20: 135000 | C20: 90000 | D20: 0.3 | F20: =IF(G19='Serviceability Calculator'!V34,0,IF(('Serviceability Calculator'!V34-G19)>C20,C20,('Serviceability Calculator'!V34-G19))) -> 0 | G20: =G19+F20 -> 0 | H20: =F20*D20 -> 0 | J20: =F20-H20 -> 0 | P20: 45001 | Q20: 135000 | R20: 90000 | S20: 0.3 | U20: =IF(V19='SMSF Servicing Calculator'!$N$68,0,IF(('SMSF Servicing Calculator'!$N$68-V19)>R20,R20,('SMSF Servicing Calculator'!$N$68-V19))) -> 0 | V20: =V19+U20 -> 0 | W20: =U20*S20 -> 0 | Y20: =U20-W20 -> 0 | AA20: =IF(U20>13000,(U20-13000)*0.5%,0) -> 0 | AE20: 45001 | AF20: 135000 | AG20: 90000 | AH20: 0.3 | AJ20: =IF(AK19=#REF!,0,IF((#REF!-AK19)>AG20,AG20,(#REF!-AK19))) ->  | AK20: =AK19+AJ20 ->  | AL20: =AJ20*AH20 ->  | AN20: =AJ20-AL20 ->  | AP20: =IF(AJ20>13000,(AJ20-13000)*0.5%,0) ->  | AT20: 45001 | AU20: 135000 | AV20: 90000 | AW20: 0.3 | AY20: 0 | AZ20: =AZ19+AY20 -> 0 | BA20: =AY20*AW20 -> 0 | BC20: =AY20-BA20 -> 0
A21: 135001 | B21: 190001 | C21: 55001 | D21: 0.37 | F21: =IF(G20='Serviceability Calculator'!V34,0,IF(('Serviceability Calculator'!V34-G20)>C21,C21,('Serviceability Calculator'!V34-G20))) -> 0 | G21: =G20+F21 -> 0 | H21: =F21*D21 -> 0 | J21: =F21-H21 -> 0 | P21: 135001 | Q21: 190001 | R21: 55001 | S21: 0.37 | U21: =IF(V20='SMSF Servicing Calculator'!$N$68,0,IF(('SMSF Servicing Calculator'!$N$68-V20)>R21,R21,('SMSF Servicing Calculator'!$N$68-V20))) -> 0 | V21: =V20+U21 -> 0 | W21: =U21*S21 -> 0 | Y21: =U21-W21 -> 0 | AA21: =SUM(AB21:AC21) -> 0 | AB21: =IF(U21<=20000,U21*0.5%,0) -> 0 | AC21: =IF(U21>20000,((U21-20000)*1%)+100,0) -> 0 | AE21: 135001 | AF21: 190001 | AG21: 55001 | AH21: 0.37 | AJ21: =IF(AK20=#REF!,0,IF((#REF!-AK20)>AG21,AG21,(#REF!-AK20))) ->  | AK21: =AK20+AJ21 ->  | AL21: =AJ21*AH21 ->  | AN21: =AJ21-AL21 ->  | AP21: =SUM(AQ21:AR21) ->  | AQ21: =IF(AJ21<=20000,AJ21*0.5%,0) ->  | AR21: =IF(AJ21>20000,((AJ21-20000)*1%)+100,0) ->  | AT21: 135001 | AU21: 190001 | AV21: 55001 | AW21: 0.37 | AY21: 0 | AZ21: =AZ20+AY21 -> 0 | BA21: =AY21*AW21 -> 0 | BC21: =AY21-BA21 -> 0
A22: 190001 | B22: 100000000 | C22: 99810000 | D22: 0.45 | F22: =IF('Serviceability Calculator'!V34-G21<=0,0,('Serviceability Calculator'!V34-G21)) -> 0 | G22: =G21+F22 -> 0 | H22: =F22*D22 -> 0 | J22: =F22-H22 -> 0 | P22: 190001 | Q22: 100000000 | R22: 99810000 | S22: 0.45 | U22: =IF(V21='SMSF Servicing Calculator'!$N$68,0,IF(('SMSF Servicing Calculator'!$N$68-V21)>R22,R22,('SMSF Servicing Calculator'!$N$68-V21))) -> 0 | V22: =V21+U22 -> 0 | W22: =U22*S22 -> 0 | Y22: =U22-W22 -> 0 | AA22: =U22*1% -> 0 | AE22: 190001 | AF22: 100000000 | AG22: 99810000 | AH22: 0.45 | AJ22: =IF(#REF!-AK21<=0,0,(#REF!-AK21)) ->  | AK22: =AK21+AJ22 ->  | AL22: =AJ22*AH22 ->  | AN22: =AJ22-AL22 ->  | AP22: =AJ22*1% ->  | AT22: 190001 | AU22: 100000000 | AV22: 99810000 | AW22: 0.45 | AY22: 0 | AZ22: =AZ21+AY22 -> 0 | BA22: =AY22*AW22 -> 0 | BC22: =AY22-BA22 -> 0
D23: Totals: | F23: =SUM(F18:F22) -> 0 | H23: =SUM(H18:H22) -> 0 | J23: =SUM(J18:J22) -> 0 | S23: Totals: | U23: =SUM(U18:U22) -> 0 | W23: =SUM(W18:W22) -> 0 | Y23: =SUM(Y18:Y22) -> 0 | AA23: =SUM(AA20:AA22) -> 0 | AH23: Totals: | AJ23: =SUM(AJ18:AJ22) ->  | AL23: =SUM(AL18:AL22) ->  | AN23: =SUM(AN18:AN22) ->  | AP23: =SUM(AP20:AP22) ->  | AW23: Totals: | AY23: =SUM(AY18:AY22) -> 0 | BA23: =SUM(BA18:BA22) -> 0 | BC23: =SUM(BC18:BC22) -> 0
A24: Low & middle income tax offset (monthly) | C24: 0 | D24: Refer table | P24: Low & middle income tax offset (monthly) | R24: 0 | S24: Refer table | AE24: Budget Repair Levy (monthly) | AG24: 0 | AH24: N/A | AT24: Low & middle income tax offset (monthly) | AV24: =IF($AY$23<=$B$97,$D$97,(IF($AY$23<=$B$98,$D$98,IF($AY$23<=$B$99,(($AY$23-$B$98)*$C$99)+$D$99,IF($AY$23<=$B$100,$D$100,IF($AY$23<=$B$101,(($AY$23-$B$100)*$C$101)+$D$101,IF($AY$23<=$B$102,$D$102,0)))))))/12 -> 0 | AW24: Refer table
A25: Low income tax offset (monthly) | C25: 0 | D25: Refer table | P25: Low income tax offset (monthly) | R25: 0 | S25: Refer table | AT25: Low income tax offset (monthly) | AV25: =IF($AY$23<=$B$109,$D$109,IF($AY$23<=$B$110,$D$110,IF($AY$23<=$B$111,(($AY$23-$B$110)*$C$111)+$D$111,IF($AY$23<=$B$112,$D$112,0))))/12 -> 0 | AW25: Refer table
A26: Medicare Levy (monthly) | C26: =F23*(2/100)/12 -> 0 | D26: 0.02 | P26: Medicare Levy (monthly) | R26: =U23*(2/100)/12 -> 0 | S26: 0.02 | AE26: Medicare Levy (monthly) | AG26: 0 | AH26: N/A | AT26: Medicare Levy (monthly) | AV26: =AY23*(2/100)/12 -> 0 | AW26: 0.02
C27: =SUM(C24:C26) -> 0 | H27: Monthly | J27: =(J23/12)-C27 -> 0 | R27: =SUM(R24:R26) -> 0 | W27: Monthly | Y27: =(Y23/12)-R27 -> 0 | AG27: =SUM(AG24:AG26) -> 0 | AL27: Monthly | AN27: =(AN23/12)-AG27 ->  | AV27: =SUM(AV24:AV26) -> 0 | BA27: Monthly | BC27: =(BC23/12)-AV27 -> 0
A29: Applicant 3 | P29: Applicant 3 | AE29: Applicant 3 | AT29: Applicant 3
A30: Gross Taxable Income | D30: Tax Rate | F30: Gross | H30: Tax | J30: Net | P30: Gross Taxable Income | S30: Tax Rate | U30: Gross | W30: Tax | Y30: Net | AE30: Gross Taxable Income | AH30: Tax Rate | AJ30: Gross | AL30: Tax | AN30: Net | AT30: Gross Taxable Income | AW30: Tax Rate | AY30: Gross | BA30: Tax | BC30: Net
A31: =A18 -> 1 | B31: 18200 | C31: 18200 | D31: 0 | F31: =IF('Serviceability Calculator'!V35<B31,'Serviceability Calculator'!V35,C31) -> 0 | G31: =F31 -> 0 | H31: =F31*D31 -> 0 | J31: =F31-H31 -> 0 | P31: =A31 -> 1 | Q31: 18200 | R31: 18200 | S31: 0 | U31: =IF('SMSF Servicing Calculator'!N69<Q31,'SMSF Servicing Calculator'!N69,R31) -> 0 | V31: =U31 -> 0 | W31: =U31*S31 -> 0 | Y31: =U31-W31 -> 0 | AE31: =AE18 -> 1 | AF31: 18200 | AG31: 18200 | AH31: 0 | AJ31: =IF(#REF!<AF31,#REF!,AG31) ->  | AK31: =AJ31 ->  | AL31: =AJ31*AH31 ->  | AN31: =AJ31-AL31 ->  | AT31: =AT5 -> 1 | AU31: 18200 | AV31: 18200 | AW31: 0 | AY31: 0 | AZ31: =AY31 -> 0 | BA31: =AY31*AW31 -> 0 | BC31: =AY31-BA31 -> 0
A32: 18201 | B32: 45000 | C32: 26800 | D32: 0.16 | F32: =IF(G31='Serviceability Calculator'!V35,0,IF(('Serviceability Calculator'!V35-G31)>C32,C32,('Serviceability Calculator'!V35-G31))) -> 0 | G32: =G31+F32 -> 0 | H32: =F32*D32 -> 0 | J32: =F32-H32 -> 0 | P32: 18201 | Q32: 45000 | R32: 26800 | S32: 0.16 | U32: =IF(V31='SMSF Servicing Calculator'!$N$69,0,IF(('SMSF Servicing Calculator'!$N$69-V31)>R32,R32,('SMSF Servicing Calculator'!$N$69-V31))) -> 0 | V32: =V31+U32 -> 0 | W32: =U32*S32 -> 0 | Y32: =U32-W32 -> 0 | AE32: 18201 | AF32: 45000 | AG32: 26800 | AH32: 0.16 | AJ32: =IF(AK31=#REF!,0,IF((#REF!-AK31)>AG32,AG32,(#REF!-AK31))) ->  | AK32: =AK31+AJ32 ->  | AL32: =AJ32*AH32 ->  | AN32: =AJ32-AL32 ->  | AT32: 18201 | AU32: 45000 | AV32: 26800 | AW32: 0.16 | AY32: 0 | AZ32: =AZ31+AY32 -> 0 | BA32: =AY32*AW32 -> 0 | BC32: =AY32-BA32 -> 0
A33: 45001 | B33: 135000 | C33: 90000 | D33: 0.3 | F33: =IF(G32='Serviceability Calculator'!V35,0,IF(('Serviceability Calculator'!V35-G32)>C33,C33,('Serviceability Calculator'!V35-G32))) -> 0 | G33: =G32+F33 -> 0 | H33: =F33*D33 -> 0 | J33: =F33-H33 -> 0 | P33: 45001 | Q33: 135000 | R33: 90000 | S33: 0.3 | U33: =IF(V32='SMSF Servicing Calculator'!$N$69,0,IF(('SMSF Servicing Calculator'!$N$69-V32)>R33,R33,('SMSF Servicing Calculator'!$N$69-V32))) -> 0 | V33: =V32+U33 -> 0 | W33: =U33*S33 -> 0 | Y33: =U33-W33 -> 0 | AA33: =IF(U33>13000,(U33-13000)*0.5%,0) -> 0 | AE33: 45001 | AF33: 135000 | AG33: 90000 | AH33: 0.3 | AJ33: =IF(AK32=#REF!,0,IF((#REF!-AK32)>AG33,AG33,(#REF!-AK32))) ->  | AK33: =AK32+AJ33 ->  | AL33: =AJ33*AH33 ->  | AN33: =AJ33-AL33 ->  | AP33: =IF(AJ33>13000,(AJ33-13000)*0.5%,0) ->  | AT33: 45001 | AU33: 135000 | AV33: 90000 | AW33: 0.3 | AY33: 0 | AZ33: =AZ32+AY33 -> 0 | BA33: =AY33*AW33 -> 0 | BC33: =AY33-BA33 -> 0
A34: 135001 | B34: 190001 | C34: 55001 | D34: 0.37 | F34: =IF(G33='Serviceability Calculator'!V35,0,IF(('Serviceability Calculator'!V35-G33)>C34,C34,('Serviceability Calculator'!V35-G33))) -> 0 | G34: =G33+F34 -> 0 | H34: =F34*D34 -> 0 | J34: =F34-H34 -> 0 | P34: 135001 | Q34: 190001 | R34: 55001 | S34: 0.37 | U34: =IF(V33='SMSF Servicing Calculator'!$N$69,0,IF(('SMSF Servicing Calculator'!$N$69-V33)>R34,R34,('SMSF Servicing Calculator'!$N$69-V33))) -> 0 | V34: =V33+U34 -> 0 | W34: =U34*S34 -> 0 | Y34: =U34-W34 -> 0 | AA34: =SUM(AB34:AC34) -> 0 | AB34: =IF(U34<=20000,U34*0.5%,0) -> 0 | AC34: =IF(U34>20000,((U34-20000)*1%)+100,0) -> 0 | AE34: 135001 | AF34: 190001 | AG34: 55001 | AH34: 0.37 | AJ34: =IF(AK33=#REF!,0,IF((#REF!-AK33)>AG34,AG34,(#REF!-AK33))) ->  | AK34: =AK33+AJ34 ->  | AL34: =AJ34*AH34 ->  | AN34: =AJ34-AL34 ->  | AP34: =SUM(AQ34:AR34) ->  | AQ34: =IF(AJ34<=20000,AJ34*0.5%,0) ->  | AR34: =IF(AJ34>20000,((AJ34-20000)*1%)+100,0) ->  | AT34: 135001 | AU34: 190001 | AV34: 55001 | AW34: 0.37 | AY34: 0 | AZ34: =AZ33+AY34 -> 0 | BA34: =AY34*AW34 -> 0 | BC34: =AY34-BA34 -> 0
A35: 190001 | B35: 100000000 | C35: 99810000 | D35: 0.45 | F35: =IF('Serviceability Calculator'!V35-G34<=0,0,('Serviceability Calculator'!V35-G34)) -> 0 | G35: =G34+F35 -> 0 | H35: =F35*D35 -> 0 | J35: =F35-H35 -> 0 | P35: 190001 | Q35: 100000000 | R35: 99810000 | S35: 0.45 | U35: =IF(V34='SMSF Servicing Calculator'!$N$69,0,IF(('SMSF Servicing Calculator'!$N$69-V34)>R35,R35,('SMSF Servicing Calculator'!$N$69-V34))) -> 0 | V35: =V34+U35 -> 0 | W35: =U35*S35 -> 0 | Y35: =U35-W35 -> 0 | AA35: =U35*1% -> 0 | AE35: 190001 | AF35: 100000000 | AG35: 99810000 | AH35: 0.45 | AJ35: =IF(#REF!-AK34<=0,0,(#REF!-AK34)) ->  | AK35: =AK34+AJ35 ->  | AL35: =AJ35*AH35 ->  | AN35: =AJ35-AL35 ->  | AP35: =AJ35*1% ->  | AT35: 190001 | AU35: 100000000 | AV35: 99810000 | AW35: 0.45 | AY35: 0 | AZ35: =AZ34+AY35 -> 0 | BA35: =AY35*AW35 -> 0 | BC35: =AY35-BA35 -> 0
D36: Totals: | F36: =SUM(F31:F35) -> 0 | H36: =SUM(H31:H35) -> 0 | J36: =SUM(J31:J35) -> 0 | S36: Totals: | U36: =SUM(U31:U35) -> 0 | W36: =SUM(W31:W35) -> 0 | Y36: =SUM(Y31:Y35) -> 0 | AA36: =SUM(AA33:AA35) -> 0 | AH36: Totals: | AJ36: =SUM(AJ31:AJ35) ->  | AL36: =SUM(AL31:AL35) ->  | AN36: =SUM(AN31:AN35) ->  | AP36: =SUM(AP33:AP35) ->  | AW36: Totals: | AY36: =SUM(AY31:AY35) -> 0 | BA36: =SUM(BA31:BA35) -> 0 | BC36: =SUM(BC31:BC35) -> 0
A37: Low & middle income tax offset (monthly) | C37: 0 | D37: Refer table | P37: Low & middle income tax offset (monthly) | R37: 0 | S37: Refer table | AE37: Budget Repair Levy (monthly) | AG37: 0 | AH37: N/A | AT37: Low & middle income tax offset (monthly) | AV37: =IF($AY$36<=$B$97,$D$97,(IF($AY$36<=$B$98,$D$98,IF($AY$36<=$B$99,(($AY$36-$B$98)*$C$99)+$D$99,IF($AY$36<=$B$100,$D$100,IF($AY$36<=$B$101,(($AY$36-$B$100)*$C$101)+$D$101,IF($AY$36<=$B$102,$D$102,0)))))))/12 -> 0 | AW37: Refer table
A38: Low income tax offset (monthly) | C38: 0 | D38: Refer table | P38: Low income tax offset (monthly) | R38: 0 | S38: Refer table | AT38: Low income tax offset (monthly) | AV38: =IF($AY$36<=$B$109,$D$109,IF($AY$36<=$B$110,$D$110,IF($AY$36<=$B$111,(($AY$36-$B$110)*$C$111)+$D$111,IF($AY$36<=$B$112,$D$112,0))))/12 -> 0 | AW38: Refer table
A39: Medicare Levy (monthly) | C39: =F36*(2/100)/12 -> 0 | D39: 0.02 | P39: Medicare Levy (monthly) | R39: =U36*(2/100)/12 -> 0 | S39: 0.02 | AE39: Medicare Levy (monthly) | AG39: 0 | AH39: N/A | AT39: Medicare Levy (monthly) | AV39: =AY36*(2/100)/12 -> 0 | AW39: 0.02
C40: =SUM(C37:C39) -> 0 | H40: Monthly | J40: =(J36/12)-C40 -> 0 | R40: =SUM(R37:R39) -> 0 | W40: Monthly | Y40: =(Y36/12)-R40 -> 0 | AG40: =SUM(AG37:AG39) -> 0 | AL40: Monthly | AN40: =(AN36/12)-AG40 ->  | AV40: =SUM(AV37:AV39) -> 0 | BA40: Monthly | BC40: =(BC36/12)-AV40 -> 0
A42: Applicant 4 | P42: Applicant 4 | AE42: Applicant 4 | AT42: Applicant 4
A43: Gross Taxable Income | D43: Tax Rate | F43: Gross | H43: Tax | J43: Net | P43: Gross Taxable Income | S43: Tax Rate | U43: Gross | W43: Tax | Y43: Net | AE43: Gross Taxable Income | AH43: Tax Rate | AJ43: Gross | AL43: Tax | AN43: Net | AT43: Gross Taxable Income | AW43: Tax Rate | AY43: Gross | BA43: Tax | BC43: Net
A44: =A31 -> 1 | B44: 18200 | C44: 18200 | D44: 0 | F44: =IF('Serviceability Calculator'!V36<B44,'Serviceability Calculator'!V36,C44) -> 0 | G44: =F44 -> 0 | H44: =F44*D44 -> 0 | J44: =F44-H44 -> 0 | P44: =A44 -> 1 | Q44: 18200 | R44: 18200 | S44: 0 | U44: =IF('SMSF Servicing Calculator'!$N$70<Q44,'SMSF Servicing Calculator'!N70,R44) -> 0 | V44: =U44 -> 0 | W44: =U44*S44 -> 0 | Y44: =U44-W44 -> 0 | AE44: =AE31 -> 1 | AF44: 18200 | AG44: 18200 | AH44: 0 | AJ44: =IF(#REF!<AF44,#REF!,AG44) ->  | AK44: =AJ44 ->  | AL44: =AJ44*AH44 ->  | AN44: =AJ44-AL44 ->  | AT44: =AT5 -> 1 | AU44: 18200 | AV44: 18200 | AW44: 0 | AY44: 0 | AZ44: =AY44 -> 0 | BA44: =AY44*AW44 -> 0 | BC44: =AY44-BA44 -> 0
A45: 18201 | B45: 45000 | C45: 26800 | D45: 0.16 | F45: =IF(G44='Serviceability Calculator'!V36,0,IF(('Serviceability Calculator'!V36-G44)>C45,C45,('Serviceability Calculator'!V36-G44))) -> 0 | G45: =G44+F45 -> 0 | H45: =F45*D45 -> 0 | J45: =F45-H45 -> 0 | P45: 18201 | Q45: 45000 | R45: 26800 | S45: 0.16 | U45: =IF(V44='SMSF Servicing Calculator'!$N$70,0,IF(('SMSF Servicing Calculator'!$N$70-V44)>R45,R45,('SMSF Servicing Calculator'!$N$70-V44))) -> 0 | V45: =V44+U45 -> 0 | W45: =U45*S45 -> 0 | Y45: =U45-W45 -> 0 | AE45: 18201 | AF45: 45000 | AG45: 26800 | AH45: 0.16 | AJ45: =IF(AK44=#REF!,0,IF((#REF!-AK44)>AG45,AG45,(#REF!-AK44))) ->  | AK45: =AK44+AJ45 ->  | AL45: =AJ45*AH45 ->  | AN45: =AJ45-AL45 ->  | AT45: 18201 | AU45: 45000 | AV45: 26800 | AW45: 0.16 | AY45: 0 | AZ45: =AZ44+AY45 -> 0 | BA45: =AY45*AW45 -> 0 | BC45: =AY45-BA45 -> 0
A46: 45001 | B46: 135000 | C46: 90000 | D46: 0.3 | F46: =IF(G45='Serviceability Calculator'!V36,0,IF(('Serviceability Calculator'!V36-G45)>C46,C46,('Serviceability Calculator'!V36-G45))) -> 0 | G46: =G45+F46 -> 0 | H46: =F46*D46 -> 0 | J46: =F46-H46 -> 0 | P46: 45001 | Q46: 135000 | R46: 90000 | S46: 0.3 | U46: =IF(V45='SMSF Servicing Calculator'!$N$70,0,IF(('SMSF Servicing Calculator'!$N$70-V45)>R46,R46,('SMSF Servicing Calculator'!$N$70-V45))) -> 0 | V46: =V45+U46 -> 0 | W46: =U46*S46 -> 0 | Y46: =U46-W46 -> 0 | AA46: =IF(U46>13000,(U46-13000)*0.5%,0) -> 0 | AE46: 45001 | AF46: 135000 | AG46: 90000 | AH46: 0.3 | AJ46: =IF(AK45=#REF!,0,IF((#REF!-AK45)>AG46,AG46,(#REF!-AK45))) ->  | AK46: =AK45+AJ46 ->  | AL46: =AJ46*AH46 ->  | AN46: =AJ46-AL46 ->  | AP46: =IF(AJ46>13000,(AJ46-13000)*0.5%,0) ->  | AT46: 45001 | AU46: 135000 | AV46: 90000 | AW46: 0.3 | AY46: 0 | AZ46: =AZ45+AY46 -> 0 | BA46: =AY46*AW46 -> 0 | BC46: =AY46-BA46 -> 0
A47: 135001 | B47: 190001 | C47: 55001 | D47: 0.37 | F47: =IF(G46='Serviceability Calculator'!V36,0,IF(('Serviceability Calculator'!V36-G46)>C47,C47,('Serviceability Calculator'!V36-G46))) -> 0 | G47: =G46+F47 -> 0 | H47: =F47*D47 -> 0 | J47: =F47-H47 -> 0 | P47: 135001 | Q47: 190001 | R47: 55001 | S47: 0.37 | U47: =IF(V46='SMSF Servicing Calculator'!$N$70,0,IF(('SMSF Servicing Calculator'!$N$70-V46)>R47,R47,('SMSF Servicing Calculator'!$N$70-V46))) -> 0 | V47: =V46+U47 -> 0 | W47: =U47*S47 -> 0 | Y47: =U47-W47 -> 0 | AA47: =SUM(AB47:AC47) -> 0 | AB47: =IF(U47<=20000,U47*0.5%,0) -> 0 | AC47: =IF(U47>20000,((U47-20000)*1%)+100,0) -> 0 | AE47: 135001 | AF47: 190001 | AG47: 55001 | AH47: 0.37 | AJ47: =IF(AK46=#REF!,0,IF((#REF!-AK46)>AG47,AG47,(#REF!-AK46))) ->  | AK47: =AK46+AJ47 ->  | AL47: =AJ47*AH47 ->  | AN47: =AJ47-AL47 ->  | AP47: =SUM(AQ47:AR47) ->  | AQ47: =IF(AJ47<=20000,AJ47*0.5%,0) ->  | AR47: =IF(AJ47>20000,((AJ47-20000)*1%)+100,0) ->  | AT47: 135001 | AU47: 190001 | AV47: 55001 | AW47: 0.37 | AY47: 0 | AZ47: =AZ46+AY47 -> 0 | BA47: =AY47*AW47 -> 0 | BC47: =AY47-BA47 -> 0
A48: 190001 | B48: 100000000 | C48: 99810000 | D48: 0.45 | F48: =IF('Serviceability Calculator'!V36-G47<=0,0,('Serviceability Calculator'!V36-G47)) -> 0 | G48: =G47+F48 -> 0 | H48: =F48*D48 -> 0 | J48: =F48-H48 -> 0 | P48: 190001 | Q48: 100000000 | R48: 99810000 | S48: 0.45 | U48: =IF(V47='SMSF Servicing Calculator'!$N$70,0,IF(('SMSF Servicing Calculator'!$N$70-V47)>R48,R48,('SMSF Servicing Calculator'!$N$70-V47))) -> 0 | V48: =V47+U48 -> 0 | W48: =U48*S48 -> 0 | Y48: =U48-W48 -> 0 | AA48: =U48*1% -> 0 | AE48: 190001 | AF48: 100000000 | AG48: 99810000 | AH48: 0.45 | AJ48: =IF(#REF!-AK47<=0,0,(#REF!-AK47)) ->  | AK48: =AK47+AJ48 ->  | AL48: =AJ48*AH48 ->  | AN48: =AJ48-AL48 ->  | AP48: =AJ48*1% ->  | AT48: 190001 | AU48: 100000000 | AV48: 99810000 | AW48: 0.45 | AY48: 0 | AZ48: =AZ47+AY48 -> 0 | BA48: =AY48*AW48 -> 0 | BC48: =AY48-BA48 -> 0
D49: Totals: | F49: =SUM(F44:F48) -> 0 | H49: =SUM(H44:H48) -> 0 | J49: =SUM(J44:J48) -> 0 | S49: Totals: | U49: =SUM(U44:U48) -> 0 | W49: =SUM(W44:W48) -> 0 | Y49: =SUM(Y44:Y48) -> 0 | AA49: =SUM(AA46:AA48) -> 0 | AH49: Totals: | AJ49: =SUM(AJ44:AJ48) ->  | AL49: =SUM(AL44:AL48) ->  | AN49: =SUM(AN44:AN48) ->  | AP49: =SUM(AP46:AP48) ->  | AW49: Totals: | AY49: =SUM(AY44:AY48) -> 0 | BA49: =SUM(BA44:BA48) -> 0 | BC49: =SUM(BC44:BC48) -> 0
A50: Low & middle income tax offset (monthly) | C50: 0 | D50: Refer table | P50: Low & middle income tax offset (monthly) | R50: 0 | S50: Refer table | AE50: Budget Repair Levy (monthly) | AG50: 0 | AH50: N/A | AT50: Low & middle income tax offset (monthly) | AV50: =IF($AY$49<=$B$97,$D$97,(IF($AY$49<=$B$98,$D$98,IF($AY$49<=$B$99,(($AY$49-$B$98)*$C$99)+$D$99,IF($AY$49<=$B$100,$D$100,IF($AY$49<=$B$101,(($AY$49-$B$100)*$C$101)+$D$101,IF($AY$49<=$B$102,$D$102,0)))))))/12 -> 0 | AW50: Refer table
A51: Low income tax offset (monthly) | C51: 0 | D51: Refer table | P51: Low income tax offset (monthly) | R51: 0 | S51: Refer table | AT51: Low income tax offset (monthly) | AV51: =IF($AY$49<=$B$109,$D$109,IF($AY$49<=$B$110,$D$110,IF($AY$49<=$B$111,(($AY$49-$B$110)*$C$111)+$D$111,IF($AY$49<=$B$112,$D$112,0))))/12 -> 0 | AW51: Refer table
A52: Medicare Levy (monthly) | C52: =F49*(2/100)/12 -> 0 | D52: 0.02 | P52: Medicare Levy (monthly) | R52: =U49*(2/100)/12 -> 0 | S52: 0.02 | AE52: Medicare Levy (monthly) | AG52: 0 | AH52: N/A | AT52: Medicare Levy (monthly) | AV52: =AY49*(2/100)/12 -> 0 | AW52: 0.02
C53: =SUM(C50:C52) -> 0 | H53: Monthly | J53: =(J49/12)-C53 -> 0 | R53: =SUM(R50:R52) -> 0 | W53: Monthly | Y53: =(Y49/12)-R53 -> 0 | AG53: =SUM(AG50:AG52) -> 0 | AL53: Monthly | AN53: =(AN49/12)-AG53 ->  | AV53: =SUM(AV50:AV52) -> 0 | BA53: Monthly | BC53: =(BC49/12)-AV53 -> 0
A55: Applicant 5 | P55: Applicant 5 | AE55: Applicant 5 | AT55: Applicant 5
A56: Gross Taxable Income | D56: Tax Rate | F56: Gross | H56: Tax | J56: Net | P56: Gross Taxable Income | S56: Tax Rate | U56: Gross | W56: Tax | Y56: Net | AE56: Gross Taxable Income | AH56: Tax Rate | AJ56: Gross | AL56: Tax | AN56: Net | AT56: Gross Taxable Income | AW56: Tax Rate | AY56: Gross | BA56: Tax | BC56: Net
A57: 1 | B57: 6000 | C57: =B57-A57+1 -> 6000 | D57: 0 | F57: =IF('Serviceability Calculator'!#REF!<B57,'Serviceability Calculator'!#REF!,C57) ->  | G57: =F57 ->  | H57: =F57*D57 ->  | J57: =F57-H57 ->  | P57: 1 | Q57: 6000 | R57: =Q57-P57+1 -> 6000 | S57: 0 | U57: =IF('Serviceability Calculator'!#REF!<Q57,'Serviceability Calculator'!#REF!,R57) ->  | V57: =U57 ->  | W57: =U57*S57 ->  | Y57: =U57-W57 ->  | AE57: 1 | AF57: 6000 | AG57: =AF57-AE57+1 -> 6000 | AH57: 0 | AJ57: =IF(#REF!<AF57,#REF!,AG57) ->  | AK57: =AJ57 ->  | AL57: =AJ57*AH57 ->  | AN57: =AJ57-AL57 ->  | AT57: 1 | AU57: 6000 | AV57: =AU57-AT57+1 -> 6000 | AW57: 0 | AY57: =IF('Serviceability Calculator'!#REF!<AU57,'Serviceability Calculator'!#REF!,AV57) ->  | AZ57: =AY57 ->  | BA57: =AY57*AW57 ->  | BC57: =AY57-BA57 -> 
A58: 6001 | B58: 35000 | C58: =B58-A58+1 -> 29000 | D58: 0.15 | F58: =IF(G57='Serviceability Calculator'!#REF!,0,IF(('Serviceability Calculator'!#REF!-G57)>C58,C58,('Serviceability Calculator'!#REF!-G57))) ->  | G58: =G57+F58 ->  | H58: =F58*D58 ->  | J58: =F58-H58 ->  | P58: 6001 | Q58: 35000 | R58: =Q58-P58+1 -> 29000 | S58: 0.15 | U58: =IF(V57='Serviceability Calculator'!#REF!,0,IF(('Serviceability Calculator'!#REF!-V57)>R58,R58,('Serviceability Calculator'!#REF!-V57))) ->  | V58: =V57+U58 ->  | W58: =U58*S58 ->  | Y58: =U58-W58 ->  | AE58: 6001 | AF58: 35000 | AG58: =AF58-AE58+1 -> 29000 | AH58: 0.15 | AJ58: =IF(AK57=#REF!,0,IF((#REF!-AK57)>AG58,AG58,(#REF!-AK57))) ->  | AK58: =AK57+AJ58 ->  | AL58: =AJ58*AH58 ->  | AN58: =AJ58-AL58 ->  | AT58: 6001 | AU58: 35000 | AV58: =AU58-AT58+1 -> 29000 | AW58: 0.15 | AY58: =IF(AZ57='Serviceability Calculator'!#REF!,0,IF(('Serviceability Calculator'!#REF!-AZ57)>AV58,AV58,('Serviceability Calculator'!#REF!-AZ57))) ->  | AZ58: =AZ57+AY58 ->  | BA58: =AY58*AW58 ->  | BC58: =AY58-BA58 -> 
A59: 35001 | B59: 80000 | C59: =B59-A59+1 -> 45000 | D59: 0.3 | F59: =IF(G58='Serviceability Calculator'!#REF!,0,IF(('Serviceability Calculator'!#REF!-G58)>C59,C59,('Serviceability Calculator'!#REF!-G58))) ->  | G59: =G58+F59 ->  | H59: =F59*D59 ->  | J59: =F59-H59 ->  | P59: 35001 | Q59: 80000 | R59: =Q59-P59+1 -> 45000 | S59: 0.3 | U59: =IF(V58='Serviceability Calculator'!#REF!,0,IF(('Serviceability Calculator'!#REF!-V58)>R59,R59,('Serviceability Calculator'!#REF!-V58))) ->  | V59: =V58+U59 ->  | W59: =U59*S59 ->  | Y59: =U59-W59 ->  | AE59: 35001 | AF59: 80000 | AG59: =AF59-AE59+1 -> 45000 | AH59: 0.3 | AJ59: =IF(AK58=#REF!,0,IF((#REF!-AK58)>AG59,AG59,(#REF!-AK58))) ->  | AK59: =AK58+AJ59 ->  | AL59: =AJ59*AH59 ->  | AN59: =AJ59-AL59 ->  | AT59: 35001 | AU59: 80000 | AV59: =AU59-AT59+1 -> 45000 | AW59: 0.3 | AY59: =IF(AZ58='Serviceability Calculator'!#REF!,0,IF(('Serviceability Calculator'!#REF!-AZ58)>AV59,AV59,('Serviceability Calculator'!#REF!-AZ58))) ->  | AZ59: =AZ58+AY59 ->  | BA59: =AY59*AW59 ->  | BC59: =AY59-BA59 -> 
A60: 80001 | B60: 180000 | C60: =B60-A60+1 -> 100000 | D60: 0.38 | F60: =IF(G59='Serviceability Calculator'!#REF!,0,IF(('Serviceability Calculator'!#REF!-G59)>C60,C60,('Serviceability Calculator'!#REF!-G59))) ->  | G60: =G59+F60 ->  | H60: =F60*D60 ->  | J60: =F60-H60 ->  | P60: 80001 | Q60: 180000 | R60: =Q60-P60+1 -> 100000 | S60: 0.38 | U60: =IF(V59='Serviceability Calculator'!#REF!,0,IF(('Serviceability Calculator'!#REF!-V59)>R60,R60,('Serviceability Calculator'!#REF!-V59))) ->  | V60: =V59+U60 ->  | W60: =U60*S60 ->  | Y60: =U60-W60 ->  | AE60: 80001 | AF60: 180000 | AG60: =AF60-AE60+1 -> 100000 | AH60: 0.38 | AJ60: =IF(AK59=#REF!,0,IF((#REF!-AK59)>AG60,AG60,(#REF!-AK59))) ->  | AK60: =AK59+AJ60 ->  | AL60: =AJ60*AH60 ->  | AN60: =AJ60-AL60 ->  | AT60: 80001 | AU60: 180000 | AV60: =AU60-AT60+1 -> 100000 | AW60: 0.38 | AY60: =IF(AZ59='Serviceability Calculator'!#REF!,0,IF(('Serviceability Calculator'!#REF!-AZ59)>AV60,AV60,('Serviceability Calculator'!#REF!-AZ59))) ->  | AZ60: =AZ59+AY60 ->  | BA60: =AY60*AW60 ->  | BC60: =AY60-BA60 -> 
A61: 180001 | B61: 1000000 | C61: =B61-A61+1 -> 820000 | D61: 0.45 | F61: =IF('Serviceability Calculator'!#REF!-G60<=0,0,('Serviceability Calculator'!#REF!-G60)) ->  | G61: =G60+F61 ->  | H61: =F61*D61 ->  | J61: =F61-H61 ->  | P61: 180001 | Q61: 1000000 | R61: =Q61-P61+1 -> 820000 | S61: 0.45 | U61: =IF('Serviceability Calculator'!#REF!-V60<=0,0,('Serviceability Calculator'!#REF!-V60)) ->  | V61: =V60+U61 ->  | W61: =U61*S61 ->  | Y61: =U61-W61 ->  | AE61: 180001 | AF61: 1000000 | AG61: =AF61-AE61+1 -> 820000 | AH61: 0.45 | AJ61: =IF(#REF!-AK60<=0,0,(#REF!-AK60)) ->  | AK61: =AK60+AJ61 ->  | AL61: =AJ61*AH61 ->  | AN61: =AJ61-AL61 ->  | AT61: 180001 | AU61: 1000000 | AV61: =AU61-AT61+1 -> 820000 | AW61: 0.45 | AY61: =IF('Serviceability Calculator'!#REF!-AZ60<=0,0,('Serviceability Calculator'!#REF!-AZ60)) ->  | AZ61: =AZ60+AY61 ->  | BA61: =AY61*AW61 ->  | BC61: =AY61-BA61 -> 
D62: Totals: | F62: =SUM(F57:F61) ->  | H62: =SUM(H57:H61) ->  | J62: =SUM(J57:J61) ->  | S62: Totals: | U62: =SUM(U57:U61) ->  | W62: =SUM(W57:W61) ->  | Y62: =SUM(Y57:Y61) ->  | AH62: Totals: | AJ62: =SUM(AJ57:AJ61) ->  | AL62: =SUM(AL57:AL61) ->  | AN62: =SUM(AN57:AN61) ->  | AW62: Totals: | AY62: =SUM(AY57:AY61) ->  | BA62: =SUM(BA57:BA61) ->  | BC62: =SUM(BC57:BC61) -> 
A63: =F62*(1.5/100)/12 ->  | B63: Medicare Levy (Monthly) | P63: =U62*(1.5/100)/12 ->  | Q63: Medicare Levy (Monthly) | AE63: =AJ62*(1.5/100)/12 ->  | AF63: Medicare Levy (Monthly) | AT63: =AY62*(1.5/100)/12 ->  | AU63: Medicare Levy (Monthly)
H64: Monthly | J64: =(J62/12)-A63 ->  | W64: Monthly | Y64: =(Y62/12)-P63 ->  | AL64: Monthly | AN64: =(AN62/12)-AE63 ->  | BA64: Monthly | BC64: =(BC62/12)-AT63 -> 
A66: Applicant 6 | P66: Applicant 6 | AE66: Applicant 6 | AT66: Applicant 6
A67: Gross Taxable Income | D67: Tax Rate | F67: Gross | H67: Tax | J67: Net | P67: Gross Taxable Income | S67: Tax Rate | U67: Gross | W67: Tax | Y67: Net | AE67: Gross Taxable Income | AH67: Tax Rate | AJ67: Gross | AL67: Tax | AN67: Net | AT67: Gross Taxable Income | AW67: Tax Rate | AY67: Gross | BA67: Tax | BC67: Net
A68: 1 | B68: 6000 | C68: =B68-A68+1 -> 6000 | D68: 0 | F68: =IF('Serviceability Calculator'!#REF!<B68,'Serviceability Calculator'!#REF!,C68) ->  | G68: =F68 ->  | H68: =F68*D68 ->  | J68: =F68-H68 ->  | P68: 1 | Q68: 6000 | R68: =Q68-P68+1 -> 6000 | S68: 0 | U68: =IF('Serviceability Calculator'!#REF!<Q68,'Serviceability Calculator'!#REF!,R68) ->  | V68: =U68 ->  | W68: =U68*S68 ->  | Y68: =U68-W68 ->  | AE68: 1 | AF68: 6000 | AG68: =AF68-AE68+1 -> 6000 | AH68: 0 | AJ68: =IF(#REF!<AF68,#REF!,AG68) ->  | AK68: =AJ68 ->  | AL68: =AJ68*AH68 ->  | AN68: =AJ68-AL68 ->  | AT68: 1 | AU68: 6000 | AV68: =AU68-AT68+1 -> 6000 | AW68: 0 | AY68: =IF('Serviceability Calculator'!#REF!<AU68,'Serviceability Calculator'!#REF!,AV68) ->  | AZ68: =AY68 ->  | BA68: =AY68*AW68 ->  | BC68: =AY68-BA68 -> 
A69: 6001 | B69: 35000 | C69: =B69-A69+1 -> 29000 | D69: 0.15 | F69: =IF(G68='Serviceability Calculator'!#REF!,0,IF(('Serviceability Calculator'!#REF!-G68)>C69,C69,('Serviceability Calculator'!#REF!-G68))) ->  | G69: =G68+F69 ->  | H69: =F69*D69 ->  | J69: =F69-H69 ->  | P69: 6001 | Q69: 35000 | R69: =Q69-P69+1 -> 29000 | S69: 0.15 | U69: =IF(V68='Serviceability Calculator'!#REF!,0,IF(('Serviceability Calculator'!#REF!-V68)>R69,R69,('Serviceability Calculator'!#REF!-V68))) ->  | V69: =V68+U69 ->  | W69: =U69*S69 ->  | Y69: =U69-W69 ->  | AE69: 6001 | AF69: 35000 | AG69: =AF69-AE69+1 -> 29000 | AH69: 0.15 | AJ69: =IF(AK68=#REF!,0,IF((#REF!-AK68)>AG69,AG69,(#REF!-AK68))) ->  | AK69: =AK68+AJ69 ->  | AL69: =AJ69*AH69 ->  | AN69: =AJ69-AL69 ->  | AT69: 6001 | AU69: 35000 | AV69: =AU69-AT69+1 -> 29000 | AW69: 0.15 | AY69: =IF(AZ68='Serviceability Calculator'!#REF!,0,IF(('Serviceability Calculator'!#REF!-AZ68)>AV69,AV69,('Serviceability Calculator'!#REF!-AZ68))) ->  | AZ69: =AZ68+AY69 ->  | BA69: =AY69*AW69 ->  | BC69: =AY69-BA69 -> 
A70: 35001 | B70: 80000 | C70: =B70-A70+1 -> 45000 | D70: 0.3 | F70: =IF(G69='Serviceability Calculator'!#REF!,0,IF(('Serviceability Calculator'!#REF!-G69)>C70,C70,('Serviceability Calculator'!#REF!-G69))) ->  | G70: =G69+F70 ->  | H70: =F70*D70 ->  | J70: =F70-H70 ->  | P70: 35001 | Q70: 80000 | R70: =Q70-P70+1 -> 45000 | S70: 0.3 | U70: =IF(V69='Serviceability Calculator'!#REF!,0,IF(('Serviceability Calculator'!#REF!-V69)>R70,R70,('Serviceability Calculator'!#REF!-V69))) ->  | V70: =V69+U70 ->  | W70: =U70*S70 ->  | Y70: =U70-W70 ->  | AE70: 35001 | AF70: 80000 | AG70: =AF70-AE70+1 -> 45000 | AH70: 0.3 | AJ70: =IF(AK69=#REF!,0,IF((#REF!-AK69)>AG70,AG70,(#REF!-AK69))) ->  | AK70: =AK69+AJ70 ->  | AL70: =AJ70*AH70 ->  | AN70: =AJ70-AL70 ->  | AT70: 35001 | AU70: 80000 | AV70: =AU70-AT70+1 -> 45000 | AW70: 0.3 | AY70: =IF(AZ69='Serviceability Calculator'!#REF!,0,IF(('Serviceability Calculator'!#REF!-AZ69)>AV70,AV70,('Serviceability Calculator'!#REF!-AZ69))) ->  | AZ70: =AZ69+AY70 ->  | BA70: =AY70*AW70 ->  | BC70: =AY70-BA70 -> 
A71: 80001 | B71: 180000 | C71: =B71-A71+1 -> 100000 | D71: 0.38 | F71: =IF(G70='Serviceability Calculator'!#REF!,0,IF(('Serviceability Calculator'!#REF!-G70)>C71,C71,('Serviceability Calculator'!#REF!-G70))) ->  | G71: =G70+F71 ->  | H71: =F71*D71 ->  | J71: =F71-H71 ->  | P71: 80001 | Q71: 180000 | R71: =Q71-P71+1 -> 100000 | S71: 0.38 | U71: =IF(V70='Serviceability Calculator'!#REF!,0,IF(('Serviceability Calculator'!#REF!-V70)>R71,R71,('Serviceability Calculator'!#REF!-V70))) ->  | V71: =V70+U71 ->  | W71: =U71*S71 ->  | Y71: =U71-W71 ->  | AE71: 80001 | AF71: 180000 | AG71: =AF71-AE71+1 -> 100000 | AH71: 0.38 | AJ71: =IF(AK70=#REF!,0,IF((#REF!-AK70)>AG71,AG71,(#REF!-AK70))) ->  | AK71: =AK70+AJ71 ->  | AL71: =AJ71*AH71 ->  | AN71: =AJ71-AL71 ->  | AT71: 80001 | AU71: 180000 | AV71: =AU71-AT71+1 -> 100000 | AW71: 0.38 | AY71: =IF(AZ70='Serviceability Calculator'!#REF!,0,IF(('Serviceability Calculator'!#REF!-AZ70)>AV71,AV71,('Serviceability Calculator'!#REF!-AZ70))) ->  | AZ71: =AZ70+AY71 ->  | BA71: =AY71*AW71 ->  | BC71: =AY71-BA71 -> 
A72: 180001 | B72: 1000000 | C72: =B72-A72+1 -> 820000 | D72: 0.45 | F72: =IF('Serviceability Calculator'!#REF!-G71<=0,0,('Serviceability Calculator'!#REF!-G71)) ->  | G72: =G71+F72 ->  | H72: =F72*D72 ->  | J72: =F72-H72 ->  | P72: 180001 | Q72: 1000000 | R72: =Q72-P72+1 -> 820000 | S72: 0.45 | U72: =IF('Serviceability Calculator'!#REF!-V71<=0,0,('Serviceability Calculator'!#REF!-V71)) ->  | V72: =V71+U72 ->  | W72: =U72*S72 ->  | Y72: =U72-W72 ->  | AE72: 180001 | AF72: 1000000 | AG72: =AF72-AE72+1 -> 820000 | AH72: 0.45 | AJ72: =IF(#REF!-AK71<=0,0,(#REF!-AK71)) ->  | AK72: =AK71+AJ72 ->  | AL72: =AJ72*AH72 ->  | AN72: =AJ72-AL72 ->  | AT72: 180001 | AU72: 1000000 | AV72: =AU72-AT72+1 -> 820000 | AW72: 0.45 | AY72: =IF('Serviceability Calculator'!#REF!-AZ71<=0,0,('Serviceability Calculator'!#REF!-AZ71)) ->  | AZ72: =AZ71+AY72 ->  | BA72: =AY72*AW72 ->  | BC72: =AY72-BA72 -> 
D73: Totals: | F73: =SUM(F68:F72) ->  | H73: =SUM(H68:H72) ->  | J73: =SUM(J68:J72) ->  | S73: Totals: | U73: =SUM(U68:U72) ->  | W73: =SUM(W68:W72) ->  | Y73: =SUM(Y68:Y72) ->  | AH73: Totals: | AJ73: =SUM(AJ68:AJ72) ->  | AL73: =SUM(AL68:AL72) ->  | AN73: =SUM(AN68:AN72) ->  | AW73: Totals: | AY73: =SUM(AY68:AY72) ->  | BA73: =SUM(BA68:BA72) ->  | BC73: =SUM(BC68:BC72) -> 
A74: =F73*(1.5/100)/12 ->  | B74: Medicare Levy (Monthly) | P74: =U73*(1.5/100)/12 ->  | Q74: Medicare Levy (Monthly) | AE74: =AJ73*(1.5/100)/12 ->  | AF74: Medicare Levy (Monthly) | AT74: =AY73*(1.5/100)/12 ->  | AU74: Medicare Levy (Monthly)
H75: Monthly | J75: =(J73/12)-A74 ->  | W75: Monthly | Y75: =(Y73/12)-P74 ->  | AL75: Monthly | AN75: =(AN73/12)-AE74 ->  | BA75: Monthly | BC75: =(BC73/12)-AT74 -> 
A78: Company 1 | P78: Applicant 5 | AE78: Company 1
A79: Gross Taxable Income | D79: Tax Rate | F79: Gross | H79: Tax | J79: Net | P79: Gross Taxable Income | S79: Tax Rate | U79: Gross | W79: Tax | Y79: Net | AE79: Gross Taxable Income | AH79: Tax Rate | AJ79: Gross | AL79: Tax | AN79: Net
D80: 0.25 | F80: ='Serviceability Calculator'!Q53 -> 0 | G80: =F80 -> 0 | H80: =F80*D80 -> 0 | J80: =F80-H80 -> 0 | P80: 1 | Q80: 18200 | R80: 18200 | S80: 0 | U80: =IF('SMSF Servicing Calculator'!$N$71<Q80,'SMSF Servicing Calculator'!N71,R80) -> 0 | V80: =U80 -> 0 | W80: =U80*S80 -> 0 | Y80: =U80-W80 -> 0 | AH80: 0.25 | AJ80: =#REF! ->  | AK80: =AJ80 ->  | AL80: =AJ80*AH80 ->  | AN80: =AJ80-AL80 -> 
D81: Totals: | F81: =SUM(F80:F80) -> 0 | H81: =SUM(H80:H80) -> 0 | J81: =SUM(J80:J80) -> 0 | P81: 18201 | Q81: 45000 | R81: 26800 | S81: 0.16 | U81: =IF(V80='SMSF Servicing Calculator'!$N$71,0,IF(('SMSF Servicing Calculator'!$N$71-V80)>R81,R81,('SMSF Servicing Calculator'!$N$71-V80))) -> 0 | V81: =V80+U81 -> 0 | W81: =U81*S81 -> 0 | Y81: =U81-W81 -> 0 | AH81: Totals: | AJ81: =SUM(AJ80:AJ80) ->  | AL81: =SUM(AL80:AL80) ->  | AN81: =SUM(AN80:AN80) -> 
A82: N/A | B82: Medicare Levy (Monthly) | P82: 45001 | Q82: 135000 | R82: 90000 | S82: 0.3 | U82: =IF(V81='SMSF Servicing Calculator'!$N$71,0,IF(('SMSF Servicing Calculator'!$N$71-V81)>R82,R82,('SMSF Servicing Calculator'!$N$71-V81))) -> 0 | V82: =V81+U82 -> 0 | W82: =U82*S82 -> 0 | Y82: =U82-W82 -> 0 | AE82: N/A | AF82: Medicare Levy (Monthly)
H83: Monthly | J83: =(J81/12) -> 0 | P83: 135001 | Q83: 190001 | R83: 55001 | S83: 0.37 | U83: =IF(V82='SMSF Servicing Calculator'!$N$71,0,IF(('SMSF Servicing Calculator'!$N$71-V82)>R83,R83,('SMSF Servicing Calculator'!$N$71-V82))) -> 0 | V83: =V82+U83 -> 0 | W83: =U83*S83 -> 0 | Y83: =U83-W83 -> 0 | AL83: Monthly | AN83: =(AN81/12) -> 
P84: 190001 | Q84: 100000000 | R84: 99810000 | S84: 0.45 | U84: =IF(V83='SMSF Servicing Calculator'!$N$71,0,IF(('SMSF Servicing Calculator'!$N$71-V83)>R84,R84,('SMSF Servicing Calculator'!$N$71-V83))) -> 0 | V84: =V83+U84 -> 0 | W84: =U84*S84 -> 0 | Y84: =U84-W84 -> 0
A85: Company 2 | S85: Totals: | U85: =SUM(U80:U84) -> 0 | W85: =SUM(W80:W84) -> 0 | Y85: =SUM(Y80:Y84) -> 0 | AE85: Company 2
A86: Gross Taxable Income | D86: Tax Rate | F86: Gross | H86: Tax | J86: Net | P86: Low & middle income tax offset (monthly) | R86: 0 | S86: Refer table | AE86: Gross Taxable Income | AH86: Tax Rate | AJ86: Gross | AL86: Tax | AN86: Net
D87: =D80 -> 0.25 | F87: ='Serviceability Calculator'!Q54 -> 0 | G87: =F87 -> 0 | H87: =F87*D87 -> 0 | J87: =F87-H87 -> 0 | P87: Low income tax offset (monthly) | R87: 0 | S87: Refer table | AH87: =AH80 -> 0.25 | AJ87: =#REF! ->  | AK87: =AJ87 ->  | AL87: =AJ87*AH87 ->  | AN87: =AJ87-AL87 -> 
D88: Totals: | F88: =SUM(F87:F87) -> 0 | H88: =SUM(H87:H87) -> 0 | J88: =SUM(J87:J87) -> 0 | P88: Medicare Levy (monthly) | R88: =U85*(2/100)/12 -> 0 | S88: 0.02 | AH88: Totals: | AJ88: =SUM(AJ87:AJ87) ->  | AL88: =SUM(AL87:AL87) ->  | AN88: =SUM(AN87:AN87) -> 
A89: N/A | B89: Medicare Levy (Monthly) | R89: =SUM(R86:R88) -> 0 | W89: Monthly | Y89: =(Y85/12)-R89 -> 0 | AE89: N/A | AF89: Medicare Levy (Monthly)
H90: Monthly | J90: =(J88/12) -> 0 | AL90: Monthly | AN90: =(AN88/12) -> 
P91: Applicant 6
P92: Gross Taxable Income | S92: Tax Rate | U92: Gross | W92: Tax | Y92: Net
P93: 1 | Q93: 18200 | R93: 18200 | S93: 0 | U93: =IF('SMSF Servicing Calculator'!$N$72<Q93,'SMSF Servicing Calculator'!N72,R93) -> 0 | V93: =U93 -> 0 | W93: =U93*S93 -> 0 | Y93: =U93-W93 -> 0
P94: 18201 | Q94: 45000 | R94: 26800 | S94: 0.16 | U94: =IF(V93='SMSF Servicing Calculator'!$N$72,0,IF(('SMSF Servicing Calculator'!$N$72-V93)>R94,R94,('SMSF Servicing Calculator'!$N$72-V93))) -> 0 | V94: =V93+U94 -> 0 | W94: =U94*S94 -> 0 | Y94: =U94-W94 -> 0
A95: Low & Middle Income Tax Offset table | P95: 45001 | Q95: 135000 | R95: 90000 | S95: 0.3 | U95: =IF(V94='SMSF Servicing Calculator'!$N$72,0,IF(('SMSF Servicing Calculator'!$N$72-V94)>R95,R95,('SMSF Servicing Calculator'!$N$72-V94))) -> 0 | V95: =V94+U95 -> 0 | W95: =U95*S95 -> 0 | Y95: =U95-W95 -> 0
A96: Low Band | B96: High Band | C96: % Cacl | D96: $ Calc | P96: 135001 | Q96: 190001 | R96: 55001 | S96: 0.37 | U96: =IF(V95='SMSF Servicing Calculator'!$N$72,0,IF(('SMSF Servicing Calculator'!$N$72-V95)>R96,R96,('SMSF Servicing Calculator'!$N$72-V95))) -> 0 | V96: =V95+U96 -> 0 | W96: =U96*S96 -> 0 | Y96: =U96-W96 -> 0
A97: 0 | B97: 19543 | D97: 0 | P97: 190001 | Q97: 100000000 | R97: 99810000 | S97: 0.45 | U97: =IF(V96='SMSF Servicing Calculator'!$N$72,0,IF(('SMSF Servicing Calculator'!$N$72-V96)>R97,R97,('SMSF Servicing Calculator'!$N$72-V96))) -> 0 | V97: =V96+U97 -> 0 | W97: =U97*S97 -> 0 | Y97: =U97-W97 -> 0
A98: 19543 | B98: 37000 | D98: -255 | S98: Totals: | U98: =SUM(U93:U97) -> 0 | W98: =SUM(W93:W97) -> 0 | Y98: =SUM(Y93:Y97) -> 0
A99: 37001 | B99: 48000 | C99: -0.075 | D99: -255 | P99: Low & middle income tax offset (monthly) | R99: 0 | S99: Refer table
A100: 48001 | B100: 90000 | D100: -1080 | P100: Low income tax offset (monthly) | R100: 0 | S100: Refer table
A101: 90001 | B101: 126000 | C101: 0.03 | D101: -1080 | P101: Medicare Levy (monthly) | R101: =U98*(2/100)/12 -> 0 | S101: 0.02
A102: 126001 | B102: 10000000 | D102: 0 | R102: =SUM(R99:R101) -> 0 | W102: Monthly | Y102: =(Y98/12)-R102 -> 0
P104: Company 1
P105: Gross Taxable Income | S105: Tax Rate | U105: Gross | W105: Tax | Y105: Net
A106: =IF(F10<=B97,D97,IF($F$23<=$B$98,$D$98,IF($F$23<=$B$99,(($F$23-$B$98)*$C$99)+$D$99,IF($F$23<=$B$100,$D$100,IF($F$23<=$B$101,(($F$23-$B$100)*$C$101)+$D$101,IF($F$23<=$B$102,$D$102,0)))))) -> 0 | S106: =D80 -> 0.25 | U106: ='SMSF Servicing Calculator'!D84 -> 0 | V106: =U106 -> 0 | W106: =U106*S106 -> 0 | Y106: =U106-W106 -> 0
S107: Totals: | U107: =SUM(U106:U106) -> 0 | W107: =SUM(W106:W106) -> 0 | Y107: =SUM(Y106:Y106) -> 0
A108: Low Income Tax Offset | P108: N/A | Q108: Medicare Levy (Monthly)
A109: 0 | B109: 20593 | D109: 0 | W109: Monthly | Y109: =(Y107/12) -> 0
A110: 20596 | B110: 37000 | D110: -445
A111: 37001 | B111: 66666 | C111: 0.015 | D111: -445 | P111: Company 2
A112: 66667 | B112: 10000000 | D112: 0 | P112: Gross Taxable Income | S112: Tax Rate | U112: Gross | W112: Tax | Y112: Net
S113: =D87 -> 0.25 | U113: ='SMSF Servicing Calculator'!D85 -> 0 | V113: =U113 -> 0 | W113: =U113*S113 -> 0 | Y113: =U113-W113 -> 0
S114: Totals: | U114: =SUM(U113:U113) -> 0 | W114: =SUM(W113:W113) -> 0 | Y114: =SUM(Y113:Y113) -> 0
A115: =IF($F$10<=$B$109,$D$109,IF($F$10<=$B$110,$D$110,IF($F$10<=$B$111,(($F$10-$B$110)*$C$111)+$D$111,IF($F$10<=$B$112,$D$112,0)))) -> 0 | P115: N/A | Q115: Medicare Levy (Monthly)
W116: Monthly | Y116: =(Y114/12) -> 0
P118: SMSF Assets
P119: Gross Taxable Income | S119: Tax Rate | U119: Assets | V119: Income | W119: Tax | Y119: Net
S120: 0.15 | U120: ='SMSF Servicing Calculator'!D8 ->  | V120: =U120*3.9% ->  | W120: =V120*S120 ->  | Y120: =V120-W120 -> 
S121: Totals: | U121: =SUM(U120:U120) ->  | W121: =SUM(W120:W120) ->  | Y121: =SUM(Y120:Y120) -> 
P122: N/A | Q122: Medicare Levy (Monthly)
W124: Monthly | Y124: =(Y121/12) -> 
P126: SMSF Contributions - Applicant 1
P127: Gross Taxable Income | S127: Tax Rate | U127: Gross | W127: Tax | Y127: Net
P128: 1 | Q128: 25000 | R128: =Q128-P128+1 -> 25000 | S128: 0.15 | U128: =IF('SMSF Servicing Calculator'!D12<Q128,'SMSF Servicing Calculator'!D12,R128) -> 0 | V128: =U128 -> 0 | W128: =U128*S128 -> 0 | Y128: =V128-W128 -> 0
P129: 25001 | Q129: 10000000 | R129: =Q129-P129+1 -> 9975000 | S129: 0.47 | U129: =IF(V128='SMSF Servicing Calculator'!$D$12,0,IF(('SMSF Servicing Calculator'!$D$12-V128)>R129,R129,('SMSF Servicing Calculator'!$D$12-V128))) -> 0 | V129: =V128+U129 -> 0 | W129: =U129*S129 -> 0 | Y129: =U129-W129 -> 0
S130: Totals: | U130: =SUM(U128:U129) -> 0 | W130: =SUM(W128:W129) -> 0 | Y130: =SUM(Y128:Y129) -> 0
W132: Monthly | Y132: =(Y130/12) -> 0
P134: SMSF Contributions - Applicant 2
P135: Gross Taxable Income | S135: Tax Rate | U135: Gross | W135: Tax | Y135: Net
P136: 1 | Q136: 25000 | R136: =Q136-P136+1 -> 25000 | S136: =S128 -> 0.15 | U136: =IF('SMSF Servicing Calculator'!D13<Q136,'SMSF Servicing Calculator'!D13,R136) -> 0 | V136: =U136 -> 0 | W136: =U136*S136 -> 0 | Y136: =V136-W136 -> 0
P137: 25001 | Q137: 10000000 | R137: =Q137-P137+1 -> 9975000 | S137: =S129 -> 0.47 | U137: =IF(V136='SMSF Servicing Calculator'!$D$13,0,IF(('SMSF Servicing Calculator'!$D$13-V136)>R137,R137,('SMSF Servicing Calculator'!$D$13-V136))) -> 0 | V137: =V136+U137 -> 0 | W137: =U137*S137 -> 0 | Y137: =U137-W137 -> 0
S138: Totals: | U138: =SUM(U136:U137) -> 0 | W138: =SUM(W136:W137) -> 0 | Y138: =SUM(Y136:Y137) -> 0
W140: Monthly | Y140: =(Y138/12) -> 0
P142: SMSF Contributions - Applicant 3
P143: Gross Taxable Income | S143: Tax Rate | U143: Gross | W143: Tax | Y143: Net
P144: 1 | Q144: 25000 | R144: =Q144-P144+1 -> 25000 | S144: =S128 -> 0.15 | U144: =IF('SMSF Servicing Calculator'!D14<Q144,'SMSF Servicing Calculator'!D14,R144) -> 0 | V144: =U144 -> 0 | W144: =U144*S144 -> 0 | Y144: =V144-W144 -> 0
P145: 25001 | Q145: 10000000 | R145: =Q145-P145+1 -> 9975000 | S145: =S129 -> 0.47 | U145: =IF(V144='SMSF Servicing Calculator'!$D$14,0,IF(('SMSF Servicing Calculator'!$D$14-V144)>R145,R145,('SMSF Servicing Calculator'!$D$14-V144))) -> 0 | V145: =V144+U145 -> 0 | W145: =U145*S145 -> 0 | Y145: =U145-W145 -> 0
S146: Totals: | U146: =SUM(U144:U145) -> 0 | W146: =SUM(W144:W145) -> 0 | Y146: =SUM(Y144:Y145) -> 0
W148: Monthly | Y148: =(Y146/12) -> 0
P150: SMSF Contributions - Applicant 4
P151: Gross Taxable Income | S151: Tax Rate | U151: Gross | W151: Tax | Y151: Net
P152: 1 | Q152: 25000 | R152: =Q152-P152+1 -> 25000 | S152: =S128 -> 0.15 | U152: =IF('SMSF Servicing Calculator'!D15<Q152,'SMSF Servicing Calculator'!D15,R152) -> 0 | V152: =U152 -> 0 | W152: =U152*S152 -> 0 | Y152: =V152-W152 -> 0
P153: 25001 | Q153: 10000000 | R153: =Q153-P153+1 -> 9975000 | S153: =S129 -> 0.47 | U153: =IF(V152='SMSF Servicing Calculator'!$D$15,0,IF(('SMSF Servicing Calculator'!$D$15-V152)>R153,R153,('SMSF Servicing Calculator'!$D$15-V152))) -> 0 | V153: =V152+U153 -> 0 | W153: =U153*S153 -> 0 | Y153: =U153-W153 -> 0
S154: Totals: | U154: =SUM(U152:U153) -> 0 | W154: =SUM(W152:W153) -> 0 | Y154: =SUM(Y152:Y153) -> 0
W156: Monthly | Y156: =(Y154/12) -> 0

Sheet RepayCalculator (hidden)
A1: Dropdown box data
A2: Principal & Interest
A3: Interest Only
A5: PRIME Serviceability Sensitivity | B5: 0.02
A6: SME Serviceability Sensitivity | B6: 0.02
A7: Serviceability Sensitivity | B7: 0.02
A8: Interest Rate Floor | B8: 0.0529
A10: Interest Only Period | B10: Loan Term | C10: LoanType | D10: Stressed | E10: Status | F10: Household | G10: Dependents | J10: Non Res Commitment
A11: 0 | B11: 30
A12: 1 | B12: 29 | C12: Mortgage Loan - Investment | D12: Mortgage Loan - Investment | E12: Single | F12: Household 1 | G12: 0 | J12: Personal Loan (fixed)
A13: 2 | B13: 28 | C13: Mortgage Loan - Owner Occupied | D13: Mortgage Loan - Owner Occupied | E13: Couple | F13: Household 2 | G13: 1 | J13: Overdraft
A14: 3 | B14: 27 | C14: Lease / Hire Purchase | D14: Overdraft | F14: Household 3 | G14: 2 | J14: Housing Loan Variable - Owner Occupied
A15: 4 | B15: 26 | C15: Line of Credit | D15: Personal Loan - Variable | F15: Household 4 | G15: 3 | J15: Housing Loan Variable - Investment
A16: 5 | B16: 25 | C16: Overdraft | D16: Line of Credit | F16: Household 5 | G16: 4 | J16: Lease / HP
B17: 24 | C17: Personal Loan - Fixed | F17: Household 6 | G17: 5 | J17: Other
B18: 23 | C18: Personal Loan - Variable | G18: 6 | J18: Child Support
B19: 22 | C19: Private Loan | G19: 7 | J19: Rent / Board
B20: 21 | C20: Other | G20: 8
B21: 20 | G21: 9
B22: 19 | G22: 10
B23: 18
B24: 17
B25: 16
B26: 15 | H26: Weekly | I26: Valuation
B27: 14 | H27: Fortnightly | I27: Lease Agreement
B28: 13 | H28: Monthly | I28: Rental Statements
B29: 12 | H29: Quarterly | I29: Bank Statements
B30: 11 | I30: 2 X Rental Appraisals
B31: 10 | I31: Existing NDIS
B32: 9 | I32: New NDIS
B33: 8
B34: 7 | D34: Property | E34: PAYG
B35: 6 | D35: Equipment | E35: Self-employed
B36: 5 | D36: Vehicle | E36: Bonus
B37: 4 | D37: IT | E37: Dividend
B38: 3 | D38: Stock | E38: Overtime
B39: 2 | D39: Other | E39: Other
B40: 1
B41: 0
A43: Rental Income - Standard | B43: 0.8
A44: Rental Income - SMSF | B44: 0.8
A45: Rental Income - ICR | B45: 0.8
A46: Rental Income - NEW NDIS | B46: 0.7
A47: Serviceability Sensitivity - ICR | B47: 0.02
D50: =IF(#REF!="No",IF(B42+RepayCalculator!B6<RepayCalculator!B8,RepayCalculator!#REF!,RepayCalculator!#REF!)) -> 

Sheet Cost of Living Index (hidden)
C3: Single | D3: Joint | E3: Living Allowance Calculation
B5: 0 | C5: =#REF! ->  | D5: =#REF! ->  | F5: $ per Week | G5: $ per Month
B6: 999 | C6: =#REF! ->  | D6: =#REF! ->  | E6: Single | G6: =F6*52/12 -> 0
B7: 1499 | C7: =#REF! ->  | D7: =#REF! ->  | E7: Couples | G7: =F7*52/12 -> 0
B8: 1999 | C8: =#REF! ->  | D8: =#REF! ->  | E8: Children | G8: =(F8-F6)*52/12 -> 0
B9: 2499 | C9: =#REF! ->  | D9: =#REF! -> 
B10: 2999 | C10: =#REF! ->  | D10: =#REF! -> 
B11: 3499 | C11: =#REF! ->  | D11: =#REF! -> 
B12: 3999 | C12: =#REF! ->  | D12: =#REF! -> 
B13: 4499 | C13: =#REF! ->  | D13: =#REF! -> 
B14: 4999 | C14: =#REF! ->  | D14: =#REF! -> 
B15: 5499 | C15: =#REF! ->  | D15: =#REF! ->  | E15: Cost of Living Data Date - 2021
B16: 5999 | C16: =#REF! ->  | D16: =#REF! -> 
B17: 6499 | C17: =#REF! ->  | D17: =#REF! ->  | E17: Australia
B18: 6999 | C18: =#REF! ->  | D18: =#REF! -> 
B19: 7499 | C19: =#REF! ->  | D19: =#REF! ->  | E19: Country | F19: Cost of Living Index | G19: Currency Code
B20: 7999 | C20: =#REF! ->  | D20: =#REF! ->  | E20: Afghanistan | F20: 26.33 | G20: AFN
B21: 8499 | C21: =#REF! ->  | D21: =#REF! ->  | E21: Albania | F21: 40.25 | G21: ALL
B22: 8999 | C22: =#REF! ->  | D22: =#REF! ->  | E22: Algeria | F22: 28.31 | G22: DZD
B23: 9499 | C23: =#REF! ->  | D23: =#REF! ->  | E23: Argentina | F23: 37.87 | G23: ARS
B24: 9999 | C24: =#REF! ->  | D24: =#REF! ->  | E24: Armenia | F24: 31.68 | G24: AMD
E25: Australia | F25: 84.14 | G25: AUD
B26: 10999 | C26: =#REF! ->  | D26: =#REF! ->  | E26: Austria | F26: 75.49 | G26: EUR
B27: 11499 | C27: =#REF! ->  | D27: =#REF! ->  | E27: Azerbaijan | F27: 30.9 | G27: AZN
B28: 11999 | C28: =#REF! ->  | D28: =#REF! ->  | E28: Bahamas | F28: 85.85 | G28: BSD
B29: 12499 | C29: =#REF! ->  | D29: =#REF! ->  | E29: Bahrain | F29: 57.7 | G29: BHD
B30: 12999 | C30: =#REF! ->  | D30: =#REF! ->  | E30: Bangladesh | F30: 33.31 | G30: BDT
B31: 13499 | C31: =#REF! ->  | D31: =#REF! ->  | E31: Barbados | F31: 81.49 | G31: BBD
B32: 14499 | C32: =#REF! ->  | D32: =#REF! ->  | E32: Belarus | F32: 30.69 | G32: BYN
B33: 14999 | C33: =#REF! ->  | D33: =#REF! ->  | E33: Belgium | F33: 78.52 | G33: EUR
B34: 15499 | C34: =#REF! ->  | D34: =#REF! ->  | E34: Belize | F34: 52.45 | G34: BZD
B35: 15999 | C35: =#REF! ->  | D35: =#REF! ->  | E35: Bermuda | F35: 145.07 | G35: BMD
B36: 16499 | C36: =#REF! ->  | D36: =#REF! ->  | E36: Bolivia | F36: 36.11 | G36: BOB
B37: 16999 | C37: =#REF! ->  | D37: =#REF! ->  | E37: Bosnia And Herzegovina | F37: 38.56 | G37: BAM
B38: 17499 | C38: =#REF! ->  | D38: =#REF! ->  | E38: Botswana | F38: 40.41 | G38: BWP
B39: 17999 | C39: =#REF! ->  | D39: =#REF! ->  | E39: Brazil | F39: 31.82 | G39: BRL
B40: 18499 | C40: =#REF! ->  | D40: =#REF! ->  | E40: Brunei | F40: 49.35 | G40: BND
B41: 18999 | C41: =#REF! ->  | D41: =#REF! ->  | E41: Bulgaria | F41: 40.92 | G41: BGN
B42: 19499 | C42: =#REF! ->  | D42: =#REF! ->  | E42: Cambodia | F42: 47.91 | G42: KHR
E43: Cameroon | F43: 42.57 | G43: XAF
E44: Canada | F44: 70.08 | G44: CAD
E45: Chile | F45: 49.33 | G45: CLP
E46: China | F46: 42.54 | G46: CNY
E47: Colombia | F47: 31 | G47: COP
E48: Costa Rica | F48: 50.64 | G48: CRC
E49: Croatia | F49: 56.36 | G49: HRK
E50: Cuba | F50: 55.54 | G50: CUP
E51: Cyprus | F51: 64.05 | G51: EUR
E52: Czech Republic | F52: 49.18 | G52: CZK
E53: Denmark | F53: 91.67 | G53: DKK
E54: Dominican Republic | F54: 41.54 | G54: DOP
E55: Ecuador | F55: 40.08 | G55: USD
E56: Egypt | F56: 30.1 | G56: EGP
B57: 19999 | C57: =#REF! ->  | D57: =#REF! ->  | E57: El Salvador | F57: 44.57 | G57: SVC
E58: Estonia | F58: 56.45 | G58: EUR
E59: Ethiopia | F59: 54.3 | G59: ETB
E60: Fiji | F60: 48.54 | G60: FJD
E61: Finland | F61: 77.46 | G61: EUR
E62: France | F62: 80.62 | G62: EUR
E63: Georgia | F63: 28.05 | G63: GEL
E64: Germany | F64: 70.62 | G64: EUR
E65: Ghana | F65: 40.63 | G65: GHS
E66: Greece | F66: 60.96 | G66: EUR
E67: Guatemala | F67: 44.76 | G67: GTQ
E68: Honduras | F68: 42.2 | G68: HNL
E69: Hong Kong | F69: 79.94 | G69: HKD
E70: Hungary | F70: 42.75 | G70: HUF
E71: Iceland | F71: 96.77 | G71: ISK
E72: India | F72: 25.16 | G72: INR
E73: Indonesia | F73: 37.44 | G73: IDR
E74: Iran | F74: 41.34 | G74: IRR
E75: Iraq | F75: 32.72 | G75: IQD
E76: Ireland | F76: 83.11 | G76: EUR
E77: Israel | F77: 86.63 | G77: ILS
E78: Italy | F78: 73.11 | G78: EUR
E79: Ivory Coast | F79: 54.61 | G79: XOF
E80: Jamaica | F80: 53.16 | G80: JMD
E81: Japan | F81: 87.77 | G81: JPY
E82: Jordan | F82: 52.17 | G82: JOD
E83: Kazakhstan | F83: 29.76 | G83: KZT
E84: Kenya | F84: 36.3 | G84: KES
E85: Kosovo (Disputed Territory) | F85: 29.4 | G85: EUR
E86: Kuwait | F86: 49.4 | G86: KWD
E87: Kyrgyzstan | F87: 22.98 | G87: KGS
E88: Latvia | F88: 52.87 | G88: EUR
E89: Lebanon | F89: 75.88 | G89: LBP
E90: Libya | F90: 22.32 | G90: LYD
E91: Lithuania | F91: 47.66 | G91: EUR
E92: Luxembourg | F92: 88.28 | G92: EUR
E93: Macao | F93: 69.6 | G93: MOP
E94: Malaysia | F94: 39.51 | G94: MYR
E95: Malta | F95: 73.61 | G95: EUR
E96: Mauritius | F96: 52.57 | G96: MUR
E97: Mexico | F97: 35.05 | G97: MXN
E98: Moldova | F98: 32.68 | G98: MDL
E99: Mongolia | F99: 33.17 | G99: MNT
E100: Montenegro | F100: 41.43 | G100: EUR
E101: Morocco | F101: 36.85 | G101: MAD
E102: Mozambique | F102: 35.89 | G102: MZN
E103: Myanmar | F103: 38.06 | G103: MMK
E104: Namibia | F104: 41.02 | G104: NAD
E105: Nepal | F105: 28.86 | G105: NPR
E106: Netherlands | F106: 78.64 | G106: EUR
E107: New Zealand | F107: 79.14 | G107: NZD
E108: Nicaragua | F108: 42.77 | G108: NIO
E109: Nigeria | F109: 29.74 | G109: NGN
E110: North Macedonia | F110: 34.15 | G110: MKD
E111: Norway | F111: 106.09 | G111: NOK
E112: Oman | F112: 50.18 | G112: OMR
E113: Pakistan | F113: 21.59 | G113: PKR
E114: Palestine | F114: 55.88
E115: Panama | F115: 54.07 | G115: PAB
E116: Paraguay | F116: 30.72 | G116: PYG
E117: Peru | F117: 36.26 | G117: PEN
E118: Philippines | F118: 40.65 | G118: PHP
E119: Poland | F119: 42.04 | G119: PLN
E120: Portugal | F120: 52.88 | G120: EUR
E121: Puerto Rico | F121: 69.51 | G121: USD
E122: Qatar | F122: 64.23 | G122: QAR
E123: Romania | F123: 38.5 | G123: RON
E124: Russia | F124: 33.17 | G124: RUB
E125: Rwanda | F125: 34.07 | G125: RWF
E126: Saudi Arabia | F126: 49.95 | G126: SAR
E127: Serbia | F127: 39.19 | G127: RSD
E128: Seychelles | F128: 78.92 | G128: SCR
E129: Singapore | F129: 85.59 | G129: SGD
E130: Slovakia | F130: 49.08 | G130: EUR
E131: Slovenia | F131: 59.38 | G131: EUR
E132: Somalia | F132: 37.42 | G132: SOS
E133: South Africa | F133: 41.69 | G133: ZAR
E134: South Korea | F134: 81.2 | G134: KRW
E135: Spain | F135: 59.09 | G135: EUR
E136: Sri Lanka | F136: 31.28 | G136: LKR
E137: Suriname | F137: 51.86 | G137: SRD
E138: Sweden | F138: 79.17 | G138: SEK
E139: Switzerland | F139: 131.75 | G139: CHF
E140: Syria | F140: 29.03 | G140: SYP
E141: Taiwan | F141: 65.25 | G141: TWD
E142: Tanzania | F142: 34.6 | G142: TZS
E143: Thailand | F143: 49.32 | G143: THB
E144: Trinidad And Tobago | F144: 55.48 | G144: TTD
E145: Tunisia | F145: 29.5 | G145: TND
E146: Turkey | F146: 31.48 | G146: TRY
E147: Uganda | F147: 32.18 | G147: UGX
E148: Ukraine | F148: 29.21 | G148: UAH
E149: United Arab Emirates | F149: 61.67 | G149: AED
E150: United Kingdom | F150: 71.03 | G150: GBP
E151: United States | F151: 71.92 | G151: USD
E152: Uruguay | F152: 51.09 | G152: UYU
E153: Uzbekistan | F153: 27.12 | G153: UZS
E154: Vietnam | F154: 38.05 | G154: VND
E155: Yemen | F155: 51.46 | G155: YER
E156: Zambia | F156: 28.06 | G156: ZMW
E157: Zimbabwe | F157: 51.52 | G157: ZWL

Sheet Live Currency Rates (hidden)
A1: Currency code ▲▼ | B1: Currency name ▲▼ | C1: Units per AUD | D1: AUD per Unit | G1: ex rate 1 | H1: =VLOOKUP(#REF!,'Live Currency Rates'!A:D,3,FALSE) -> 
A2: USD | B2: US Dollar | C2: 0.7754139861 | D2: 1.28963369 | G2: ex rate 2 | H2: =VLOOKUP(#REF!,'Live Currency Rates'!A:D,3,FALSE) -> 
A3: EUR | B3: Euro | C3: 0.6416682173 | D3: 1.558437792
A4: GBP | B4: British Pound | C4: 0.5545350994 | D4: 1.803312362
A5: INR | B5: Indian Rupee | C5: 56.84777398 | D5: 0.0175908383
A6: AUD | B6: Australian Dollar | C6: 1 | D6: 1
A7: CAD | B7: Canadian Dollar | C7: 0.9847202468 | D7: 1.015516847
A8: SGD | B8: Singapore Dollar | C8: 1.031192214 | D8: 0.9697513094
A9: CHF | B9: Swiss Franc | C9: 0.7044886493 | D9: 1.419469286
A10: MYR | B10: Malaysian Ringgit | C10: 3.142181067 | D10: 0.3182502786
A11: JPY | B11: Japanese Yen | C11: 82.61727358 | D11: 0.0121040063
A12: CNY | B12: Chinese Yuan Renminbi | C12: 5.010723081 | D12: 0.1995719947
A13: NZD | B13: New Zealand Dollar | C13: 1.065974123 | D13: 0.9381090762
A14: THB | B14: Thai Baht | C14: 23.49973726 | D14: 0.0425536673
A15: HUF | B15: Hungarian Forint | C15: 232.7147454 | D15: 0.0042971063
A16: AED | B16: Emirati Dirham | C16: 2.847707864 | D16: 0.351159616
A17: HKD | B17: Hong Kong Dollar | C17: 6.014872777 | D17: 0.1662545555
A18: MXN | B18: Mexican Peso | C18: 16.08467514 | D18: 0.062170979
A19: ZAR | B19: South African Rand | C19: 11.6224348 | D19: 0.0860404912
A20: PHP | B20: Philippine Peso | C20: 37.71854374 | D20: 0.0265121582
A21: SEK | B21: Swedish Krona | C21: 6.529455415 | D21: 0.1531521293
A22: IDR | B22: Indonesian Rupiah | C22: 11079.69574 | D22: 9.02552e-05
A23: SAR | B23: Saudi Arabian Riyal | C23: 2.907802448 | D23: 0.3439023173
A24: BRL | B24: Brazilian Real | C24: 4.341617882 | D24: 0.2303288836
A25: TRY | B25: Turkish Lira | C25: 5.723123806 | D25: 0.1747297514
A26: KES | B26: Kenyan Shilling | C26: 85.13602352 | D26: 0.0117459092
A27: KRW | B27: South Korean Won | C27: 869.3123295 | D27: 0.0011503345
A28: EGP | B28: Egyptian Pound | C28: 12.17470317 | D28: 0.0821375261
A29: IQD | B29: Iraqi Dinar | C29: 1131.655726 | D29: 0.000883661
A30: NOK | B30: Norwegian Krone | C30: 6.678000827 | D30: 0.1497454142
A31: KWD | B31: Kuwaiti Dinar | C31: 0.2346808224 | D31: 4.261106595
A32: RUB | B32: Russian Ruble | C32: 57.58960318 | D32: 0.0173642454
A33: DKK | B33: Danish Krone | C33: 4.77147996 | D33: 0.2095785811
A34: PKR | B34: Pakistani Rupee | C34: 122.5733147 | D34: 0.0081583826
A35: ILS | B35: Israeli Shekel | C35: 2.555643034 | D35: 0.3912909536
A36: PLN | B36: Polish Zloty | C36: 2.896349505 | D36: 0.3452621992
A37: QAR | B37: Qatari Riyal | C37: 2.82250691 | D37: 0.3542949697
A38: XAU | B38: Gold Ounce | C38: 0.000442871 | D38: 2257.993712
A39: OMR | B39: Omani Rial | C39: 0.2981466777 | D39: 3.354053809
A40: COP | B40: Colombian Peso | C40: 2828.221723 | D40: 0.0003535791
A41: CLP | B41: Chilean Peso | C41: 561.3851401 | D41: 0.0017813083
A42: TWD | B42: Taiwan New Dollar | C42: 21.57537283 | D42: 0.0463491411
A43: ARS | B43: Argentine Peso | C43: 69.63952996 | D43: 0.0143596604
A44: CZK | B44: Czech Koruna | C44: 16.78823423 | D44: 0.0595655259
A45: VND | B45: Vietnamese Dong | C45: 17891.35714 | D45: 5.58929e-05
A46: MAD | B46: Moroccan Dirham | C46: 6.927073915 | D46: 0.1443610985
A47: JOD | B47: Jordanian Dinar | C47: 0.5497685162 | D47: 1.818947376
A48: BHD | B48: Bahraini Dinar | C48: 0.2915556588 | D48: 3.429876834
A49: XOF | B49: CFA Franc | C49: 420.9067588 | D49: 0.0023758231
A50: LKR | B50: Sri Lankan Rupee | C50: 150.9911406 | D50: 0.0066229051
A51: UAH | B51: Ukrainian Hryvnia | C51: 21.68932399 | D51: 0.0461056324
A52: NGN | B52: Nigerian Naira | C52: 295.5210525 | D52: 0.0033838537
A53: TND | B53: Tunisian Dinar | C53: 2.095743542 | D53: 0.4771576197
A54: UGX | B54: Ugandan Shilling | C54: 2841.005355 | D54: 0.0003519881
A55: RON | B55: Romanian Leu | C55: 3.128580866 | D55: 0.319633739
A56: BDT | B56: Bangladeshi Taka | C56: 65.69632668 | D56: 0.0152215512
A57: PEN | B57: Peruvian Sol | C57: 2.829573833 | D57: 0.3534101101
A58: GEL | B58: Georgian Lari | C58: 2.578103076 | D58: 0.3878820863
A59: XAF | B59: Central African CFA Franc BEAC | C59: 420.9067588 | D59: 0.0023758231
A60: FJD | B60: Fijian Dollar | C60: 1.556097526 | D60: 0.6426332432
A61: VEF | B61: Venezuelan Bolívar | C61: 7.744447187 | D61: 0.1291247749
A62: VES | B62: Venezuelan Bolívar | C62: 1448350.103 | D62: 6.904e-07
A63: BYN | B63: Belarusian Ruble | C63: 2.016029118 | D63: 0.4960245816
A64: HRK | B64: Croatian Kuna | C64: 4.868507505 | D64: 0.2054017579
A65: UZS | B65: Uzbekistani Som | C65: 8165.77385 | D65: 0.0001224624
A66: BGN | B66: Bulgarian Lev | C66: 1.254993949 | D66: 0.7968165907
A67: DZD | B67: Algerian Dinar | C67: 103.0850301 | D67: 0.0097007296
A68: IRR | B68: Iranian Rial | C68: 32587.05417 | D68: 3.0687e-05
A69: DOP | B69: Dominican Peso | C69: 44.8905394 | D69: 0.0222764086
A70: ISK | B70: Icelandic Krona | C70: 98.63374689 | D70: 0.0101385178
A71: XAG | B71: Silver Ounce | C71: 0.028853019 | D71: 34.6584182
A72: CRC | B72: Costa Rican Colon | C72: 474.2343867 | D72: 0.0021086619
A73: SYP | B73: Syrian Pound | C73: 397.6134637 | D73: 0.0025150054
A74: LYD | B74: Libyan Dinar | C74: 3.450200731 | D74: 0.2898382088
A75: JMD | B75: Jamaican Dollar | C75: 117.236115 | D75: 0.0085297948
A76: MUR | B76: Mauritian Rupee | C76: 30.86239528 | D76: 0.032401892
A77: GHS | B77: Ghanaian Cedi | C77: 4.460006461 | D77: 0.2242149218
A78: AOA | B78: Angolan Kwanza | C78: 493.1169137 | D78: 0.0020279167
A79: UYU | B79: Uruguayan Peso | C79: 33.4777425 | D79: 0.0298705924
A80: AFN | B80: Afghan Afghani | C80: 59.96534668 | D80: 0.0166762982
A81: LBP | B81: Lebanese Pound | C81: 1168.936584 | D81: 0.0008554784
A82: XPF | B82: CFP Franc | C82: 76.5713863 | D82: 0.0130597087
A83: TTD | B83: Trinidadian Dollar | C83: 5.264472773 | D83: 0.1899525448
A84: TZS | B84: Tanzanian Shilling | C84: 1797.862128 | D84: 0.0005562162
A85: ALL | B85: Albanian Lek | C85: 78.88650688 | D85: 0.0126764391
A86: XCD | B86: East Caribbean Dollar | C86: 2.095354711 | D86: 0.4772461649
A87: GTQ | B87: Guatemalan Quetzal | C87: 5.969023963 | D87: 0.1675315774
A88: NPR | B88: Nepalese Rupee | C88: 91.38279668 | D88: 0.0109429787
A89: BOB | B89: Bolivian Bolíviano | C89: 5.347550124 | D89: 0.1870015197
A90: ZWD | B90: Zimbabwean Dollar | C90: 280.6223216 | D90: 0.0035635084
A91: BBD | B91: Barbadian or Bajan Dollar | C91: 1.550827972 | D91: 0.6448168448
A92: CUC | B92: Cuban Convertible Peso | C92: 0.7754139861 | D92: 1.28963369
A93: LAK | B93: Lao Kip | C93: 7254.90454 | D93: 0.0001378378
A94: BND | B94: Bruneian Dollar | C94: 1.031192214 | D94: 0.9697513094
A95: BWP | B95: Botswana Pula | C95: 8.421112567 | D95: 0.1187491548
A96: HNL | B96: Honduran Lempira | C96: 18.67967845 | D96: 0.0535341121
A97: PYG | B97: Paraguayan Guarani | C97: 5126.343101 | D97: 0.0001950708
A98: ETB | B98: Ethiopian Birr | C98: 31.23915823 | D98: 0.0320111058
A99: NAD | B99: Namibian Dollar | C99: 11.6224348 | D99: 0.0860404912
A100: PGK | B100: Papua New Guinean Kina | C100: 2.719256554 | D100: 0.3677475737
A101: SDG | B101: Sudanese Pound | C101: 290.8674694 | D101: 0.0034379919
A102: MOP | B102: Macau Pataca | C102: 6.19531896 | D102: 0.1614121898
A103: NIO | B103: Nicaraguan Cordoba | C103: 27.05659652 | D103: 0.0369595636
A104: BMD | B104: Bermudian Dollar | C104: 0.7754139861 | D104: 1.28963369
A105: KZT | B105: Kazakhstani Tenge | C105: 324.2763138 | D105: 0.0030837898
A106: PAB | B106: Panamanian Balboa | C106: 0.7754139861 | D106: 1.28963369
A107: BAM | B107: Bosnian Convertible Mark | C107: 1.254993949 | D107: 0.7968165907
A108: GYD | B108: Guyanese Dollar | C108: 161.8625543 | D108: 0.0061780812
A109: YER | B109: Yemeni Rial | C109: 194.1028497 | D109: 0.0051519079
A110: MGA | B110: Malagasy Ariary | C110: 2906.299858 | D110: 0.0003440801
A111: KYD | B111: Caymanian Dollar | C111: 0.6358416555 | D111: 1.572718603
A112: MZN | B112: Mozambican Metical | C112: 58.31778242 | D112: 0.0171474284
A113: RSD | B113: Serbian Dinar | C113: 75.27085295 | D113: 0.013285355
A114: SCR | B114: Seychellois Rupee | C114: 16.36039919 | D114: 0.061123203
A115: AMD | B115: Armenian Dram | C115: 402.4665601 | D115: 0.0024846785
A116: SBD | B116: Solomon Islander Dollar | C116: 6.220713601 | D116: 0.1607532615
A117: AZN | B117: Azerbaijan Manat | C117: 1.317419051 | D117: 0.7590599205
A118: SLL | B118: Sierra Leonean Leone | C118: 7910.383296 | D118: 0.0001264161
A119: TOP | B119: Tongan Pa'anga | C119: 1.754178428 | D119: 0.5700674366
A120: BZD | B120: Belizean Dollar | C120: 1.562274552 | D120: 0.6400923566
A121: MWK | B121: Malawian Kwacha | C121: 603.4646163 | D121: 0.001657098
A122: GMD | B122: Gambian Dalasi | C122: 39.69602734 | D122: 0.0251914377
A123: BIF | B123: Burundian Franc | C123: 1511.23825 | D123: 0.000661709
A124: SOS | B124: Somali Shilling | C124: 447.0596627 | D124: 0.0022368379
A125: HTG | B125: Haitian Gourde | C125: 56.52398933 | D125: 0.0176916034
A126: GNF | B126: Guinean Franc | C126: 7869.49492 | D126: 0.000127073
A127: MVR | B127: Maldivian Rufiyaa | C127: 11.93585313 | D127: 0.0837811918
A128: MNT | B128: Mongolian Tughrik | C128: 2206.065326 | D128: 0.0004532957
A129: CDF | B129: Congolese Franc | C129: 1533.611741 | D129: 0.0006520555
A130: STN | B130: Sao Tomean Dobra | C130: 15.72763847 | D130: 0.0635823364
A131: TJS | B131: Tajikistani Somoni | C131: 8.832436868 | D131: 0.1132190374
A132: KPW | B132: North Korean Won | C132: 697.8796102 | D132: 0.0014329119
A133: MMK | B133: Burmese Kyat | C133: 1092.881091 | D133: 0.0009150126
A134: LSL | B134: Basotho Loti | C134: 11.6224348 | D134: 0.0860404912
A135: LRD | B135: Liberian Dollar | C135: 134.0653487 | D135: 0.007459049
A136: KGS | B136: Kyrgyzstani Som | C136: 65.71649633 | D136: 0.0152168794
A137: GIP | B137: Gibraltar Pound | C137: 0.5545350994 | D137: 1.803312362
A138: XPT | B138: Platinum Ounce | C138: 0.0006355255 | D138: 1573.500976
A139: MDL | B139: Moldovan Leu | C139: 13.56930315 | D139: 0.073695752
A140: CUP | B140: Cuban Peso | C140: 20.54847063 | D140: 0.0486654223
A141: KHR | B141: Cambodian Riel | C141: 3163.226031 | D141: 0.000316133
A142: MKD | B142: Macedonian Denar | C142: 39.29884371 | D142: 0.0254460413
A143: VUV | B143: Ni-Vanuatu Vatu | C143: 84.18649931 | D143: 0.0118783891
A144: MRU | B144: Mauritanian Ouguiya | C144: 27.92117636 | D144: 0.0358151099
A145: ANG | B145: Dutch Guilder | C145: 1.387955786 | D145: 0.7204840456
A146: SZL | B146: Swazi Lilangeni | C146: 11.6224348 | D146: 0.0860404912
A147: CVE | B147: Cape Verdean Escudo | C147: 70.75675431 | D147: 0.0141329264
A148: SRD | B148: Surinamese Dollar | C148: 10.97356669 | D148: 0.0911280742
A149: XPD | B149: Palladium Ounce | C149: 0.0003303522 | D149: 3027.072507
A150: SVC | B150: Salvadoran Colon | C150: 6.784872379 | D150: 0.1473867074
A151: BSD | B151: Bahamian Dollar | C151: 0.7754139861 | D151: 1.28963369
A152: XDR | B152: IMF Special Drawing Rights | C152: 0.5389709227 | D152: 1.855387662
A153: RWF | B153: Rwandan Franc | C153: 769.7818135 | D153: 0.0012990694
A154: AWG | B154: Aruban or Dutch Guilder | C154: 1.387991035 | D154: 0.7204657484
A155: DJF | B155: Djiboutian Franc | C155: 137.8455075 | D155: 0.0072544983
A156: BTN | B156: Bhutanese Ngultrum | C156: 56.84777398 | D156: 0.0175908383
A157: KMF | B157: Comorian Franc | C157: 315.6800691 | D157: 0.0031677641
A158: WST | B158: Samoan Tala | C158: 1.944404283 | D158: 0.5142963369
A159: SPL | B159: Seborgan Luigino | C159: 0.1292356638 | D159: 7.737802169
A160: ERN | B160: Eritrean Nakfa | C160: 11.63120979 | D160: 0.0859755793
A161: FKP | B161: Falkland Island Pound | C161: 0.5545350994 | D161: 1.803312362
A162: SHP | B162: Saint Helenian Pound | C162: 0.5545350994 | D162: 1.803312362
A163: JEP | B163: Jersey Pound | C163: 0.5545350994 | D163: 1.803312362
A164: TMT | B164: Turkmenistani Manat | C164: 2.716672223 | D164: 0.3680974066
A165: TVD | B165: Tuvaluan Dollar | C165: 1 | D165: 1
A166: IMP | B166: Isle of Man Pound | C166: 0.5545350994 | D166: 1.803312362
A167: GGP | B167: Guernsey Pound | C167: 0.5545350994 | D167: 1.803312362
A168: ZMW | B168: Zambian Kwacha | C168: 16.90834893 | D168: 0.0591423801
